Workbook

Sheet Inputs
N2: Version 6.12 13 March 2023
B4: Tariff Input Sheet
B6: Please enter the required information below:
D8: Customer Name | G8: Customer Name | I8: Enter the customer name as it is displayed on the rates bill.
D9: Account number | G9: Account Number | I9: Enter the account number as it is displayed on the rates bill.
D10: Point of delivery ID | G10: Point of delivery | I10: Enter the Point of Delivery ID as it is displayed on the rates bill.
D11: Number of PODs | H11: 1
D13: Select your tariff classification | I13: Select either Non-Local Authority (Eskom), Local Authority (Municipality)
D15: Customer Category | G15: Small Power User
D17: Select supply size | I17: Select the appropriate customer supply size (kVA)
D19: Select tariff | I19: Drop box selection driven by the supply voltage inputs
D21: Select supply voltage | G21: =Selected_Supply_Voltage -> < 500V | K21: Calculations are based on the average number of days per month: Ave days per month = Total number of days in year (365) / months (12) = 30.416667
D23: Enter average monthly consumption for SPU tariffs excluding Homeflex | I23: kWh / month
D25: For Homeflex tariff enter average monthly consumption below:
G26: Peak energy | H26: Standard energy | I26: Off-peak energy | J26: Total energy
G27: kWh / month | H27: kWh / month | I27: kWh / month | J27: kWh / month
J28: =SUM(G28:I28) -> 0

Sheet Monthly Average Bill
B4: Monthly Average Bill | I4: =D10 -> Landrate 4 | K4: =B4 -> Monthly Average Bill | R4: =I4 -> Landrate 4
B6: High Demand | K6: Low Demand
B8: Customer Name | D8: =Customer_Name -> Customer Name | K8: =B8 -> Customer Name | M8: =D8 -> Customer Name
B9: =Inputs!D10 -> Point of delivery ID | D9: =Delivery_ID -> Point of delivery | K9: =B9 -> Point of delivery ID | M9: =D9 -> Point of delivery
C10: Tariff | D10: =Selected_Base_Tariff -> Landrate 4 | F10: Ave Monthly Consumption for SPU tariffs excluding Homeflex | H10: =IF(Selected_Customer_Category_ID=1,SPU_Annual_Total_Energy,0) -> 0 | I10: kWh | L10: =C10 -> Tariff | M10: =D10 -> Landrate 4 | N10: =F10 -> Ave Monthly Consumption for SPU tariffs excluding Homeflex | P10: =H10 -> 0 | Q10: kWh
F11: Ave Homeflex Monthly Peak | H11: =IF(Selected_Customer_Category_ID=1,Homeflex_Peak_Energy,0) -> 0 | I11: kWh | N11: Ave Homeflex Monthly Peak | P11: 0 | Q11: kWh
F12: Ave Homeflex Monthly Standard | H12: =IF(Selected_Customer_Category_ID=1,Homeflex_Standard_Energy,0) -> 0 | I12: kWh | N12: Ave Homeflex Monthly Standard | P12: 0 | Q12: kWh
F13: Ave Homeflex Monthly Off-peak | H13: =IF(Selected_Customer_Category_ID=1,Homeflex_OffPeak_Energy,0) -> 0 | I13: kWh | N13: Ave Homeflex Monthly Off-peak | P13: 0 | Q13: kWh
F14: Ave Homeflex Total Monthly Consumption | H14: =IF(Selected_Customer_Category_ID=1,Homeflex_Total_Energy,0) -> 0 | I14: kWh | N14: Ave Homeflex Total Monthly Consumption | P14: 0 | Q14: kWh
C15: Tariff Category | D15: =INDEX(Full_Tariff_Type,MATCH(D10,Full_Tariff_List,0)) -> Rural | F15: Days | H15: =ESKOM_Total_days -> 30.41666667 | I15: days | L15: =C15 -> Tariff Category | M15: =D15 -> Rural | N15: Days | P15: 30.41666667 | Q15: days
C16: Supply voltage | D16: =Selected_Supply_Voltage -> < 500V | L16: =C16 -> Supply voltage | M16: < 500V
C17: Tariff Classification | D17: =Selected_Tariff_Category -> Non-Local Authority | L17: Tariff Classification | M17: Non-Local Authority
C18: No of PODS | D18: =PODs -> 1 | L18: No of PODS | M18: 1
C19: Size of supply | D19: =Selected_Supply_Size -> 5kVA, 16kVA, 20A or 60A | L19: Size of supply | M19: 5kVA, 16kVA, 20A or 60A
L20: 0 | M20: 0
B22: Network charges | D22: Units | E22: =Current_Period &" Rates" -> 2022/2023 Rates | F22: =New_Period &" Rates" -> 2023/2024 Rates | G22: =Current_Period&" Charges" -> 2022/2023 Charges | H22: =New_Period&" Charges" -> 2023/2024 Charges | I22: % Change | K22: Network charges | M22: Units | N22: =Current_Period &" Rates" -> 2022/2023 Rates | O22: =New_Period &" Rates" -> 2023/2024 Rates | P22: =Current_Period&" Charges" -> 2022/2023 Charges | Q22: =New_Period&" Charges" -> 2023/2024 Charges | R22: % Change
C24: Network demand charge | D24: c/kWh | E24: ='Rates Table'!E10 -> 38.94 | F24: ='Rates Table'!AE10 -> 46.2 | G24: =IFERROR(E24*SPU_Total_Energy,0)/100 -> 0 | H24: =IFERROR(F24*SPU_Total_Energy,0)/100 -> 0 | I24: =IFERROR(H24/G24-1,0) -> 0 | L24: Network demand charge | M24: c/kWh | N24: =E24 -> 38.94 | O24: =F24 -> 46.2 | P24: 0 | Q24: 0 | R24: =I24 -> 0
C25: Network demand charge, Ancillary service charge and retail | D25: c/kWh | E25: ='Rates Table'!E11 -> 0 | F25: ='Rates Table'!AE11 -> 0 | G25: =IFERROR(E25*Homeflex_Total_Monthly_Energy,0)/100 -> 0 | H25: =IFERROR(F25*Homeflex_Total_Monthly_Energy,0)/100 -> 0 | I25: 0 | L25: Network demand charge, Ancillary service charge and retail | M25: c/kWh | N25: =E25 -> 0 | O25: 0 | P25: 0 | Q25: 0 | R25: =I25 -> 0
C26: Network capacity charge | D26: =IF(Table_1=1,"R/kVA","R/day") -> R/day | E26: ='Rates Table'!E12 -> 33.15 | F26: ='Rates Table'!AE12 -> 39.33 | G26: =IFERROR(E26*PODs*SPU_Days,0) -> 1008.3125 | H26: =IFERROR(F26*PODs*SPU_Days,0) -> 1196.2875 | I26: 0.1864253394 | L26: Network capacity charge | M26: =IF(Table_1=1,"R/kVA","R/day") -> R/day | N26: 33.15 | O26: 39.33 | P26: 1008.3125 | Q26: 1196.2875 | R26: 0.1864253394
B28: Total network charges | G28: =SUM(G24:G26) -> 1008.3125 | H28: =SUM(H24:H26) -> 1196.2875 | I28: 0.1864253394 | K28: Total network charges | P28: =SUM(P24:P26) -> 1008.3125 | Q28: =SUM(Q24:Q26) -> 1196.2875 | R28: =IFERROR(Q28/P28-1,0) -> 0.1864253394
B30: Energy charges | D30: Units | E30: =E22 -> 2022/2023 Rates | F30: =F22 -> 2023/2024 Rates | G30: =G22 -> 2022/2023 Charges | H30: =H22 -> 2023/2024 Charges | I30: % Change | K30: Energy charges | M30: Units | N30: =N22 -> 2022/2023 Rates | O30: =O22 -> 2023/2024 Rates | P30: =P22 -> 2022/2023 Charges | Q30: =Q22 -> 2023/2024 Charges | R30: % Change
C32: Energy | D32: c/kWh | E32: ='Rates Table'!E18 -> 336.63 | F32: ='Rates Table'!AE18 -> 399.41 | G32: =IFERROR(E32*(SPU_Total_Energy),0)/100 -> 0 | H32: =IFERROR(F32*(SPU_Total_Energy),0)/100 -> 0 | I32: =IFERROR(H32/G32-1,0) -> 0 | L32: Energy | M32: c/kWh | N32: =E32 -> 336.63 | O32: =F32 -> 399.41 | P32: 0 | Q32: 0 | R32: 0
C33: Peak | D33: c/kWh | E33: ='Rates Table'!E19 -> 0 | F33: ='Rates Table'!AE19 -> 0 | G33: =IFERROR(E33*(Ave_Monthly_Peak),0)/100 -> 0 | H33: =IFERROR(F33*(Ave_Monthly_Peak),0)/100 -> 0 | I33: 0 | L33: Peak | M33: c/kWh | N33: =IFERROR('Rates SPU - Current'!$L$29*IF(OR($D$10="Homeflex 1",$D$10="Homeflex 2", $D$10="Homeflex 3",$D$10="Homeflex 4"),1,0),0) -> 0 | O33: =IFERROR('Rates SPU - New'!$L$29*IF(OR($D$10="Homeflex 1",$D$10="Homeflex 2", $D$10="Homeflex 3",$D$10="Homeflex 4"),1,0),0) -> 0 | P33: =IFERROR(N33*IF(OR($D$10="Homeflex 1",$D$10="Homeflex 2", $D$10="Homeflex 3",$D$10="Homeflex 4"),(Ave_Monthly_Peak),0),0)/100 -> 0 | Q33: 0 | R33: =IFERROR(Q33/P33-1,0) -> 0
C34: Standard | D34: c/kWh | E34: ='Rates Table'!E20 -> 0 | F34: ='Rates Table'!AE20 -> 0 | G34: =IFERROR(E34*(Ave_Monthly_Standard),0)/100 -> 0 | H34: =IFERROR(F34*(Ave_Monthly_Standard),0)/100 -> 0 | I34: 0 | L34: Standard | M34: c/kWh | N34: =IFERROR('Rates SPU - Current'!$M$29*IF(OR($D$10="Homeflex 1",$D$10="Homeflex 2", $D$10="Homeflex 3",$D$10="Homeflex 4"),1,0),0) -> 0 | O34: =IFERROR('Rates SPU - New'!$M$29*IF(OR($D$10="Homeflex 1",$D$10="Homeflex 2", $D$10="Homeflex 3",$D$10="Homeflex 4"),1,0),0) -> 0 | P34: =IFERROR(N34*IF(OR($D$10="Homeflex 1",$D$10="Homeflex 2", $D$10="Homeflex 3",$D$10="Homeflex 4"),(Ave_Monthly_Standard),0),0)/100 -> 0 | Q34: =IFERROR(O34*IF(OR($D$10="Homeflex 1",$D$10="Homeflex 2", $D$10="Homeflex 3",$D$10="Homeflex 4"),(Ave_Monthly_Standard),0),0)/100 -> 0 | R34: 0
C35: Off-Peak | D35: c/kWh | E35: ='Rates Table'!E21 -> 0 | F35: ='Rates Table'!AE21 -> 0 | G35: =IFERROR(E35*(Ave_Monthly_OffPeak),0)/100 -> 0 | H35: =IFERROR(F35*(Ave_Monthly_OffPeak),0)/100 -> 0 | I35: 0 | L35: Off-Peak | M35: c/kWh | N35: =IFERROR('Rates SPU - Current'!$N$29*IF(OR($D$10="Homeflex 1",$D$10="Homeflex 2", $D$10="Homeflex 3",$D$10="Homeflex 4"),1,0),0) -> 0 | O35: =IFERROR('Rates SPU - New'!$N$29*IF(OR($D$10="Homeflex 1",$D$10="Homeflex 2", $D$10="Homeflex 3",$D$10="Homeflex 4"),1,0),0) -> 0 | P35: =IFERROR(N35*IF(OR($D$10="Homeflex 1",$D$10="Homeflex 2", $D$10="Homeflex 3",$D$10="Homeflex 4"),(Ave_Monthly_OffPeak),0),0)/100 -> 0 | Q35: =IFERROR(O35*IF(OR($D$10="Homeflex 1",$D$10="Homeflex 2", $D$10="Homeflex 3",$D$10="Homeflex 4"),(Ave_Monthly_OffPeak),0),0)/100 -> 0 | R35: 0
C36: Energy - Block 1 | D36: c/kWh | E36: ='Rates Table'!E22 -> 0 | F36: ='Rates Table'!AE22 -> 0 | G36: =IFERROR(E36*(SPU_Block_1),0)/100 -> 0 | H36: =IFERROR(F36*(SPU_Block_1),0)/100 -> 0 | I36: 0 | L36: Energy - Block 1 | M36: c/kWh | N36: =E36 -> 0 | O36: =F36 -> 0 | P36: =G36 -> 0 | Q36: =H36 -> 0 | R36: =I36 -> 0
C37: Energy - Block 2 | D37: c/kWh | E37: ='Rates Table'!E23 -> 0 | F37: ='Rates Table'!AE23 -> 0 | G37: =IFERROR(E37*(SPU_Block_2),0)/100 -> 0 | H37: =IFERROR(F37*(SPU_Block_2),0)/100 -> 0 | I37: 0 | L37: Energy - Block 2 | M37: c/kWh | N37: 0 | O37: 0 | P37: 0 | Q37: 0 | R37: 0
B39: Total energy charges | G39: =SUM(G32:G37) -> 0 | H39: =SUM(H32:H37) -> 0 | I39: =IFERROR(H39/G39-1,0) -> 0 | K39: Total energy charges | P39: =SUM(P32:P37) -> 0 | Q39: =SUM(Q32:Q37) -> 0 | R39: =IFERROR(Q39/P39-1,0) -> 0
B41: Other charges | D41: Units | E41: =E22 -> 2022/2023 Rates | F41: =F22 -> 2023/2024 Rates | G41: =G22 -> 2022/2023 Charges | H41: =H22 -> 2023/2024 Charges | I41: % Change | K41: Other charges | M41: Units | N41: =N22 -> 2022/2023 Rates | O41: =O22 -> 2023/2024 Rates | P41: =P22 -> 2022/2023 Charges | Q41: =Q22 -> 2023/2024 Charges | R41: % Change
C43: Ancillary service charge | D43: c/kWh | E43: ='Rates Table'!E29 -> 0.6 | F43: ='Rates Table'!AE29 -> 0.71 | G43: =IFERROR(SPU_Total_Energy*E43,0)/100 -> 0 | H43: =IFERROR(SPU_Total_Energy*F43,0)/100 -> 0 | I43: =IFERROR(H43/G43-1,0) -> 0 | L43: Ancillary service charge | M43: c/kWh | N43: =E43 -> 0.6 | O43: =F43 -> 0.71 | P43: =G43 -> 0 | Q43: =H43 -> 0 | R43: =I43 -> 0
C44: Service charge | D44: =IF(Table_1=1,"R/day","R/day") -> R/day | E44: ='Rates Table'!E30 -> 0 | F44: ='Rates Table'!AE30 -> 0 | G44: =IFERROR(IF(Table_1=1,E44*PODs*SPU_Days,E44*PODs*SPU_Days),0) -> 0 | H44: =IFERROR(IF(Table_1=1,F44*PODs*SPU_Days,F44*PODs*SPU_Days),0) -> 0 | I44: 0 | L44: Service charge | M44: =IF(Table_1=1,"R/day","R/day") -> R/day | N44: =E44 -> 0 | O44: 0 | P44: 0 | Q44: 0 | R44: 0
B46: Total other charges | G46: =SUM(G43:G44) -> 0 | H46: =SUM(H43:H44) -> 0 | I46: =IFERROR(H46/G46-1,0) -> 0 | K46: Total other charges | P46: =SUM(P43:P44) -> 0 | Q46: =SUM(Q43:Q44) -> 0 | R46: =IFERROR(Q46/P46-1,0) -> 0
B48: Total excl VAT | G48: =G46+G39+G28 -> 1008.3125 | H48: =H46+H39+H28 -> 1196.2875 | I48: =IFERROR(H48/G48-1,0) -> 0.1864253394 | K48: Total excl VAT | P48: =P46+P39+P28 -> 1008.3125 | Q48: =Q46+Q39+Q28 -> 1196.2875 | R48: =IFERROR(Q48/P48-1,0) -> 0.1864253394
B49: VAT | D49: =VAT -> 0.15 | G49: =G48*$D49 -> 151.246875 | H49: =H48*$D49 -> 179.443125 | K49: VAT | M49: =VAT -> 0.15 | P49: =P48*$D49 -> 151.246875 | Q49: =Q48*$D49 -> 179.443125
B51: Total account | G51: =SUM(G48:G49) -> 1159.559375 | H51: =SUM(H48:H49) -> 1375.730625 | I51: =IFERROR(H51/G51-1,0) -> 0.1864253394 | K51: Total account | P51: =SUM(P48:P49) -> 1159.559375 | Q51: =SUM(Q48:Q49) -> 1375.730625 | R51: =IFERROR(Q51/P51-1,0) -> 0.1864253394
B53: Average price | D53: c/kWh | G53: =IFERROR(IF(OR($D$10="Homeflex 1",$D$10="Homeflex 2", $D$10="Homeflex 3",$D$10="Homeflex 4"),G48/Homeflex_Total_Monthly_Energy*100,G48/SPU_Total_Energy*100),0) -> 0 | H53: =IFERROR(IF(OR($D$10="Homeflex 1",$D$10="Homeflex 2", $D$10="Homeflex 3",$D$10="Homeflex 4"),H48/Homeflex_Total_Monthly_Energy*100,H48/SPU_Total_Energy*100),0) -> 0 | I53: =IFERROR(H53/G53-1,0) -> 0 | K53: Average price | M53: c/kWh | P53: =IFERROR(IF(OR($D$10="Homeflex 1",$D$10="Homeflex 2", $D$10="Homeflex 3",$D$10="Homeflex 4"),P48/Homeflex_Total_Monthly_Energy*100,P48/SPU_Total_Energy*100),0) -> 0 | Q53: =IFERROR(IF(OR($D$10="Homeflex 1",$D$10="Homeflex 2", $D$10="Homeflex 3",$D$10="Homeflex 4"),Q48/Homeflex_Total_Monthly_Energy*100,Q48/SPU_Total_Energy*100),0) -> 0 | R53: =IFERROR(Q53/P53-1,0) -> 0
B56: Summary High demand | D56: =Current_Period -> 2022/2023 | E56: =New_Period -> 2023/2024 | F56: % Change | K56: Summary Low demand | M56: =Current_Period -> 2022/2023 | N56: =New_Period -> 2023/2024 | O56: % Change
C58: Total Network Charges | D58: =G28 -> 1008.3125 | E58: =H28 -> 1196.2875 | F58: =I28 -> 0.1864253394 | L58: Total Network Charges | M58: =P28 -> 1008.3125 | N58: =Q28 -> 1196.2875 | O58: =R28 -> 0.1864253394
C59: Total Energy Charges | D59: =G39 -> 0 | E59: =H39 -> 0 | F59: =I39 -> 0 | L59: Total Energy Charges | M59: =P39 -> 0 | N59: =Q39 -> 0 | O59: =R39 -> 0
C60: Other Charges | D60: =G46 -> 0 | E60: =H46 -> 0 | F60: =I46 -> 0 | L60: Other Charges | M60: =P46 -> 0 | N60: =Q46 -> 0 | O60: =R46 -> 0
C63: VAT | D63: =G49 -> 151.246875 | E63: =H49 -> 179.443125 | F63: =I49 -> 0 | L63: VAT | M63: =P49 -> 151.246875 | N63: =Q49 -> 179.443125 | O63: =R49 -> 0
C65: Total Charges | D65: =G51 -> 1159.559375 | E65: =H51 -> 1375.730625 | F65: =IFERROR(E65/D65-1,0) -> 0.1864253394 | L65: Total Charges | M65: =P51 -> 1159.559375 | N65: =Q51 -> 1375.730625 | O65: =IFERROR(N65/M65-1,0) -> 0.1864253394
B72: Blocks
C73: Block 1 | D73: =IF(SPU_Total_Energy > SPU_Block_1_Upper, SPU_Block_1_Upper, SPU_Total_Energy) -> 0 | E73: =IF(D10 = Lists!B21, Block1_max_HL20A, Block1_max_HL60A) -> 600
C74: Block 2 | D74: =SPU_Total_Energy - D73 -> 0

Sheet FAQ (hidden)
B4: Frequently Asked Questions

Sheet Tariff Comparison
H2: Please select tariffs from the dropdown boxes to set up the Comparison Report.
B4: Comparison against other tariffs High Demand | R4: ='Monthly Average Bill'!I4 -> Landrate 4
H6: 4 | J6: =MATCH(H8,Full_Tariff_List,0) -> 5 | L6: 5 | N6: =MATCH(L8,Full_Tariff_List,0) -> 6 | P6: 2 | R6: =MATCH(P8,Full_Tariff_List,0) -> 4
D8: ='Monthly Average Bill'!I4 -> Landrate 4 | H8: =IFERROR(INDEX(Compare_Tariff_List,Dropdown_Compare_1),$D$8) -> Homelight 20A | L8: =IFERROR(INDEX(Compare_Tariff_List,Dropdown_Compare_2),$D$8) -> Homelight 60A | P8: =IFERROR(INDEX(Compare_Tariff_List,Dropdown_Compare_3),$D$8) -> Businessrate 4
D9: =IFERROR(INDEX(Compare_Long_Type,Selected_Compare_Tariff_ID),"") -> Rural | H9: =IFERROR(INDEX(Compare_Long_Type,Dropdown_Compare_1),"") -> Residential Urban | L9: =IFERROR(INDEX(Compare_Long_Type,Dropdown_Compare_2),"") -> Residential Urban | P9: =IFERROR(INDEX(Compare_Long_Type,Dropdown_Compare_3),"") -> Commercial Urban
B10: Comparison Tariffs | D10: =Current_Period -> 2022/2023 | E10: =New_Period -> 2023/2024 | F10: % Change | H10: =Current_Period -> 2022/2023 | I10: =New_Period -> 2023/2024 | J10: % Change | L10: =Current_Period -> 2022/2023 | M10: =New_Period -> 2023/2024 | N10: % Change | P10: =Current_Period -> 2022/2023 | Q10: =New_Period -> 2023/2024 | R10: % Change
C12: Network Charges | D12: ='Monthly Average Bill'!D58 -> 1008.3125 | E12: ='Monthly Average Bill'!E58 -> 1196.2875 | F12: =IFERROR(E12/D12-1,0) -> 0.1864253394 | H12: =IFERROR(SUMIFS(SPU_Network_Costs_Current,'Workings High'!$F$7:$AC$7,J$6),"") -> 0 | I12: =IFERROR(SUMIFS(SPU_Network_Costs_New,'Workings High'!$F$7:$AC$7,J$6),"") -> 0 | J12: =IFERROR(I12/H12-1,0) -> 0 | L12: =IFERROR(SUMIFS(SPU_Network_Costs_Current,'Workings High'!$F$7:$AC$7,N$6),"") -> 0 | M12: =IFERROR(SUMIFS(SPU_Network_Costs_New,'Workings High'!$F$7:$AC$7,N$6),"") -> 0 | N12: =IFERROR(M12/L12-1,0) -> 0 | P12: =IFERROR(SUMIFS(SPU_Network_Costs_Current,'Workings High'!$F$7:$AC$7,R$6),"") -> 0 | Q12: =IFERROR(SUMIFS(SPU_Network_Costs_New,'Workings High'!$F$7:$AC$7,R$6),"") -> 0 | R12: =IFERROR(Q12/P12-1,0) -> 0
C13: Energy Charges | D13: ='Monthly Average Bill'!D59 -> 0 | E13: ='Monthly Average Bill'!E59 -> 0 | F13: =IFERROR(E13/D13-1,0) -> 0 | H13: =IFERROR(SUMIFS(SPU_Energy_Charges_Current,'Workings High'!$F$7:$AC$7,J$6),"") -> 0 | I13: =IFERROR(SUMIFS(SPU_Energy_Charges_New,'Workings High'!$F$7:$AC$7,J$6),"") -> 0 | J13: =IFERROR(I13/H13-1,0) -> 0 | L13: =IFERROR(SUMIFS(SPU_Energy_Charges_Current,'Workings High'!$F$7:$AC$7,N$6),"") -> 0 | M13: =IFERROR(SUMIFS(SPU_Energy_Charges_New,'Workings High'!$F$7:$AC$7,N$6),"") -> 0 | N13: =IFERROR(M13/L13-1,0) -> 0 | P13: =IFERROR(SUMIFS(SPU_Energy_Charges_Current,'Workings High'!$F$7:$AC$7,R$6),"") -> 0 | Q13: =IFERROR(SUMIFS(SPU_Energy_Charges_New,'Workings High'!$F$7:$AC$7,R$6),"") -> 0 | R13: =IFERROR(Q13/P13-1,0) -> 0
C14: Other | D14: ='Monthly Average Bill'!D60 -> 0 | E14: ='Monthly Average Bill'!E60 -> 0 | F14: =IFERROR(E14/D14-1,0) -> 0 | H14: =IFERROR(SUMIFS(SPU_Other_Charges_Current,'Workings High'!$F$7:$AC$7,J$6),"") -> 0 | I14: =IFERROR(SUMIFS(SPU_Other_Charges_NEw,'Workings High'!$F$7:$AC$7,J$6),"") -> 0 | J14: =IFERROR(I14/H14-1,0) -> 0 | L14: =IFERROR(SUMIFS(SPU_Other_Charges_Current,'Workings High'!$F$7:$AC$7,N$6),"") -> 0 | M14: =IFERROR(SUMIFS(SPU_Other_Charges_NEw,'Workings High'!$F$7:$AC$7,N$6),"") -> 0 | N14: =IFERROR(M14/L14-1,0) -> 0 | P14: =IFERROR(SUMIFS(SPU_Other_Charges_Current,'Workings High'!$F$7:$AC$7,R$6),"") -> 0 | Q14: =IFERROR(SUMIFS(SPU_Other_Charges_NEw,'Workings High'!$F$7:$AC$7,R$6),"") -> 0 | R14: =IFERROR(Q14/P14-1,0) -> 0
C16: Total | D16: ='Monthly Average Bill'!G48 -> 1008.3125 | E16: ='Monthly Average Bill'!H48 -> 1196.2875 | F16: =IFERROR(E16/D16-1,0) -> 0.1864253394 | H16: =SUM(H12:H14) -> 0 | I16: =SUM(I12:I14) -> 0 | J16: =IFERROR(I16/H16-1,0) -> 0 | L16: =SUM(L12:L14) -> 0 | M16: =SUM(M12:M14) -> 0 | N16: =IFERROR(M16/L16-1,0) -> 0 | P16: =SUM(P12:P14) -> 0 | Q16: =SUM(Q12:Q14) -> 0 | R16: =IFERROR(Q16/P16-1,0) -> 0
C18: Average price c/kWh | D18: ='Monthly Average Bill'!G53 -> 0 | E18: ='Monthly Average Bill'!H53 -> 0 | F18: =IFERROR(E18/D18-1,0) -> 0 | H18: =IFERROR(H16/(SPU_Annual_Total_Energy)*100,0) -> 0 | I18: =IFERROR(I16/(SPU_Annual_Total_Energy)*100,0) -> 0 | J18: =IFERROR(I18/H18-1,0) -> 0 | L18: =IFERROR(L16/(SPU_Annual_Total_Energy)*100,0) -> 0 | M18: =IFERROR(M16/(SPU_Annual_Total_Energy)*100,0) -> 0 | N18: =IFERROR(M18/L18-1,0) -> 0 | P18: =IFERROR(P16/(SPU_Annual_Total_Energy)*100,0) -> 0 | Q18: =IFERROR(Q16/(SPU_Annual_Total_Energy)*100,0) -> 0 | R18: =IFERROR(Q18/P18-1,0) -> 0
B21: Total Comparison | D21: =Current_Period -> 2022/2023 | E21: =New_Period -> 2023/2024 | F21: % Change
C23: =D8 -> Landrate 4 | D23: =D16 -> 1008.3125 | E23: =E16 -> 1196.2875 | F23: =IFERROR(E23/D23-1,0) -> 0.1864253394
C24: =H8 -> Homelight 20A | D24: =H16 -> 0 | E24: =I16 -> 0 | F24: =IFERROR(E24/D24-1,0) -> 0
C25: =L8 -> Homelight 60A | D25: =L16 -> 0 | E25: =M16 -> 0 | F25: =IFERROR(E25/D25-1,0) -> 0
C26: =P8 -> Businessrate 4 | D26: =P16 -> 0 | E26: =Q16 -> 0 | F26: =IFERROR(E26/D26-1,0) -> 0
B35: Comparison against other tariffs Low Demand | R35: ='Monthly Average Bill'!I4 -> Landrate 4
H37: 3 | J37: =MATCH(H39,Full_Tariff_List,0) -> 5 | L37: 5 | N37: =MATCH(L39,Full_Tariff_List,0) -> 6 | P37: 7 | R37: =MATCH(P39,Full_Tariff_List,0) -> 4
D39: ='Monthly Average Bill'!I4 -> Landrate 4 | H39: =IFERROR(INDEX(Compare_Tariff_List,Dropdown_Compare_1),$D$8) -> Homelight 20A | L39: =IFERROR(INDEX(Compare_Tariff_List,Dropdown_Compare_2),$D$8) -> Homelight 60A | P39: =IFERROR(INDEX(Compare_Tariff_List,Dropdown_Compare_3),$D$8) -> Businessrate 4
D40: =IFERROR(INDEX(Compare_Long_Type,Selected_Compare_Tariff_ID),"") -> Rural | H40: =IFERROR(INDEX(Compare_Long_Type,Dropdown_Compare_1),"") -> Residential Urban | L40: =IFERROR(INDEX(Compare_Long_Type,Dropdown_Compare_2),"") -> Residential Urban | P40: =IFERROR(INDEX(Compare_Long_Type,Dropdown_Compare_3),"") -> Commercial Urban
B41: Comparison Tariffs | D41: =Current_Period -> 2022/2023 | E41: =New_Period -> 2023/2024 | F41: % Change | H41: =Current_Period -> 2022/2023 | I41: =New_Period -> 2023/2024 | J41: % Change | L41: =Current_Period -> 2022/2023 | M41: =New_Period -> 2023/2024 | N41: % Change | P41: =Current_Period -> 2022/2023 | Q41: =New_Period -> 2023/2024 | R41: % Change
C43: Network Charges | D43: ='Monthly Average Bill'!M58 -> 1008.3125 | E43: ='Monthly Average Bill'!N58 -> 1196.2875 | F43: =IFERROR(E43/D43-1,0) -> 0.1864253394 | H43: =IFERROR(SUMIFS('Workings Low'!SPU_Network_Costs_Current_Low,'Workings Low'!$F$7:$AC$7,J$6),"") -> 0 | I43: =IFERROR(SUMIFS('Workings Low'!SPU_Network_Costs_New_Low,'Workings Low'!$F$7:$AC$7,J$6),"") -> 0 | J43: =IFERROR(I43/H43-1,0) -> 0 | L43: =IFERROR(SUMIFS('Workings Low'!SPU_Network_Costs_Current_Low,'Workings Low'!$F$7:$AC$7,N$6),"") -> 0 | M43: =IFERROR(SUMIFS('Workings Low'!SPU_Network_Costs_New_Low,'Workings Low'!$F$7:$AC$7,N$6),"") -> 0 | N43: =IFERROR(M43/L43-1,0) -> 0 | P43: =IFERROR(SUMIFS('Workings Low'!SPU_Network_Costs_Current_Low,'Workings Low'!$F$7:$AC$7,R$6),"") -> 0 | Q43: =IFERROR(SUMIFS('Workings Low'!SPU_Network_Costs_New_Low,'Workings Low'!$F$7:$AC$7,R$6),"") -> 0 | R43: =IFERROR(Q43/P43-1,0) -> 0
C44: Energy Charges | D44: ='Monthly Average Bill'!M59 -> 0 | E44: ='Monthly Average Bill'!N59 -> 0 | F44: =IFERROR(E44/D44-1,0) -> 0 | H44: =IFERROR(SUMIFS('Workings Low'!SPU_Energy_Charges_Current_Low,'Workings Low'!$F$7:$AC$7,J$6),"") -> 0 | I44: =IFERROR(SUMIFS('Workings Low'!SPU_Energy_Charges_New_Low,'Workings Low'!$F$7:$AC$7,J$6),"") -> 0 | J44: =IFERROR(I44/H44-1,0) -> 0 | L44: =IFERROR(SUMIFS('Workings Low'!SPU_Energy_Charges_Current_Low,'Workings Low'!$F$7:$AC$7,N$6),"") -> 0 | M44: =IFERROR(SUMIFS('Workings Low'!SPU_Energy_Charges_New_Low,'Workings Low'!$F$7:$AC$7,N$6),"") -> 0 | N44: =IFERROR(M44/L44-1,0) -> 0 | P44: =IFERROR(SUMIFS('Workings Low'!SPU_Energy_Charges_Current_Low,'Workings Low'!$F$7:$AC$7,R$6),"") -> 0 | Q44: =IFERROR(SUMIFS('Workings Low'!SPU_Energy_Charges_New_Low,'Workings Low'!$F$7:$AC$7,R$6),"") -> 0 | R44: =IFERROR(Q44/P44-1,0) -> 0
C45: Other | D45: ='Monthly Average Bill'!M60 -> 0 | E45: ='Monthly Average Bill'!N60 -> 0 | F45: =IFERROR(E45/D45-1,0) -> 0 | H45: =IFERROR(SUMIFS('Workings Low'!SPU_Other_Charges_Current_Low,'Workings Low'!$F$7:$AC$7,J$6),"") -> 0 | I45: =IFERROR(SUMIFS('Workings Low'!SPU_Other_Charges_NEw_Low,'Workings Low'!$F$7:$AC$7,J$6),"") -> 0 | J45: =IFERROR(I45/H45-1,0) -> 0 | L45: =IFERROR(SUMIFS('Workings Low'!SPU_Other_Charges_Current_Low,'Workings Low'!$F$7:$AC$7,N$6),"") -> 0 | M45: =IFERROR(SUMIFS('Workings Low'!SPU_Other_Charges_NEw_Low,'Workings Low'!$F$7:$AC$7,N$6),"") -> 0 | N45: =IFERROR(M45/L45-1,0) -> 0 | P45: =IFERROR(SUMIFS('Workings Low'!SPU_Other_Charges_Current_Low,'Workings Low'!$F$7:$AC$7,R$6),"") -> 0 | Q45: =IFERROR(SUMIFS('Workings Low'!SPU_Other_Charges_NEw_Low,'Workings Low'!$F$7:$AC$7,R$6),"") -> 0 | R45: =IFERROR(Q45/P45-1,0) -> 0
C47: Total | D47: ='Monthly Average Bill'!P48 -> 1008.3125 | E47: ='Monthly Average Bill'!Q48 -> 1196.2875 | F47: =IFERROR(E47/D47-1,0) -> 0.1864253394 | H47: =SUM(H43:H45) -> 0 | I47: =SUM(I43:I45) -> 0 | J47: =IFERROR(I47/H47-1,0) -> 0 | L47: =SUM(L43:L45) -> 0 | M47: =SUM(M43:M45) -> 0 | N47: =IFERROR(M47/L47-1,0) -> 0 | P47: =SUM(P43:P45) -> 0 | Q47: =SUM(Q43:Q45) -> 0 | R47: =IFERROR(Q47/P47-1,0) -> 0
C49: Average price c/kWh | D49: ='Monthly Average Bill'!P53 -> 0 | E49: ='Monthly Average Bill'!Q53 -> 0 | F49: =IFERROR(E49/D49-1,0) -> 0 | H49: =IFERROR(H47/(SPU_Annual_Total_Energy)*100,0) -> 0 | I49: =IFERROR(I47/(SPU_Annual_Total_Energy)*100,0) -> 0 | J49: =IFERROR(I49/H49-1,0) -> 0 | L49: =IFERROR(L47/(SPU_Annual_Total_Energy)*100,0) -> 0 | M49: =IFERROR(M47/(SPU_Annual_Total_Energy)*100,0) -> 0 | N49: =IFERROR(M49/L49-1,0) -> 0 | P49: =IFERROR(P47/(SPU_Annual_Total_Energy)*100,0) -> 0 | Q49: =IFERROR(Q47/(SPU_Annual_Total_Energy)*100,0) -> 0 | R49: =IFERROR(Q49/P49-1,0) -> 0
B52: Total Comparison | D52: =Current_Period -> 2022/2023 | E52: =New_Period -> 2023/2024 | F52: % Change
C54: =D39 -> Landrate 4 | D54: =D47 -> 1008.3125 | E54: =E47 -> 1196.2875 | F54: =IFERROR(E54/D54-1,0) -> 0.1864253394
C55: =H39 -> Homelight 20A | D55: =H47 -> 0 | E55: =I47 -> 0 | F55: =IFERROR(E55/D55-1,0) -> 0
C56: =L39 -> Homelight 60A | D56: =L47 -> 0 | E56: =M47 -> 0 | F56: =IFERROR(E56/D56-1,0) -> 0
C57: =P39 -> Businessrate 4 | D57: =P47 -> 0 | E57: =Q47 -> 0 | F57: =IFERROR(E57/D57-1,0) -> 0
C110: Descriptions
C111: Rates Comparison
C112: Average Price

Sheet Rates Table (hidden)
B4: Rates by Tariff
B6: Tariffs | E6: =Selected_Base_Tariff -> Landrate 4 | F6: =INDEX(Full_Tariff_List,F$7,) -> Businessrate 1 | G6: Businessrate 2 | H6: Businessrate 3 | I6: Businessrate 4 | J6: Homelight 20A | K6: Homelight 60A | L6: Homepower 1 | M6: Homepower 2 | N6: Homepower 3 | O6: Homepower 4 | P6: Homepower Bulk | Q6: Landrate 1 | R6: Landrate 2 | S6: Landrate 3 | T6: Landrate 4 | U6: Landrate Dx | V6: Landlight 20A | W6: Landlight 60A | X6: Public Lighting All Night | Y6: Public Lighting 24 Hours | Z6: Homeflex 1 | AA6: Homeflex 2 | AB6: Homeflex 3 | AC6: Homeflex 4 | AE6: =E6 -> Landrate 4 | AF6: Businessrate 1 | AG6: Businessrate 2 | AH6: Businessrate 3 | AI6: Businessrate 4 | AJ6: Homelight 20A | AK6: Homelight 60A | AL6: Homepower 1 | AM6: Homepower 2 | AN6: Homepower 3 | AO6: Homepower 4 | AP6: Homepower Bulk | AQ6: Landrate 1 | AR6: Landrate 2 | AS6: Landrate 3 | AT6: Landrate 4 | AU6: Landrate Dx | AV6: Landlight 20A | AW6: Landlight 60A | AX6: Public Lighting All Night | AY6: Public Lighting 24 Hours | AZ6: =Z6 -> Homeflex 1 | BA6: =AA6 -> Homeflex 2 | BB6: =AB6 -> Homeflex 3 | BC6: =AC6 -> Homeflex 4
F7: 1 | G7: =F7+1 -> 2 | H7: =G7+1 -> 3 | I7: 4 | J7: 5 | K7: 6 | L7: 7 | M7: 8 | N7: 9 | O7: 10 | P7: 11 | Q7: 12 | R7: 13 | S7: 14 | T7: 15 | U7: =T7+1 -> 16 | V7: =U7+1 -> 17 | W7: =V7+1 -> 18 | X7: =W7+1 -> 19 | Y7: =X7+1 -> 20 | Z7: =Y7+8 -> 28 | AA7: =Z7+1 -> 29 | AB7: =AA7+1 -> 30 | AC7: =AB7+1 -> 31
B8: Network charges | D8: Units | E8: =Current_Period&" Rates" -> 2022/2023 Rates | F8: 2022/2023 Rates | G8: 2022/2023 Rates | H8: 2022/2023 Rates | I8: 2022/2023 Rates | J8: 2022/2023 Rates | K8: 2022/2023 Rates | L8: 2022/2023 Rates | M8: 2022/2023 Rates | N8: 2022/2023 Rates | O8: 2022/2023 Rates | P8: 2022/2023 Rates | Q8: 2022/2023 Rates | R8: 2022/2023 Rates | S8: 2022/2023 Rates | T8: 2022/2023 Rates | U8: 2022/2023 Rates | V8: 2022/2023 Rates | W8: 2022/2023 Rates | X8: 2022/2023 Rates | Y8: 2022/2023 Rates | Z8: 2022/2023 Rates | AA8: 2022/2023 Rates | AB8: 2022/2023 Rates | AC8: 2022/2023 Rates | AE8: =New_Period&" Rates" -> 2023/2024 Rates | AF8: =AE8 -> 2023/2024 Rates | AG8: =AF8 -> 2023/2024 Rates | AH8: 2023/2024 Rates | AI8: 2023/2024 Rates | AJ8: 2023/2024 Rates | AK8: 2023/2024 Rates | AL8: 2023/2024 Rates | AM8: 2023/2024 Rates | AN8: 2023/2024 Rates | AO8: 2023/2024 Rates | AP8: 2023/2024 Rates | AQ8: 2023/2024 Rates | AR8: 2023/2024 Rates | AS8: 2023/2024 Rates | AT8: 2023/2024 Rates | AU8: =AT8 -> 2023/2024 Rates | AV8: =AU8 -> 2023/2024 Rates | AW8: =AV8 -> 2023/2024 Rates | AX8: =AW8 -> 2023/2024 Rates | AY8: =AX8 -> 2023/2024 Rates | AZ8: =AY8 -> 2023/2024 Rates | BA8: =AZ8 -> 2023/2024 Rates | BB8: =BA8 -> 2023/2024 Rates | BC8: =BB8 -> 2023/2024 Rates
C10: Distribution network demand charge | D10: c/kWh | E10: =SUMIFS(F10:AC10,$F$7:$AC$7,Selected_Tariff_ID) -> 38.94 | F10: =INDEX(Rates_AllOther_Current[Network demand charge '[c/kWh']],MATCH(F$37,Rates_AllOther_Current[Code],0)) -> 22.11 | G10: =INDEX(Rates_AllOther_Current[Network demand charge '[c/kWh']],MATCH(G$37,Rates_AllOther_Current[Code],0)) -> 22.11 | H10: =INDEX(Rates_AllOther_Current[Network demand charge '[c/kWh']],MATCH(H$37,Rates_AllOther_Current[Code],0)) -> 22.11 | I10: =INDEX(Rates_AllOther_Current[Network demand charge '[c/kWh']],MATCH(I$37,Rates_AllOther_Current[Code],0)) -> 22.11 | J10: =INDEX(Rates_AllOther_Current[Network demand charge '[c/kWh']],MATCH(J$37,Rates_AllOther_Current[Code],0)) -> 0 | K10: =INDEX(Rates_AllOther_Current[Network demand charge '[c/kWh']],MATCH(K$37,Rates_AllOther_Current[Code],0)) -> 0 | L10: =INDEX(Rates_AllOther_Current[Network demand charge '[c/kWh']],MATCH(L$37,Rates_AllOther_Current[Code],0)) -> 0 | M10: =INDEX(Rates_AllOther_Current[Network demand charge '[c/kWh']],MATCH(M$37,Rates_AllOther_Current[Code],0)) -> 0 | N10: =INDEX(Rates_AllOther_Current[Network demand charge '[c/kWh']],MATCH(N$37,Rates_AllOther_Current[Code],0)) -> 0 | O10: =INDEX(Rates_AllOther_Current[Network demand charge '[c/kWh']],MATCH(O$37,Rates_AllOther_Current[Code],0)) -> 0 | P10: =INDEX(Rates_AllOther_Current[Network demand charge '[c/kWh']],MATCH(P$37,Rates_AllOther_Current[Code],0)) -> 0 | Q10: =INDEX(Rates_AllOther_Current[Network demand charge '[c/kWh']],MATCH(Q$37,Rates_AllOther_Current[Code],0)) -> 38.94 | R10: =INDEX(Rates_AllOther_Current[Network demand charge '[c/kWh']],MATCH(R$37,Rates_AllOther_Current[Code],0)) -> 38.94 | S10: =INDEX(Rates_AllOther_Current[Network demand charge '[c/kWh']],MATCH(S$37,Rates_AllOther_Current[Code],0)) -> 38.94 | T10: =INDEX(Rates_AllOther_Current[Network demand charge '[c/kWh']],MATCH(T$37,Rates_AllOther_Current[Code],0)) -> 38.94 | U10: =INDEX(Rates_AllOther_Current[Network demand charge '[c/kWh']],MATCH(U$37,Rates_AllOther_Current[Code],0)) -> 0 | V10: =INDEX(Rates_AllOther_Current[Network demand charge '[c/kWh']],MATCH(V$37,Rates_AllOther_Current[Code],0)) -> 0 | W10: =INDEX(Rates_AllOther_Current[Network demand charge '[c/kWh']],MATCH(W$37,Rates_AllOther_Current[Code],0)) -> 0 | X10: =INDEX(Rates_AllOther_Current[Network demand charge '[c/kWh']],MATCH(X$37,Rates_AllOther_Current[Code],0)) -> 0 | Y10: =INDEX(Rates_AllOther_Current[Network demand charge '[c/kWh']],MATCH(Y$37,Rates_AllOther_Current[Code],0)) -> 0 | Z10: n/a | AA10: n/a | AB10: n/a | AC10: n/a | AE10: =SUMIFS(AF10:BC10,$F$7:$AC$7,Selected_Tariff_ID) -> 46.2 | AF10: =INDEX(Rates_AllOther_New[Network demand charge '[c/kWh']],MATCH(AF$37,Rates_AllOther_New[Code],0)) -> 26.23 | AG10: =INDEX(Rates_AllOther_New[Network demand charge '[c/kWh']],MATCH(AG$37,Rates_AllOther_New[Code],0)) -> 26.23 | AH10: =INDEX(Rates_AllOther_New[Network demand charge '[c/kWh']],MATCH(AH$37,Rates_AllOther_New[Code],0)) -> 26.23 | AI10: =INDEX(Rates_AllOther_New[Network demand charge '[c/kWh']],MATCH(AI$37,Rates_AllOther_New[Code],0)) -> 26.23 | AJ10: =INDEX(Rates_AllOther_New[Network demand charge '[c/kWh']],MATCH(AJ$37,Rates_AllOther_New[Code],0)) -> 0 | AK10: =INDEX(Rates_AllOther_New[Network demand charge '[c/kWh']],MATCH(AK$37,Rates_AllOther_New[Code],0)) -> 0 | AL10: =INDEX(Rates_AllOther_New[Network demand charge '[c/kWh']],MATCH(AL$37,Rates_AllOther_New[Code],0)) -> 0 | AM10: =INDEX(Rates_AllOther_New[Network demand charge '[c/kWh']],MATCH(AM$37,Rates_AllOther_New[Code],0)) -> 0 | AN10: =INDEX(Rates_AllOther_New[Network demand charge '[c/kWh']],MATCH(AN$37,Rates_AllOther_New[Code],0)) -> 0 | AO10: =INDEX(Rates_AllOther_New[Network demand charge '[c/kWh']],MATCH(AO$37,Rates_AllOther_New[Code],0)) -> 0 | AP10: =INDEX(Rates_AllOther_New[Network demand charge '[c/kWh']],MATCH(AP$37,Rates_AllOther_New[Code],0)) -> 0 | AQ10: =INDEX(Rates_AllOther_New[Network demand charge '[c/kWh']],MATCH(AQ$37,Rates_AllOther_New[Code],0)) -> 46.2 | AR10: =INDEX(Rates_AllOther_New[Network demand charge '[c/kWh']],MATCH(AR$37,Rates_AllOther_New[Code],0)) -> 46.2 | AS10: =INDEX(Rates_AllOther_New[Network demand charge '[c/kWh']],MATCH(AS$37,Rates_AllOther_New[Code],0)) -> 46.2 | AT10: =INDEX(Rates_AllOther_New[Network demand charge '[c/kWh']],MATCH(AT$37,Rates_AllOther_New[Code],0)) -> 46.2 | AU10: =INDEX(Rates_AllOther_New[Network demand charge '[c/kWh']],MATCH(AU$37,Rates_AllOther_New[Code],0)) -> 0 | AV10: =INDEX(Rates_AllOther_New[Network demand charge '[c/kWh']],MATCH(AV$37,Rates_AllOther_New[Code],0)) -> 0 | AW10: =INDEX(Rates_AllOther_New[Network demand charge '[c/kWh']],MATCH(AW$37,Rates_AllOther_New[Code],0)) -> 0 | AX10: =INDEX(Rates_AllOther_New[Network demand charge '[c/kWh']],MATCH(AX$37,Rates_AllOther_New[Code],0)) -> 0 | AY10: =INDEX(Rates_AllOther_New[Network demand charge '[c/kWh']],MATCH(AY$37,Rates_AllOther_New[Code],0)) -> 0 | AZ10: n/a | BA10: n/a | BB10: n/a | BC10: n/a
C11: Network demand charge, Ancillary service charge and retail | D11: c/kWh | E11: =SUMIFS(F11:AC11,$F$7:$AC$7,Selected_Tariff_ID) -> 0 | Z11: =INDEX(Rates_AllOther_Current[Network demand charge, Ancillary service charge and retail '[c/kWh']],MATCH(Z$37,Rates_AllOther_Current[Code],0)) -> 0 | AA11: =INDEX(Rates_AllOther_Current[Network demand charge, Ancillary service charge and retail '[c/kWh']],MATCH(AA$37,Rates_AllOther_Current[Code],0)) -> 0 | AB11: =INDEX(Rates_AllOther_Current[Network demand charge, Ancillary service charge and retail '[c/kWh']],MATCH(AB$37,Rates_AllOther_Current[Code],0)) -> 0 | AC11: =INDEX(Rates_AllOther_Current[Network demand charge, Ancillary service charge and retail '[c/kWh']],MATCH(AC$37,Rates_AllOther_Current[Code],0)) -> 0 | AE11: =SUMIFS(AF11:BC11,$F$7:$AC$7,Selected_Tariff_ID) -> 0 | AZ11: =INDEX(Rates_AllOther_New[Network demand charge, Ancillary service charge and retail '[c/kWh']],MATCH(AZ$37,Rates_AllOther_New[Code],0)) -> 112.11 | BA11: =INDEX(Rates_AllOther_New[Network demand charge, Ancillary service charge and retail '[c/kWh']],MATCH(BA$37,Rates_AllOther_New[Code],0)) -> 112.11 | BB11: =INDEX(Rates_AllOther_New[Network demand charge, Ancillary service charge and retail '[c/kWh']],MATCH(BB$37,Rates_AllOther_New[Code],0)) -> 112.11 | BC11: =INDEX(Rates_AllOther_New[Network demand charge, Ancillary service charge and retail '[c/kWh']],MATCH(BC$37,Rates_AllOther_New[Code],0)) -> 112.11
C12: Network capacity charge | D12: =IF(Table_1=1,"R/kVA","R/day") -> R/day | E12: =SUMIFS(F12:AC12,$F$7:$AC$7,Selected_Tariff_ID) -> 33.15 | F12: =INDEX(Rates_AllOther_Current[Network capacity charge '[R/POD/day']],MATCH(F$37,Rates_AllOther_Current[Code],0)) -> 31.75 | G12: =INDEX(Rates_AllOther_Current[Network capacity charge '[R/POD/day']],MATCH(G$37,Rates_AllOther_Current[Code],0)) -> 53.5 | H12: =INDEX(Rates_AllOther_Current[Network capacity charge '[R/POD/day']],MATCH(H$37,Rates_AllOther_Current[Code],0)) -> 92.43 | I12: =INDEX(Rates_AllOther_Current[Network capacity charge '[R/POD/day']],MATCH(I$37,Rates_AllOther_Current[Code],0)) -> 0 | J12: =INDEX(Rates_AllOther_Current[Network capacity charge '[R/POD/day']],MATCH(J$37,Rates_AllOther_Current[Code],0)) -> 0 | K12: =INDEX(Rates_AllOther_Current[Network capacity charge '[R/POD/day']],MATCH(K$37,Rates_AllOther_Current[Code],0)) -> 0 | L12: =INDEX(Rates_AllOther_Current[Network capacity charge '[R/POD/day']],MATCH(L$37,Rates_AllOther_Current[Code],0)) -> 7.86 | M12: =INDEX(Rates_AllOther_Current[Network capacity charge '[R/POD/day']],MATCH(M$37,Rates_AllOther_Current[Code],0)) -> 14.73 | N12: =INDEX(Rates_AllOther_Current[Network capacity charge '[R/POD/day']],MATCH(N$37,Rates_AllOther_Current[Code],0)) -> 30.42 | O12: =INDEX(Rates_AllOther_Current[Network capacity charge '[R/POD/day']],MATCH(O$37,Rates_AllOther_Current[Code],0)) -> 4.8 | P12: =INDEX(Rates_AllOther_Current[Network capacity charge '[R/POD/day']],MATCH(P$37,Rates_AllOther_Current[Code],0)) -> 49.88 | Q12: =INDEX(Rates_AllOther_Current[Network capacity charge '[R/POD/day']],MATCH(Q$37,Rates_AllOther_Current[Code],0)) -> 41.63 | R12: =INDEX(Rates_AllOther_Current[Network capacity charge '[R/POD/day']],MATCH(R$37,Rates_AllOther_Current[Code],0)) -> 63.99 | S12: =INDEX(Rates_AllOther_Current[Network capacity charge '[R/POD/day']],MATCH(S$37,Rates_AllOther_Current[Code],0)) -> 102.3 | T12: =INDEX(Rates_AllOther_Current[Network capacity charge '[R/POD/day']],MATCH(T$37,Rates_AllOther_Current[Code],0)) -> 33.15 | U12: =INDEX(Rates_AllOther_Current[Network capacity charge '[R/POD/day']],MATCH(U$37,Rates_AllOther_Current[Code],0)) -> 0 | V12: =INDEX(Rates_AllOther_Current[Network capacity charge '[R/POD/day']],MATCH(V$37,Rates_AllOther_Current[Code],0)) -> 0 | W12: =INDEX(Rates_AllOther_Current[Network capacity charge '[R/POD/day']],MATCH(W$37,Rates_AllOther_Current[Code],0)) -> 0 | X12: =INDEX(Rates_AllOther_Current[Network capacity charge '[R/POD/day']],MATCH(X$37,Rates_AllOther_Current[Code],0)) -> 0 | Y12: =INDEX(Rates_AllOther_Current[Network capacity charge '[R/POD/day']],MATCH(Y$37,Rates_AllOther_Current[Code],0)) -> 0 | Z12: =INDEX(Rates_AllOther_Current[Network capacity charge '[R/POD/day']],MATCH(Z$37,Rates_AllOther_Current[Code],0)) -> 0 | AA12: =INDEX(Rates_AllOther_Current[Network capacity charge '[R/POD/day']],MATCH(AA$37,Rates_AllOther_Current[Code],0)) -> 0 | AB12: =INDEX(Rates_AllOther_Current[Network capacity charge '[R/POD/day']],MATCH(AB$37,Rates_AllOther_Current[Code],0)) -> 0 | AC12: =INDEX(Rates_AllOther_Current[Network capacity charge '[R/POD/day']],MATCH(AC$37,Rates_AllOther_Current[Code],0)) -> 0 | AE12: =SUMIFS(AF12:BC12,$F$7:$AC$7,Selected_Tariff_ID) -> 39.33 | AF12: =INDEX(Rates_AllOther_New[Network capacity charge '[R/POD/day']],MATCH(AF$37,Rates_AllOther_New[Code],0)) -> 37.67 | AG12: =INDEX(Rates_AllOther_New[Network capacity charge '[R/POD/day']],MATCH(AG$37,Rates_AllOther_New[Code],0)) -> 63.48 | AH12: =INDEX(Rates_AllOther_New[Network capacity charge '[R/POD/day']],MATCH(AH$37,Rates_AllOther_New[Code],0)) -> 109.67 | AI12: =INDEX(Rates_AllOther_New[Network capacity charge '[R/POD/day']],MATCH(AI$37,Rates_AllOther_New[Code],0)) -> 0 | AJ12: =INDEX(Rates_AllOther_New[Network capacity charge '[R/POD/day']],MATCH(AJ$37,Rates_AllOther_New[Code],0)) -> 0 | AK12: =INDEX(Rates_AllOther_New[Network capacity charge '[R/POD/day']],MATCH(AK$37,Rates_AllOther_New[Code],0)) -> 0 | AL12: =INDEX(Rates_AllOther_New[Network capacity charge '[R/POD/day']],MATCH(AL$37,Rates_AllOther_New[Code],0)) -> 9.33 | AM12: =INDEX(Rates_AllOther_New[Network capacity charge '[R/POD/day']],MATCH(AM$37,Rates_AllOther_New[Code],0)) -> 17.48 | AN12: =INDEX(Rates_AllOther_New[Network capacity charge '[R/POD/day']],MATCH(AN$37,Rates_AllOther_New[Code],0)) -> 36.09 | AO12: =INDEX(Rates_AllOther_New[Network capacity charge '[R/POD/day']],MATCH(AO$37,Rates_AllOther_New[Code],0)) -> 5.7 | AP12: =INDEX(Rates_AllOther_New[Network capacity charge '[R/POD/day']],MATCH(AP$37,Rates_AllOther_New[Code],0)) -> 59.18 | AQ12: =INDEX(Rates_AllOther_New[Network capacity charge '[R/POD/day']],MATCH(AQ$37,Rates_AllOther_New[Code],0)) -> 49.39 | AR12: =INDEX(Rates_AllOther_New[Network capacity charge '[R/POD/day']],MATCH(AR$37,Rates_AllOther_New[Code],0)) -> 75.92 | AS12: =INDEX(Rates_AllOther_New[Network capacity charge '[R/POD/day']],MATCH(AS$37,Rates_AllOther_New[Code],0)) -> 121.38 | AT12: =INDEX(Rates_AllOther_New[Network capacity charge '[R/POD/day']],MATCH(AT$37,Rates_AllOther_New[Code],0)) -> 39.33 | AU12: =INDEX(Rates_AllOther_New[Network capacity charge '[R/POD/day']],MATCH(AU$37,Rates_AllOther_New[Code],0)) -> 0 | AV12: =INDEX(Rates_AllOther_New[Network capacity charge '[R/POD/day']],MATCH(AV$37,Rates_AllOther_New[Code],0)) -> 0 | AW12: =INDEX(Rates_AllOther_New[Network capacity charge '[R/POD/day']],MATCH(AW$37,Rates_AllOther_New[Code],0)) -> 0 | AX12: =INDEX(Rates_AllOther_New[Network capacity charge '[R/POD/day']],MATCH(AX$37,Rates_AllOther_New[Code],0)) -> 0 | AY12: =INDEX(Rates_AllOther_New[Network capacity charge '[R/POD/day']],MATCH(AY$37,Rates_AllOther_New[Code],0)) -> 0 | AZ12: =INDEX(Rates_AllOther_New[Network capacity charge '[R/POD/day']],MATCH(AZ$37,Rates_AllOther_New[Code],0)) -> 9.33 | BA12: =INDEX(Rates_AllOther_New[Network capacity charge '[R/POD/day']],MATCH(BA$37,Rates_AllOther_New[Code],0)) -> 17.48 | BB12: =INDEX(Rates_AllOther_New[Network capacity charge '[R/POD/day']],MATCH(BB$37,Rates_AllOther_New[Code],0)) -> 36.09 | BC12: =INDEX(Rates_AllOther_New[Network capacity charge '[R/POD/day']],MATCH(BC$37,Rates_AllOther_New[Code],0)) -> 5.7
B14: Total network charges
B16: Energy charges - High | D16: Units | E16: =E$8 -> 2022/2023 Rates | F16: =F$8 -> 2022/2023 Rates | G16: 2022/2023 Rates | H16: 2022/2023 Rates | I16: 2022/2023 Rates | J16: 2022/2023 Rates | K16: 2022/2023 Rates | L16: 2022/2023 Rates | M16: 2022/2023 Rates | N16: 2022/2023 Rates | O16: 2022/2023 Rates | P16: 2022/2023 Rates | Q16: 2022/2023 Rates | R16: 2022/2023 Rates | S16: 2022/2023 Rates | T16: 2022/2023 Rates | U16: 2022/2023 Rates | V16: 2022/2023 Rates | W16: 2022/2023 Rates | X16: 2022/2023 Rates | Y16: 2022/2023 Rates | Z16: 2022/2023 Rates | AA16: 2022/2023 Rates | AB16: 2022/2023 Rates | AC16: 2022/2023 Rates | AE16: =AE$8 -> 2023/2024 Rates | AF16: =AF$8 -> 2023/2024 Rates | AG16: 2023/2024 Rates | AH16: 2023/2024 Rates | AI16: 2023/2024 Rates | AJ16: 2023/2024 Rates | AK16: 2023/2024 Rates | AL16: 2023/2024 Rates | AM16: 2023/2024 Rates | AN16: 2023/2024 Rates | AO16: 2023/2024 Rates | AP16: 2023/2024 Rates | AQ16: 2023/2024 Rates | AR16: 2023/2024 Rates | AS16: 2023/2024 Rates | AT16: 2023/2024 Rates | AU16: 2023/2024 Rates | AV16: 2023/2024 Rates | AW16: 2023/2024 Rates | AX16: 2023/2024 Rates | AY16: 2023/2024 Rates | AZ16: 2023/2024 Rates | BA16: 2023/2024 Rates | BB16: 2023/2024 Rates | BC16: 2023/2024 Rates
C18: Energy | D18: c/kWh | E18: =SUMIFS(F18:AC18,$F$7:$AC$7,Selected_Tariff_ID) -> 336.63 | F18: =INDEX(Rates_AllOther_Current[Energy charge '[c/kWh']],MATCH(F$37,Rates_AllOther_Current[Code],0)) -> 156.62 | G18: =INDEX(Rates_AllOther_Current[Energy charge '[c/kWh']],MATCH(G$37,Rates_AllOther_Current[Code],0)) -> 156.62 | H18: =INDEX(Rates_AllOther_Current[Energy charge '[c/kWh']],MATCH(H$37,Rates_AllOther_Current[Code],0)) -> 156.62 | I18: =INDEX(Rates_AllOther_Current[Energy charge '[c/kWh']],MATCH(I$37,Rates_AllOther_Current[Code],0)) -> 421.49 | J18: =INDEX(Rates_AllOther_Current[Energy charge '[c/kWh']],MATCH(J$37,Rates_AllOther_Current[Code],0)) -> 0 | K18: =INDEX(Rates_AllOther_Current[Energy charge '[c/kWh']],MATCH(K$37,Rates_AllOther_Current[Code],0)) -> 0 | L18: =INDEX(Rates_AllOther_Current[Energy charge '[c/kWh']],MATCH(L$37,Rates_AllOther_Current[Code],0)) -> 0 | M18: =INDEX(Rates_AllOther_Current[Energy charge '[c/kWh']],MATCH(M$37,Rates_AllOther_Current[Code],0)) -> 0 | N18: =INDEX(Rates_AllOther_Current[Energy charge '[c/kWh']],MATCH(N$37,Rates_AllOther_Current[Code],0)) -> 0 | O18: =INDEX(Rates_AllOther_Current[Energy charge '[c/kWh']],MATCH(O$37,Rates_AllOther_Current[Code],0)) -> 0 | P18: =INDEX(Rates_AllOther_Current[Energy charge '[c/kWh']],MATCH(P$37,Rates_AllOther_Current[Code],0)) -> 241.01 | Q18: =INDEX(Rates_AllOther_Current[Energy charge '[c/kWh']],MATCH(Q$37,Rates_AllOther_Current[Code],0)) -> 155.85 | R18: =INDEX(Rates_AllOther_Current[Energy charge '[c/kWh']],MATCH(R$37,Rates_AllOther_Current[Code],0)) -> 155.85 | S18: =INDEX(Rates_AllOther_Current[Energy charge '[c/kWh']],MATCH(S$37,Rates_AllOther_Current[Code],0)) -> 155.85 | T18: =INDEX(Rates_AllOther_Current[Energy charge '[c/kWh']],MATCH(T$37,Rates_AllOther_Current[Code],0)) -> 336.63 | U18: =INDEX(Rates_AllOther_Current[Energy charge '[c/kWh']],MATCH(U$37,Rates_AllOther_Current[Code],0)) -> 0 | V18: =INDEX(Rates_AllOther_Current[Energy charge '[c/kWh']],MATCH(V$37,Rates_AllOther_Current[Code],0)) -> 448.16 | W18: =INDEX(Rates_AllOther_Current[Energy charge '[c/kWh']],MATCH(W$37,Rates_AllOther_Current[Code],0)) -> 577.73 | X18: =INDEX(Rates_AllOther_Current[Energy charge '[c/kWh']],MATCH(X$37,Rates_AllOther_Current[Code],0)) -> 124.64 | Y18: =INDEX(Rates_AllOther_Current[Energy charge '[c/kWh']],MATCH(Y$37,Rates_AllOther_Current[Code],0)) -> 166.89 | Z18: =INDEX(Rates_AllOther_Current[Energy charge '[c/kWh']],MATCH(Z$37,Rates_AllOther_Current[Code],0)) -> 0 | AA18: =INDEX(Rates_AllOther_Current[Energy charge '[c/kWh']],MATCH(AA$37,Rates_AllOther_Current[Code],0)) -> 0 | AB18: =INDEX(Rates_AllOther_Current[Energy charge '[c/kWh']],MATCH(AB$37,Rates_AllOther_Current[Code],0)) -> 0 | AC18: =INDEX(Rates_AllOther_Current[Energy charge '[c/kWh']],MATCH(AC$37,Rates_AllOther_Current[Code],0)) -> 0 | AE18: =SUMIFS(AF18:BC18,$F$7:$AC$7,Selected_Tariff_ID) -> 399.41 | AF18: =INDEX(Rates_AllOther_New[Energy charge '[c/kWh']],MATCH(AF$37,Rates_AllOther_New[Code],0)) -> 185.83 | AG18: =INDEX(Rates_AllOther_New[Energy charge '[c/kWh']],MATCH(AG$37,Rates_AllOther_New[Code],0)) -> 185.83 | AH18: =INDEX(Rates_AllOther_New[Energy charge '[c/kWh']],MATCH(AH$37,Rates_AllOther_New[Code],0)) -> 185.83 | AI18: =INDEX(Rates_AllOther_New[Energy charge '[c/kWh']],MATCH(AI$37,Rates_AllOther_New[Code],0)) -> 500.1 | AJ18: =INDEX(Rates_AllOther_New[Energy charge '[c/kWh']],MATCH(AJ$37,Rates_AllOther_New[Code],0)) -> 0 | AK18: =INDEX(Rates_AllOther_New[Energy charge '[c/kWh']],MATCH(AK$37,Rates_AllOther_New[Code],0)) -> 0 | AL18: =INDEX(Rates_AllOther_New[Energy charge '[c/kWh']],MATCH(AL$37,Rates_AllOther_New[Code],0)) -> 0 | AM18: =INDEX(Rates_AllOther_New[Energy charge '[c/kWh']],MATCH(AM$37,Rates_AllOther_New[Code],0)) -> 0 | AN18: =INDEX(Rates_AllOther_New[Energy charge '[c/kWh']],MATCH(AN$37,Rates_AllOther_New[Code],0)) -> 0 | AO18: =INDEX(Rates_AllOther_New[Energy charge '[c/kWh']],MATCH(AO$37,Rates_AllOther_New[Code],0)) -> 0 | AP18: =INDEX(Rates_AllOther_New[Energy charge '[c/kWh']],MATCH(AP$37,Rates_AllOther_New[Code],0)) -> 285.96 | AQ18: =INDEX(Rates_AllOther_New[Energy charge '[c/kWh']],MATCH(AQ$37,Rates_AllOther_New[Code],0)) -> 184.92 | AR18: =INDEX(Rates_AllOther_New[Energy charge '[c/kWh']],MATCH(AR$37,Rates_AllOther_New[Code],0)) -> 184.92 | AS18: =INDEX(Rates_AllOther_New[Energy charge '[c/kWh']],MATCH(AS$37,Rates_AllOther_New[Code],0)) -> 184.92 | AT18: =INDEX(Rates_AllOther_New[Energy charge '[c/kWh']],MATCH(AT$37,Rates_AllOther_New[Code],0)) -> 399.41 | AU18: =INDEX(Rates_AllOther_New[Energy charge '[c/kWh']],MATCH(AU$37,Rates_AllOther_New[Code],0)) -> 0 | AV18: =INDEX(Rates_AllOther_New[Energy charge '[c/kWh']],MATCH(AV$37,Rates_AllOther_New[Code],0)) -> 531.74 | AW18: =INDEX(Rates_AllOther_New[Energy charge '[c/kWh']],MATCH(AW$37,Rates_AllOther_New[Code],0)) -> 685.48 | AX18: =INDEX(Rates_AllOther_New[Energy charge '[c/kWh']],MATCH(AX$37,Rates_AllOther_New[Code],0)) -> 147.89 | AY18: =INDEX(Rates_AllOther_New[Energy charge '[c/kWh']],MATCH(AY$37,Rates_AllOther_New[Code],0)) -> 198.01 | AZ18: =INDEX(Rates_AllOther_New[Energy charge '[c/kWh']],MATCH(AZ$37,Rates_AllOther_New[Code],0)) -> 0 | BA18: =INDEX(Rates_AllOther_New[Energy charge '[c/kWh']],MATCH(BA$37,Rates_AllOther_New[Code],0)) -> 0 | BB18: =INDEX(Rates_AllOther_New[Energy charge '[c/kWh']],MATCH(BB$37,Rates_AllOther_New[Code],0)) -> 0 | BC18: =INDEX(Rates_AllOther_New[Energy charge '[c/kWh']],MATCH(BC$37,Rates_AllOther_New[Code],0)) -> 0
C19: Peak consumption | D19: c/kWh | E19: 0 | Z19: =INDEX(Rates_AllOther_Current[High - Peak],MATCH(Z$37,Rates_AllOther_Current[Code],0)) -> 0 | AA19: =INDEX(Rates_AllOther_Current[High - Peak],MATCH(AA$37,Rates_AllOther_Current[Code],0)) -> 0 | AB19: =INDEX(Rates_AllOther_Current[High - Peak],MATCH(AB$37,Rates_AllOther_Current[Code],0)) -> 0 | AC19: =INDEX(Rates_AllOther_Current[High - Peak],MATCH(AC$37,Rates_AllOther_Current[Code],0)) -> 0 | AE19: 0 | AZ19: =INDEX(Rates_AllOther_New[High - Peak],MATCH(AZ$37,Rates_AllOther_New[Code],0)) -> 542.79 | BA19: =INDEX(Rates_AllOther_New[High - Peak],MATCH(BA$37,Rates_AllOther_New[Code],0)) -> 542.79 | BB19: =INDEX(Rates_AllOther_New[High - Peak],MATCH(BB$37,Rates_AllOther_New[Code],0)) -> 542.79 | BC19: =INDEX(Rates_AllOther_New[High - Peak],MATCH(BC$37,Rates_AllOther_New[Code],0)) -> 542.79
C20: Standard consumption | D20: c/kWh | E20: 0 | Z20: =INDEX(Rates_AllOther_Current[High - Standard],MATCH(Z$37,Rates_AllOther_Current[Code],0)) -> 0 | AA20: =INDEX(Rates_AllOther_Current[High - Standard],MATCH(AA$37,Rates_AllOther_Current[Code],0)) -> 0 | AB20: =INDEX(Rates_AllOther_Current[High - Standard],MATCH(AB$37,Rates_AllOther_Current[Code],0)) -> 0 | AC20: =INDEX(Rates_AllOther_Current[High - Standard],MATCH(AC$37,Rates_AllOther_Current[Code],0)) -> 0 | AE20: 0 | AZ20: =INDEX(Rates_AllOther_New[High - Standard],MATCH(AZ$37,Rates_AllOther_New[Code],0)) -> 165.14 | BA20: =INDEX(Rates_AllOther_New[High - Standard],MATCH(BA$37,Rates_AllOther_New[Code],0)) -> 165.14 | BB20: =INDEX(Rates_AllOther_New[High - Standard],MATCH(BB$37,Rates_AllOther_New[Code],0)) -> 165.14 | BC20: =INDEX(Rates_AllOther_New[High - Standard],MATCH(BC$37,Rates_AllOther_New[Code],0)) -> 165.14
C21: Off-Peak consumption | D21: c/kWh | E21: 0 | Z21: =INDEX(Rates_AllOther_Current[High-Off Peak],MATCH(Z$37,Rates_AllOther_Current[Code],0)) -> 0 | AA21: =INDEX(Rates_AllOther_Current[High-Off Peak],MATCH(AA$37,Rates_AllOther_Current[Code],0)) -> 0 | AB21: =INDEX(Rates_AllOther_Current[High-Off Peak],MATCH(AB$37,Rates_AllOther_Current[Code],0)) -> 0 | AC21: =INDEX(Rates_AllOther_Current[High-Off Peak],MATCH(AC$37,Rates_AllOther_Current[Code],0)) -> 0 | AE21: 0 | AZ21: =INDEX(Rates_AllOther_New[High-Off Peak],MATCH(AZ$37,Rates_AllOther_New[Code],0)) -> 90.17 | BA21: =INDEX(Rates_AllOther_New[High-Off Peak],MATCH(BA$37,Rates_AllOther_New[Code],0)) -> 90.17 | BB21: =INDEX(Rates_AllOther_New[High-Off Peak],MATCH(BB$37,Rates_AllOther_New[Code],0)) -> 90.17 | BC21: =INDEX(Rates_AllOther_New[High-Off Peak],MATCH(BC$37,Rates_AllOther_New[Code],0)) -> 90.17
C22: Energy - Block 1 | D22: c/kWh | E22: 0 | F22: =INDEX(Rates_AllOther_Current[Energy charge Block 1 '[c/kWh']],MATCH(F$37,Rates_AllOther_Current[Code],0)) -> 0 | G22: =INDEX(Rates_AllOther_Current[Energy charge Block 1 '[c/kWh']],MATCH(G$37,Rates_AllOther_Current[Code],0)) -> 0 | H22: =INDEX(Rates_AllOther_Current[Energy charge Block 1 '[c/kWh']],MATCH(H$37,Rates_AllOther_Current[Code],0)) -> 0 | I22: =INDEX(Rates_AllOther_Current[Energy charge Block 1 '[c/kWh']],MATCH(I$37,Rates_AllOther_Current[Code],0)) -> 0 | J22: =INDEX(Rates_AllOther_Current[Energy charge Block 1 '[c/kWh']],MATCH(J$37,Rates_AllOther_Current[Code],0)) -> 153.44 | K22: =INDEX(Rates_AllOther_Current[Energy charge Block 1 '[c/kWh']],MATCH(K$37,Rates_AllOther_Current[Code],0)) -> 173.67 | L22: =INDEX(Rates_AllOther_Current[Energy charge Block 1 '[c/kWh']],MATCH(L$37,Rates_AllOther_Current[Code],0)) -> 183.56 | M22: =INDEX(Rates_AllOther_Current[Energy charge Block 1 '[c/kWh']],MATCH(M$37,Rates_AllOther_Current[Code],0)) -> 183.56 | N22: =INDEX(Rates_AllOther_Current[Energy charge Block 1 '[c/kWh']],MATCH(N$37,Rates_AllOther_Current[Code],0)) -> 183.56 | O22: =INDEX(Rates_AllOther_Current[Energy charge Block 1 '[c/kWh']],MATCH(O$37,Rates_AllOther_Current[Code],0)) -> 183.56 | P22: =INDEX(Rates_AllOther_Current[Energy charge Block 1 '[c/kWh']],MATCH(P$37,Rates_AllOther_Current[Code],0)) -> 0 | Q22: =INDEX(Rates_AllOther_Current[Energy charge Block 1 '[c/kWh']],MATCH(Q$37,Rates_AllOther_Current[Code],0)) -> 0 | R22: =INDEX(Rates_AllOther_Current[Energy charge Block 1 '[c/kWh']],MATCH(R$37,Rates_AllOther_Current[Code],0)) -> 0 | S22: =INDEX(Rates_AllOther_Current[Energy charge Block 1 '[c/kWh']],MATCH(S$37,Rates_AllOther_Current[Code],0)) -> 0 | T22: =INDEX(Rates_AllOther_Current[Energy charge Block 1 '[c/kWh']],MATCH(T$37,Rates_AllOther_Current[Code],0)) -> 0 | U22: =INDEX(Rates_AllOther_Current[Energy charge Block 1 '[c/kWh']],MATCH(U$37,Rates_AllOther_Current[Code],0)) -> 0 | V22: =INDEX(Rates_AllOther_Current[Energy charge Block 1 '[c/kWh']],MATCH(V$37,Rates_AllOther_Current[Code],0)) -> 0 | W22: =INDEX(Rates_AllOther_Current[Energy charge Block 1 '[c/kWh']],MATCH(W$37,Rates_AllOther_Current[Code],0)) -> 0 | X22: =INDEX(Rates_AllOther_Current[Energy charge Block 1 '[c/kWh']],MATCH(X$37,Rates_AllOther_Current[Code],0)) -> 0 | Y22: =INDEX(Rates_AllOther_Current[Energy charge Block 1 '[c/kWh']],MATCH(Y$37,Rates_AllOther_Current[Code],0)) -> 0 | Z22: =INDEX(Rates_AllOther_Current[Energy charge Block 1 '[c/kWh']],MATCH(Z$37,Rates_AllOther_Current[Code],0)) -> 0 | AA22: =INDEX(Rates_AllOther_Current[Energy charge Block 1 '[c/kWh']],MATCH(AA$37,Rates_AllOther_Current[Code],0)) -> 0 | AB22: =INDEX(Rates_AllOther_Current[Energy charge Block 1 '[c/kWh']],MATCH(AB$37,Rates_AllOther_Current[Code],0)) -> 0 | AC22: =INDEX(Rates_AllOther_Current[Energy charge Block 1 '[c/kWh']],MATCH(AC$37,Rates_AllOther_Current[Code],0)) -> 0 | AE22: 0 | AF22: =INDEX(Rates_AllOther_New[Energy charge Block 1 '[c/kWh']],MATCH(AF$37,Rates_AllOther_New[Code],0)) -> 0 | AG22: =INDEX(Rates_AllOther_New[Energy charge Block 1 '[c/kWh']],MATCH(AG$37,Rates_AllOther_New[Code],0)) -> 0 | AH22: =INDEX(Rates_AllOther_New[Energy charge Block 1 '[c/kWh']],MATCH(AH$37,Rates_AllOther_New[Code],0)) -> 0 | AI22: =INDEX(Rates_AllOther_New[Energy charge Block 1 '[c/kWh']],MATCH(AI$37,Rates_AllOther_New[Code],0)) -> 0 | AJ22: =INDEX(Rates_AllOther_New[Energy charge Block 1 '[c/kWh']],MATCH(AJ$37,Rates_AllOther_New[Code],0)) -> 168.78 | AK22: =INDEX(Rates_AllOther_New[Energy charge Block 1 '[c/kWh']],MATCH(AK$37,Rates_AllOther_New[Code],0)) -> 206.06 | AL22: =INDEX(Rates_AllOther_New[Energy charge Block 1 '[c/kWh']],MATCH(AL$37,Rates_AllOther_New[Code],0)) -> 217.79 | AM22: =INDEX(Rates_AllOther_New[Energy charge Block 1 '[c/kWh']],MATCH(AM$37,Rates_AllOther_New[Code],0)) -> 217.79 | AN22: =INDEX(Rates_AllOther_New[Energy charge Block 1 '[c/kWh']],MATCH(AN$37,Rates_AllOther_New[Code],0)) -> 217.79 | AO22: =INDEX(Rates_AllOther_New[Energy charge Block 1 '[c/kWh']],MATCH(AO$37,Rates_AllOther_New[Code],0)) -> 217.79 | AP22: =INDEX(Rates_AllOther_New[Energy charge Block 1 '[c/kWh']],MATCH(AP$37,Rates_AllOther_New[Code],0)) -> 0 | AQ22: =INDEX(Rates_AllOther_New[Energy charge Block 1 '[c/kWh']],MATCH(AQ$37,Rates_AllOther_New[Code],0)) -> 0 | AR22: =INDEX(Rates_AllOther_New[Energy charge Block 1 '[c/kWh']],MATCH(AR$37,Rates_AllOther_New[Code],0)) -> 0 | AS22: =INDEX(Rates_AllOther_New[Energy charge Block 1 '[c/kWh']],MATCH(AS$37,Rates_AllOther_New[Code],0)) -> 0 | AT22: =INDEX(Rates_AllOther_New[Energy charge Block 1 '[c/kWh']],MATCH(AT$37,Rates_AllOther_New[Code],0)) -> 0 | AU22: =INDEX(Rates_AllOther_New[Energy charge Block 1 '[c/kWh']],MATCH(AU$37,Rates_AllOther_New[Code],0)) -> 0 | AV22: =INDEX(Rates_AllOther_New[Energy charge Block 1 '[c/kWh']],MATCH(AV$37,Rates_AllOther_New[Code],0)) -> 0 | AW22: =INDEX(Rates_AllOther_New[Energy charge Block 1 '[c/kWh']],MATCH(AW$37,Rates_AllOther_New[Code],0)) -> 0 | AX22: =INDEX(Rates_AllOther_New[Energy charge Block 1 '[c/kWh']],MATCH(AX$37,Rates_AllOther_New[Code],0)) -> 0 | AY22: =INDEX(Rates_AllOther_New[Energy charge Block 1 '[c/kWh']],MATCH(AY$37,Rates_AllOther_New[Code],0)) -> 0 | AZ22: =INDEX(Rates_AllOther_New[Energy charge Block 1 '[c/kWh']],MATCH(AZ$37,Rates_AllOther_New[Code],0)) -> 0 | BA22: =INDEX(Rates_AllOther_New[Energy charge Block 1 '[c/kWh']],MATCH(BA$37,Rates_AllOther_New[Code],0)) -> 0 | BB22: =INDEX(Rates_AllOther_New[Energy charge Block 1 '[c/kWh']],MATCH(BB$37,Rates_AllOther_New[Code],0)) -> 0 | BC22: =INDEX(Rates_AllOther_New[Energy charge Block 1 '[c/kWh']],MATCH(BC$37,Rates_AllOther_New[Code],0)) -> 0
C23: Energy - Block 2 | D23: c/kWh | E23: 0 | F23: =INDEX(Rates_AllOther_Current[Energy charge Block 2 '[c/kWh']],MATCH(F$37,Rates_AllOther_Current[Code],0)) -> 0 | G23: =INDEX(Rates_AllOther_Current[Energy charge Block 2 '[c/kWh']],MATCH(G$37,Rates_AllOther_Current[Code],0)) -> 0 | H23: =INDEX(Rates_AllOther_Current[Energy charge Block 2 '[c/kWh']],MATCH(H$37,Rates_AllOther_Current[Code],0)) -> 0 | I23: =INDEX(Rates_AllOther_Current[Energy charge Block 2 '[c/kWh']],MATCH(I$37,Rates_AllOther_Current[Code],0)) -> 0 | J23: =INDEX(Rates_AllOther_Current[Energy charge Block 2 '[c/kWh']],MATCH(J$37,Rates_AllOther_Current[Code],0)) -> 173.86 | K23: =INDEX(Rates_AllOther_Current[Energy charge Block 2 '[c/kWh']],MATCH(K$37,Rates_AllOther_Current[Code],0)) -> 295.19 | L23: =INDEX(Rates_AllOther_Current[Energy charge Block 2 '[c/kWh']],MATCH(L$37,Rates_AllOther_Current[Code],0)) -> 289.85 | M23: =INDEX(Rates_AllOther_Current[Energy charge Block 2 '[c/kWh']],MATCH(M$37,Rates_AllOther_Current[Code],0)) -> 282.62 | N23: =INDEX(Rates_AllOther_Current[Energy charge Block 2 '[c/kWh']],MATCH(N$37,Rates_AllOther_Current[Code],0)) -> 282.62 | O23: =INDEX(Rates_AllOther_Current[Energy charge Block 2 '[c/kWh']],MATCH(O$37,Rates_AllOther_Current[Code],0)) -> 295.19 | P23: =INDEX(Rates_AllOther_Current[Energy charge Block 2 '[c/kWh']],MATCH(P$37,Rates_AllOther_Current[Code],0)) -> 0 | Q23: =INDEX(Rates_AllOther_Current[Energy charge Block 2 '[c/kWh']],MATCH(Q$37,Rates_AllOther_Current[Code],0)) -> 0 | R23: =INDEX(Rates_AllOther_Current[Energy charge Block 2 '[c/kWh']],MATCH(R$37,Rates_AllOther_Current[Code],0)) -> 0 | S23: =INDEX(Rates_AllOther_Current[Energy charge Block 2 '[c/kWh']],MATCH(S$37,Rates_AllOther_Current[Code],0)) -> 0 | T23: =INDEX(Rates_AllOther_Current[Energy charge Block 2 '[c/kWh']],MATCH(T$37,Rates_AllOther_Current[Code],0)) -> 0 | U23: =INDEX(Rates_AllOther_Current[Energy charge Block 2 '[c/kWh']],MATCH(U$37,Rates_AllOther_Current[Code],0)) -> 0 | V23: =INDEX(Rates_AllOther_Current[Energy charge Block 2 '[c/kWh']],MATCH(V$37,Rates_AllOther_Current[Code],0)) -> 0 | W23: =INDEX(Rates_AllOther_Current[Energy charge Block 2 '[c/kWh']],MATCH(W$37,Rates_AllOther_Current[Code],0)) -> 0 | X23: =INDEX(Rates_AllOther_Current[Energy charge Block 2 '[c/kWh']],MATCH(X$37,Rates_AllOther_Current[Code],0)) -> 0 | Y23: =INDEX(Rates_AllOther_Current[Energy charge Block 2 '[c/kWh']],MATCH(Y$37,Rates_AllOther_Current[Code],0)) -> 0 | Z23: =INDEX(Rates_AllOther_Current[Energy charge Block 2 '[c/kWh']],MATCH(Z$37,Rates_AllOther_Current[Code],0)) -> 0 | AA23: =INDEX(Rates_AllOther_Current[Energy charge Block 2 '[c/kWh']],MATCH(AA$37,Rates_AllOther_Current[Code],0)) -> 0 | AB23: =INDEX(Rates_AllOther_Current[Energy charge Block 2 '[c/kWh']],MATCH(AB$37,Rates_AllOther_Current[Code],0)) -> 0 | AC23: =INDEX(Rates_AllOther_Current[Energy charge Block 2 '[c/kWh']],MATCH(AC$37,Rates_AllOther_Current[Code],0)) -> 0 | AE23: 0 | AF23: =INDEX(Rates_AllOther_New[Energy charge Block 2 '[c/kWh']],MATCH(AF$37,Rates_AllOther_New[Code],0)) -> 0 | AG23: =INDEX(Rates_AllOther_New[Energy charge Block 2 '[c/kWh']],MATCH(AG$37,Rates_AllOther_New[Code],0)) -> 0 | AH23: =INDEX(Rates_AllOther_New[Energy charge Block 2 '[c/kWh']],MATCH(AH$37,Rates_AllOther_New[Code],0)) -> 0 | AI23: =INDEX(Rates_AllOther_New[Energy charge Block 2 '[c/kWh']],MATCH(AI$37,Rates_AllOther_New[Code],0)) -> 0 | AJ23: =INDEX(Rates_AllOther_New[Energy charge Block 2 '[c/kWh']],MATCH(AJ$37,Rates_AllOther_New[Code],0)) -> 191.25 | AK23: =INDEX(Rates_AllOther_New[Energy charge Block 2 '[c/kWh']],MATCH(AK$37,Rates_AllOther_New[Code],0)) -> 350.24 | AL23: =INDEX(Rates_AllOther_New[Energy charge Block 2 '[c/kWh']],MATCH(AL$37,Rates_AllOther_New[Code],0)) -> 343.91 | AM23: =INDEX(Rates_AllOther_New[Energy charge Block 2 '[c/kWh']],MATCH(AM$37,Rates_AllOther_New[Code],0)) -> 335.33 | AN23: =INDEX(Rates_AllOther_New[Energy charge Block 2 '[c/kWh']],MATCH(AN$37,Rates_AllOther_New[Code],0)) -> 335.33 | AO23: =INDEX(Rates_AllOther_New[Energy charge Block 2 '[c/kWh']],MATCH(AO$37,Rates_AllOther_New[Code],0)) -> 350.24 | AP23: =INDEX(Rates_AllOther_New[Energy charge Block 2 '[c/kWh']],MATCH(AP$37,Rates_AllOther_New[Code],0)) -> 0 | AQ23: =INDEX(Rates_AllOther_New[Energy charge Block 2 '[c/kWh']],MATCH(AQ$37,Rates_AllOther_New[Code],0)) -> 0 | AR23: =INDEX(Rates_AllOther_New[Energy charge Block 2 '[c/kWh']],MATCH(AR$37,Rates_AllOther_New[Code],0)) -> 0 | AS23: =INDEX(Rates_AllOther_New[Energy charge Block 2 '[c/kWh']],MATCH(AS$37,Rates_AllOther_New[Code],0)) -> 0 | AT23: =INDEX(Rates_AllOther_New[Energy charge Block 2 '[c/kWh']],MATCH(AT$37,Rates_AllOther_New[Code],0)) -> 0 | AU23: =INDEX(Rates_AllOther_New[Energy charge Block 2 '[c/kWh']],MATCH(AU$37,Rates_AllOther_New[Code],0)) -> 0 | AV23: =INDEX(Rates_AllOther_New[Energy charge Block 2 '[c/kWh']],MATCH(AV$37,Rates_AllOther_New[Code],0)) -> 0 | AW23: =INDEX(Rates_AllOther_New[Energy charge Block 2 '[c/kWh']],MATCH(AW$37,Rates_AllOther_New[Code],0)) -> 0 | AX23: =INDEX(Rates_AllOther_New[Energy charge Block 2 '[c/kWh']],MATCH(AX$37,Rates_AllOther_New[Code],0)) -> 0 | AY23: =INDEX(Rates_AllOther_New[Energy charge Block 2 '[c/kWh']],MATCH(AY$37,Rates_AllOther_New[Code],0)) -> 0 | AZ23: =INDEX(Rates_AllOther_New[Energy charge Block 2 '[c/kWh']],MATCH(AZ$37,Rates_AllOther_New[Code],0)) -> 0 | BA23: =INDEX(Rates_AllOther_New[Energy charge Block 2 '[c/kWh']],MATCH(BA$37,Rates_AllOther_New[Code],0)) -> 0 | BB23: =INDEX(Rates_AllOther_New[Energy charge Block 2 '[c/kWh']],MATCH(BB$37,Rates_AllOther_New[Code],0)) -> 0 | BC23: =INDEX(Rates_AllOther_New[Energy charge Block 2 '[c/kWh']],MATCH(BC$37,Rates_AllOther_New[Code],0)) -> 0
B25: Total energy charges
B27: Other charges | D27: Units | E27: =E$8 -> 2022/2023 Rates | F27: =F$8 -> 2022/2023 Rates | G27: 2022/2023 Rates | H27: 2022/2023 Rates | I27: 2022/2023 Rates | J27: 2022/2023 Rates | K27: 2022/2023 Rates | L27: 2022/2023 Rates | M27: 2022/2023 Rates | N27: 2022/2023 Rates | O27: 2022/2023 Rates | P27: 2022/2023 Rates | Q27: 2022/2023 Rates | R27: 2022/2023 Rates | S27: 2022/2023 Rates | T27: 2022/2023 Rates | U27: 2022/2023 Rates | V27: 2022/2023 Rates | W27: 2022/2023 Rates | X27: 2022/2023 Rates | Y27: 2022/2023 Rates | Z27: 2022/2023 Rates | AA27: 2022/2023 Rates | AB27: 2022/2023 Rates | AC27: 2022/2023 Rates | AE27: =AE$8 -> 2023/2024 Rates | AF27: =AF$8 -> 2023/2024 Rates | AG27: 2023/2024 Rates | AH27: 2023/2024 Rates | AI27: 2023/2024 Rates | AJ27: 2023/2024 Rates | AK27: 2023/2024 Rates | AL27: 2023/2024 Rates | AM27: 2023/2024 Rates | AN27: 2023/2024 Rates | AO27: 2023/2024 Rates | AP27: 2023/2024 Rates | AQ27: 2023/2024 Rates | AR27: 2023/2024 Rates | AS27: 2023/2024 Rates | AT27: 2023/2024 Rates | AU27: 2023/2024 Rates | AV27: 2023/2024 Rates | AW27: 2023/2024 Rates | AX27: 2023/2024 Rates | AY27: 2023/2024 Rates | AZ27: 2023/2024 Rates | BA27: 2023/2024 Rates | BB27: 2023/2024 Rates | BC27: 2023/2024 Rates
C29: Ancillary service charge | D29: c/kWh | E29: =SUMIFS(F29:AC29,$F$7:$AC$7,Selected_Tariff_ID) -> 0.6 | F29: =INDEX(Rates_AllOther_Current[Ancillary service charge '[c/kWh']],MATCH(F$37,Rates_AllOther_Current[Code],0)) -> 0.6 | G29: =INDEX(Rates_AllOther_Current[Ancillary service charge '[c/kWh']],MATCH(G$37,Rates_AllOther_Current[Code],0)) -> 0.6 | H29: =INDEX(Rates_AllOther_Current[Ancillary service charge '[c/kWh']],MATCH(H$37,Rates_AllOther_Current[Code],0)) -> 0.6 | I29: =INDEX(Rates_AllOther_Current[Ancillary service charge '[c/kWh']],MATCH(I$37,Rates_AllOther_Current[Code],0)) -> 0.6 | J29: =INDEX(Rates_AllOther_Current[Ancillary service charge '[c/kWh']],MATCH(J$37,Rates_AllOther_Current[Code],0)) -> 0 | K29: =INDEX(Rates_AllOther_Current[Ancillary service charge '[c/kWh']],MATCH(K$37,Rates_AllOther_Current[Code],0)) -> 0 | L29: =INDEX(Rates_AllOther_Current[Ancillary service charge '[c/kWh']],MATCH(L$37,Rates_AllOther_Current[Code],0)) -> 0 | M29: =INDEX(Rates_AllOther_Current[Ancillary service charge '[c/kWh']],MATCH(M$37,Rates_AllOther_Current[Code],0)) -> 0 | N29: =INDEX(Rates_AllOther_Current[Ancillary service charge '[c/kWh']],MATCH(N$37,Rates_AllOther_Current[Code],0)) -> 0 | O29: =INDEX(Rates_AllOther_Current[Ancillary service charge '[c/kWh']],MATCH(O$37,Rates_AllOther_Current[Code],0)) -> 0 | P29: =INDEX(Rates_AllOther_Current[Ancillary service charge '[c/kWh']],MATCH(P$37,Rates_AllOther_Current[Code],0)) -> 0 | Q29: =INDEX(Rates_AllOther_Current[Ancillary service charge '[c/kWh']],MATCH(Q$37,Rates_AllOther_Current[Code],0)) -> 0.6 | R29: =INDEX(Rates_AllOther_Current[Ancillary service charge '[c/kWh']],MATCH(R$37,Rates_AllOther_Current[Code],0)) -> 0.6 | S29: =INDEX(Rates_AllOther_Current[Ancillary service charge '[c/kWh']],MATCH(S$37,Rates_AllOther_Current[Code],0)) -> 0.6 | T29: =INDEX(Rates_AllOther_Current[Ancillary service charge '[c/kWh']],MATCH(T$37,Rates_AllOther_Current[Code],0)) -> 0.6 | U29: =INDEX(Rates_AllOther_Current[Ancillary service charge '[c/kWh']],MATCH(U$37,Rates_AllOther_Current[Code],0)) -> 0 | V29: =INDEX(Rates_AllOther_Current[Ancillary service charge '[c/kWh']],MATCH(V$37,Rates_AllOther_Current[Code],0)) -> 0 | W29: =INDEX(Rates_AllOther_Current[Ancillary service charge '[c/kWh']],MATCH(W$37,Rates_AllOther_Current[Code],0)) -> 0 | X29: =INDEX(Rates_AllOther_Current[Ancillary service charge '[c/kWh']],MATCH(X$37,Rates_AllOther_Current[Code],0)) -> 0 | Y29: =INDEX(Rates_AllOther_Current[Ancillary service charge '[c/kWh']],MATCH(Y$37,Rates_AllOther_Current[Code],0)) -> 0 | Z29: =INDEX(Rates_AllOther_Current[Ancillary service charge '[c/kWh']],MATCH(Z$37,Rates_AllOther_Current[Code],0)) -> 0 | AA29: =INDEX(Rates_AllOther_Current[Ancillary service charge '[c/kWh']],MATCH(AA$37,Rates_AllOther_Current[Code],0)) -> 0 | AB29: =INDEX(Rates_AllOther_Current[Ancillary service charge '[c/kWh']],MATCH(AB$37,Rates_AllOther_Current[Code],0)) -> 0 | AC29: =INDEX(Rates_AllOther_Current[Ancillary service charge '[c/kWh']],MATCH(AC$37,Rates_AllOther_Current[Code],0)) -> 0 | AE29: =SUMIFS(AF29:BC29,$F$7:$AC$7,Selected_Tariff_ID) -> 0.71 | AF29: =INDEX(Rates_AllOther_New[Ancillary service charge '[c/kWh']],MATCH(AF$37,Rates_AllOther_New[Code],0)) -> 0.71 | AG29: =INDEX(Rates_AllOther_New[Ancillary service charge '[c/kWh']],MATCH(AG$37,Rates_AllOther_New[Code],0)) -> 0.71 | AH29: =INDEX(Rates_AllOther_New[Ancillary service charge '[c/kWh']],MATCH(AH$37,Rates_AllOther_New[Code],0)) -> 0.71 | AI29: =INDEX(Rates_AllOther_New[Ancillary service charge '[c/kWh']],MATCH(AI$37,Rates_AllOther_New[Code],0)) -> 0.71 | AJ29: =INDEX(Rates_AllOther_New[Ancillary service charge '[c/kWh']],MATCH(AJ$37,Rates_AllOther_New[Code],0)) -> 0 | AK29: =INDEX(Rates_AllOther_New[Ancillary service charge '[c/kWh']],MATCH(AK$37,Rates_AllOther_New[Code],0)) -> 0 | AL29: =INDEX(Rates_AllOther_New[Ancillary service charge '[c/kWh']],MATCH(AL$37,Rates_AllOther_New[Code],0)) -> 0 | AM29: =INDEX(Rates_AllOther_New[Ancillary service charge '[c/kWh']],MATCH(AM$37,Rates_AllOther_New[Code],0)) -> 0 | AN29: =INDEX(Rates_AllOther_New[Ancillary service charge '[c/kWh']],MATCH(AN$37,Rates_AllOther_New[Code],0)) -> 0 | AO29: =INDEX(Rates_AllOther_New[Ancillary service charge '[c/kWh']],MATCH(AO$37,Rates_AllOther_New[Code],0)) -> 0 | AP29: =INDEX(Rates_AllOther_New[Ancillary service charge '[c/kWh']],MATCH(AP$37,Rates_AllOther_New[Code],0)) -> 0 | AQ29: =INDEX(Rates_AllOther_New[Ancillary service charge '[c/kWh']],MATCH(AQ$37,Rates_AllOther_New[Code],0)) -> 0.71 | AR29: =INDEX(Rates_AllOther_New[Ancillary service charge '[c/kWh']],MATCH(AR$37,Rates_AllOther_New[Code],0)) -> 0.71 | AS29: =INDEX(Rates_AllOther_New[Ancillary service charge '[c/kWh']],MATCH(AS$37,Rates_AllOther_New[Code],0)) -> 0.71 | AT29: =INDEX(Rates_AllOther_New[Ancillary service charge '[c/kWh']],MATCH(AT$37,Rates_AllOther_New[Code],0)) -> 0.71 | AU29: =INDEX(Rates_AllOther_New[Ancillary service charge '[c/kWh']],MATCH(AU$37,Rates_AllOther_New[Code],0)) -> 0 | AV29: =INDEX(Rates_AllOther_New[Ancillary service charge '[c/kWh']],MATCH(AV$37,Rates_AllOther_New[Code],0)) -> 0 | AW29: =INDEX(Rates_AllOther_New[Ancillary service charge '[c/kWh']],MATCH(AW$37,Rates_AllOther_New[Code],0)) -> 0 | AX29: =INDEX(Rates_AllOther_New[Ancillary service charge '[c/kWh']],MATCH(AX$37,Rates_AllOther_New[Code],0)) -> 0 | AY29: =INDEX(Rates_AllOther_New[Ancillary service charge '[c/kWh']],MATCH(AY$37,Rates_AllOther_New[Code],0)) -> 0 | AZ29: =INDEX(Rates_AllOther_New[Ancillary service charge '[c/kWh']],MATCH(AZ$37,Rates_AllOther_New[Code],0)) -> 0 | BA29: =INDEX(Rates_AllOther_New[Ancillary service charge '[c/kWh']],MATCH(BA$37,Rates_AllOther_New[Code],0)) -> 0 | BB29: =INDEX(Rates_AllOther_New[Ancillary service charge '[c/kWh']],MATCH(BB$37,Rates_AllOther_New[Code],0)) -> 0 | BC29: =INDEX(Rates_AllOther_New[Ancillary service charge '[c/kWh']],MATCH(BC$37,Rates_AllOther_New[Code],0)) -> 0
C30: Service charge | D30: =IF(Table_1=1,"R/day","R/day") -> R/day | E30: =SUMIFS(F30:AC30,$F$7:$AC$7,Selected_Tariff_ID) -> 0 | F30: =INDEX(Rates_AllOther_Current[Service and administration charge '[R/POD/day']],MATCH(F$37,Rates_AllOther_Current[Code],0)) -> 27.44 | G30: =INDEX(Rates_AllOther_Current[Service and administration charge '[R/POD/day']],MATCH(G$37,Rates_AllOther_Current[Code],0)) -> 27.44 | H30: =INDEX(Rates_AllOther_Current[Service and administration charge '[R/POD/day']],MATCH(H$37,Rates_AllOther_Current[Code],0)) -> 27.44 | I30: =INDEX(Rates_AllOther_Current[Service and administration charge '[R/POD/day']],MATCH(I$37,Rates_AllOther_Current[Code],0)) -> 0 | J30: =INDEX(Rates_AllOther_Current[Service and administration charge '[R/POD/day']],MATCH(J$37,Rates_AllOther_Current[Code],0)) -> 0 | K30: =INDEX(Rates_AllOther_Current[Service and administration charge '[R/POD/day']],MATCH(K$37,Rates_AllOther_Current[Code],0)) -> 0 | L30: =INDEX(Rates_AllOther_Current[Service and administration charge '[R/POD/day']],MATCH(L$37,Rates_AllOther_Current[Code],0)) -> 0 | M30: =INDEX(Rates_AllOther_Current[Service and administration charge '[R/POD/day']],MATCH(M$37,Rates_AllOther_Current[Code],0)) -> 0 | N30: =INDEX(Rates_AllOther_Current[Service and administration charge '[R/POD/day']],MATCH(N$37,Rates_AllOther_Current[Code],0)) -> 0 | O30: =INDEX(Rates_AllOther_Current[Service and administration charge '[R/POD/day']],MATCH(O$37,Rates_AllOther_Current[Code],0)) -> 0 | P30: =INDEX(Rates_AllOther_Current[Service and administration charge '[R/POD/day']],MATCH(P$37,Rates_AllOther_Current[Code],0)) -> 0 | Q30: =INDEX(Rates_AllOther_Current[Service and administration charge '[R/POD/day']],MATCH(Q$37,Rates_AllOther_Current[Code],0)) -> 34.57 | R30: =INDEX(Rates_AllOther_Current[Service and administration charge '[R/POD/day']],MATCH(R$37,Rates_AllOther_Current[Code],0)) -> 34.57 | S30: =INDEX(Rates_AllOther_Current[Service and administration charge '[R/POD/day']],MATCH(S$37,Rates_AllOther_Current[Code],0)) -> 34.57 | T30: =INDEX(Rates_AllOther_Current[Service and administration charge '[R/POD/day']],MATCH(T$37,Rates_AllOther_Current[Code],0)) -> 0 | U30: =INDEX(Rates_AllOther_Current[Service and administration charge '[R/POD/day']],MATCH(U$37,Rates_AllOther_Current[Code],0)) -> 74.14 | V30: =INDEX(Rates_AllOther_Current[Service and administration charge '[R/POD/day']],MATCH(V$37,Rates_AllOther_Current[Code],0)) -> 0 | W30: =INDEX(Rates_AllOther_Current[Service and administration charge '[R/POD/day']],MATCH(W$37,Rates_AllOther_Current[Code],0)) -> 0 | X30: =INDEX(Rates_AllOther_Current[Service and administration charge '[R/POD/day']],MATCH(X$37,Rates_AllOther_Current[Code],0)) -> 0 | Y30: =INDEX(Rates_AllOther_Current[Service and administration charge '[R/POD/day']],MATCH(Y$37,Rates_AllOther_Current[Code],0)) -> 0 | Z30: =INDEX(Rates_AllOther_Current[Service and administration charge '[R/POD/day']],MATCH(Z$37,Rates_AllOther_Current[Code],0)) -> 0 | AA30: =INDEX(Rates_AllOther_Current[Service and administration charge '[R/POD/day']],MATCH(AA$37,Rates_AllOther_Current[Code],0)) -> 0 | AB30: =INDEX(Rates_AllOther_Current[Service and administration charge '[R/POD/day']],MATCH(AB$37,Rates_AllOther_Current[Code],0)) -> 0 | AC30: =INDEX(Rates_AllOther_Current[Service and administration charge '[R/POD/day']],MATCH(AC$37,Rates_AllOther_Current[Code],0)) -> 0 | AE30: =SUMIFS(AF30:BC30,$F$7:$AC$7,Selected_Tariff_ID) -> 0 | AF30: =INDEX(Rates_AllOther_New[Service and administration charge '[R/POD/day']],MATCH(AF$37,Rates_AllOther_New[Code],0)) -> 32.56 | AG30: =INDEX(Rates_AllOther_New[Service and administration charge '[R/POD/day']],MATCH(AG$37,Rates_AllOther_New[Code],0)) -> 32.56 | AH30: =INDEX(Rates_AllOther_New[Service and administration charge '[R/POD/day']],MATCH(AH$37,Rates_AllOther_New[Code],0)) -> 32.56 | AI30: =INDEX(Rates_AllOther_New[Service and administration charge '[R/POD/day']],MATCH(AI$37,Rates_AllOther_New[Code],0)) -> 0 | AJ30: =INDEX(Rates_AllOther_New[Service and administration charge '[R/POD/day']],MATCH(AJ$37,Rates_AllOther_New[Code],0)) -> 0 | AK30: =INDEX(Rates_AllOther_New[Service and administration charge '[R/POD/day']],MATCH(AK$37,Rates_AllOther_New[Code],0)) -> 0 | AL30: =INDEX(Rates_AllOther_New[Service and administration charge '[R/POD/day']],MATCH(AL$37,Rates_AllOther_New[Code],0)) -> 0 | AM30: =INDEX(Rates_AllOther_New[Service and administration charge '[R/POD/day']],MATCH(AM$37,Rates_AllOther_New[Code],0)) -> 0 | AN30: =INDEX(Rates_AllOther_New[Service and administration charge '[R/POD/day']],MATCH(AN$37,Rates_AllOther_New[Code],0)) -> 0 | AO30: =INDEX(Rates_AllOther_New[Service and administration charge '[R/POD/day']],MATCH(AO$37,Rates_AllOther_New[Code],0)) -> 0 | AP30: =INDEX(Rates_AllOther_New[Service and administration charge '[R/POD/day']],MATCH(AP$37,Rates_AllOther_New[Code],0)) -> 0 | AQ30: =INDEX(Rates_AllOther_New[Service and administration charge '[R/POD/day']],MATCH(AQ$37,Rates_AllOther_New[Code],0)) -> 41.02 | AR30: =INDEX(Rates_AllOther_New[Service and administration charge '[R/POD/day']],MATCH(AR$37,Rates_AllOther_New[Code],0)) -> 41.02 | AS30: =INDEX(Rates_AllOther_New[Service and administration charge '[R/POD/day']],MATCH(AS$37,Rates_AllOther_New[Code],0)) -> 41.02 | AT30: =INDEX(Rates_AllOther_New[Service and administration charge '[R/POD/day']],MATCH(AT$37,Rates_AllOther_New[Code],0)) -> 0 | AU30: =INDEX(Rates_AllOther_New[Service and administration charge '[R/POD/day']],MATCH(AU$37,Rates_AllOther_New[Code],0)) -> 87.97 | AV30: =INDEX(Rates_AllOther_New[Service and administration charge '[R/POD/day']],MATCH(AV$37,Rates_AllOther_New[Code],0)) -> 0 | AW30: =INDEX(Rates_AllOther_New[Service and administration charge '[R/POD/day']],MATCH(AW$37,Rates_AllOther_New[Code],0)) -> 0 | AX30: =INDEX(Rates_AllOther_New[Service and administration charge '[R/POD/day']],MATCH(AX$37,Rates_AllOther_New[Code],0)) -> 0 | AY30: =INDEX(Rates_AllOther_New[Service and administration charge '[R/POD/day']],MATCH(AY$37,Rates_AllOther_New[Code],0)) -> 0 | AZ30: =INDEX(Rates_AllOther_New[Service and administration charge '[R/POD/day']],MATCH(AZ$37,Rates_AllOther_New[Code],0)) -> 0 | BA30: =INDEX(Rates_AllOther_New[Service and administration charge '[R/POD/day']],MATCH(BA$37,Rates_AllOther_New[Code],0)) -> 0 | BB30: =INDEX(Rates_AllOther_New[Service and administration charge '[R/POD/day']],MATCH(BB$37,Rates_AllOther_New[Code],0)) -> 0 | BC30: =INDEX(Rates_AllOther_New[Service and administration charge '[R/POD/day']],MATCH(BC$37,Rates_AllOther_New[Code],0)) -> 0
B32: Total other charges
B34: Lookup values
C35: Rates LPU Energy Table | E35: =SUMIFS(F35:AC35,$F$7:$AC$7,Selected_Tariff_ID) -> 0 | F35: =F6&"_"&$D48&"_"&$D47&"_"&$D46 -> Businessrate 1_Non-Local Authority_Not Applicable_< 500V | G35: Businessrate 2_Non-Local Authority_Not Applicable_< 500V | H35: Businessrate 3_Non-Local Authority_Not Applicable_< 500V | I35: Businessrate 4_Non-Local Authority_Not Applicable_< 500V | J35: Homelight 20A_Non-Local Authority_Not Applicable_< 500V | K35: Homelight 60A_Non-Local Authority_Not Applicable_< 500V | L35: Homepower 1_Non-Local Authority_Not Applicable_< 500V | M35: Homepower 2_Non-Local Authority_Not Applicable_< 500V | N35: Homepower 3_Non-Local Authority_Not Applicable_< 500V | O35: Homepower 4_Non-Local Authority_Not Applicable_< 500V | P35: Homepower Bulk_Non-Local Authority_Not Applicable_< 500V | Q35: Landrate 1_Non-Local Authority_Not Applicable_< 500V | R35: Landrate 2_Non-Local Authority_Not Applicable_< 500V | S35: Landrate 3_Non-Local Authority_Not Applicable_< 500V | T35: Landrate 4_Non-Local Authority_Not Applicable_< 500V | U35: Landrate Dx_Non-Local Authority_Not Applicable_< 500V | V35: Landlight 20A_Non-Local Authority_Not Applicable_< 500V | W35: Landlight 60A_Non-Local Authority_Not Applicable_< 500V | X35: Public Lighting All Night_Non-Local Authority_Not Applicable_< 500V | Y35: Public Lighting 24 Hours_Non-Local Authority_Not Applicable_< 500V | Z35: Homeflex 1_Non-Local Authority_Not Applicable_< 500V | AA35: Homeflex 2_Non-Local Authority_Not Applicable_< 500V | AB35: Homeflex 3_Non-Local Authority_Not Applicable_< 500V | AC35: Homeflex 4_Non-Local Authority_Not Applicable_< 500V | AE35: =SUMIFS(AF35:BC35,$F$7:$AC$7,Selected_Tariff_ID) -> 0 | AF35: =F35 -> Businessrate 1_Non-Local Authority_Not Applicable_< 500V | AG35: Businessrate 2_Non-Local Authority_Not Applicable_< 500V | AH35: Businessrate 3_Non-Local Authority_Not Applicable_< 500V | AI35: Businessrate 4_Non-Local Authority_Not Applicable_< 500V | AJ35: Homelight 20A_Non-Local Authority_Not Applicable_< 500V | AK35: Homelight 60A_Non-Local Authority_Not Applicable_< 500V | AL35: Homepower 1_Non-Local Authority_Not Applicable_< 500V | AM35: Homepower 2_Non-Local Authority_Not Applicable_< 500V | AN35: Homepower 3_Non-Local Authority_Not Applicable_< 500V | AO35: Homepower 4_Non-Local Authority_Not Applicable_< 500V | AP35: Homepower Bulk_Non-Local Authority_Not Applicable_< 500V | AQ35: Landrate 1_Non-Local Authority_Not Applicable_< 500V | AR35: Landrate 2_Non-Local Authority_Not Applicable_< 500V | AS35: Landrate 3_Non-Local Authority_Not Applicable_< 500V | AT35: Landrate 4_Non-Local Authority_Not Applicable_< 500V | AU35: =U35 -> Landrate Dx_Non-Local Authority_Not Applicable_< 500V | AV35: Landlight 20A_Non-Local Authority_Not Applicable_< 500V | AW35: Landlight 60A_Non-Local Authority_Not Applicable_< 500V | AX35: Public Lighting All Night_Non-Local Authority_Not Applicable_< 500V | AY35: Public Lighting 24 Hours_Non-Local Authority_Not Applicable_< 500V | AZ35: =Z35 -> Homeflex 1_Non-Local Authority_Not Applicable_< 500V | BA35: =AA35 -> Homeflex 2_Non-Local Authority_Not Applicable_< 500V | BB35: =AB35 -> Homeflex 3_Non-Local Authority_Not Applicable_< 500V | BC35: =AC35 -> Homeflex 4_Non-Local Authority_Not Applicable_< 500V
C36: Rates LPU by Voltage | E36: 0 | F36: =F6&"_"&$D48&"_"&$D46 -> Businessrate 1_Non-Local Authority_< 500V | G36: Businessrate 2_Non-Local Authority_< 500V | H36: Businessrate 3_Non-Local Authority_< 500V | I36: Businessrate 4_Non-Local Authority_< 500V | J36: Homelight 20A_Non-Local Authority_< 500V | K36: Homelight 60A_Non-Local Authority_< 500V | L36: Homepower 1_Non-Local Authority_< 500V | M36: Homepower 2_Non-Local Authority_< 500V | N36: Homepower 3_Non-Local Authority_< 500V | O36: Homepower 4_Non-Local Authority_< 500V | P36: Homepower Bulk_Non-Local Authority_< 500V | Q36: Landrate 1_Non-Local Authority_< 500V | R36: Landrate 2_Non-Local Authority_< 500V | S36: Landrate 3_Non-Local Authority_< 500V | T36: Landrate 4_Non-Local Authority_< 500V | U36: Landrate Dx_Non-Local Authority_< 500V | V36: Landlight 20A_Non-Local Authority_< 500V | W36: Landlight 60A_Non-Local Authority_< 500V | X36: Public Lighting All Night_Non-Local Authority_< 500V | Y36: Public Lighting 24 Hours_Non-Local Authority_< 500V | Z36: Homeflex 1_Non-Local Authority_< 500V | AA36: Homeflex 2_Non-Local Authority_< 500V | AB36: Homeflex 3_Non-Local Authority_< 500V | AC36: Homeflex 4_Non-Local Authority_< 500V | AE36: 0 | AF36: Businessrate 1_Non-Local Authority_< 500V | AG36: Businessrate 2_Non-Local Authority_< 500V | AH36: Businessrate 3_Non-Local Authority_< 500V | AI36: Businessrate 4_Non-Local Authority_< 500V | AJ36: Homelight 20A_Non-Local Authority_< 500V | AK36: Homelight 60A_Non-Local Authority_< 500V | AL36: Homepower 1_Non-Local Authority_< 500V | AM36: Homepower 2_Non-Local Authority_< 500V | AN36: Homepower 3_Non-Local Authority_< 500V | AO36: Homepower 4_Non-Local Authority_< 500V | AP36: Homepower Bulk_Non-Local Authority_< 500V | AQ36: Landrate 1_Non-Local Authority_< 500V | AR36: Landrate 2_Non-Local Authority_< 500V | AS36: Landrate 3_Non-Local Authority_< 500V | AT36: Landrate 4_Non-Local Authority_< 500V | AU36: Landrate Dx_Non-Local Authority_< 500V | AV36: Landlight 20A_Non-Local Authority_< 500V | AW36: Landlight 60A_Non-Local Authority_< 500V | AX36: Public Lighting All Night_Non-Local Authority_< 500V | AY36: Public Lighting 24 Hours_Non-Local Authority_< 500V | AZ36: Homeflex 1_Non-Local Authority_< 500V | BA36: Homeflex 2_Non-Local Authority_< 500V | BB36: Homeflex 3_Non-Local Authority_< 500V | BC36: Homeflex 4_Non-Local Authority_< 500V
C37: Rates SPU | E37: 0 | F37: =F6&"_"&$D48 -> Businessrate 1_Non-Local Authority | G37: Businessrate 2_Non-Local Authority | H37: Businessrate 3_Non-Local Authority | I37: Businessrate 4_Non-Local Authority | J37: Homelight 20A_Non-Local Authority | K37: Homelight 60A_Non-Local Authority | L37: Homepower 1_Non-Local Authority | M37: Homepower 2_Non-Local Authority | N37: Homepower 3_Non-Local Authority | O37: Homepower 4_Non-Local Authority | P37: Homepower Bulk_Non-Local Authority | Q37: Landrate 1_Non-Local Authority | R37: Landrate 2_Non-Local Authority | S37: Landrate 3_Non-Local Authority | T37: Landrate 4_Non-Local Authority | U37: Landrate Dx_Non-Local Authority | V37: Landlight 20A_Non-Local Authority | W37: Landlight 60A_Non-Local Authority | X37: Public Lighting All Night_Non-Local Authority | Y37: Public Lighting 24 Hours_Non-Local Authority | Z37: Homeflex 1_Non-Local Authority | AA37: Homeflex 2_Non-Local Authority | AB37: Homeflex 3_Non-Local Authority | AC37: Homeflex 4_Non-Local Authority | AE37: 0 | AF37: Businessrate 1_Non-Local Authority | AG37: Businessrate 2_Non-Local Authority | AH37: Businessrate 3_Non-Local Authority | AI37: Businessrate 4_Non-Local Authority | AJ37: Homelight 20A_Non-Local Authority | AK37: Homelight 60A_Non-Local Authority | AL37: Homepower 1_Non-Local Authority | AM37: Homepower 2_Non-Local Authority | AN37: Homepower 3_Non-Local Authority | AO37: Homepower 4_Non-Local Authority | AP37: Homepower Bulk_Non-Local Authority | AQ37: Landrate 1_Non-Local Authority | AR37: Landrate 2_Non-Local Authority | AS37: Landrate 3_Non-Local Authority | AT37: Landrate 4_Non-Local Authority | AU37: Landrate Dx_Non-Local Authority | AV37: Landlight 20A_Non-Local Authority | AW37: Landlight 60A_Non-Local Authority | AX37: Public Lighting All Night_Non-Local Authority | AY37: Public Lighting 24 Hours_Non-Local Authority | AZ37: Homeflex 1_Non-Local Authority | BA37: Homeflex 2_Non-Local Authority | BB37: Homeflex 3_Non-Local Authority | BC37: Homeflex 4_Non-Local Authority
C38: Admin & Service Charges | E38: 0 | F38: =$D45&"_"&$D48&"_"&$D50 -> Rural_Non-Local Authority_≤100kVA | G38: Rural_Non-Local Authority_≤100kVA | H38: Rural_Non-Local Authority_≤100kVA | I38: Rural_Non-Local Authority_≤100kVA | J38: Rural_Non-Local Authority_≤100kVA | K38: Rural_Non-Local Authority_≤100kVA | L38: Rural_Non-Local Authority_≤100kVA | M38: Rural_Non-Local Authority_≤100kVA | N38: Rural_Non-Local Authority_≤100kVA | O38: Rural_Non-Local Authority_≤100kVA | P38: Rural_Non-Local Authority_≤100kVA | Q38: Rural_Non-Local Authority_≤100kVA | R38: Rural_Non-Local Authority_≤100kVA | S38: Rural_Non-Local Authority_≤100kVA | T38: Rural_Non-Local Authority_≤100kVA | U38: =$D45&"_"&$D48&"_"&$D50 -> Rural_Non-Local Authority_≤100kVA | V38: Rural_Non-Local Authority_≤100kVA | W38: Rural_Non-Local Authority_≤100kVA | X38: Rural_Non-Local Authority_≤100kVA | Y38: Rural_Non-Local Authority_≤100kVA | Z38: Rural_Non-Local Authority_≤100kVA | AA38: Rural_Non-Local Authority_≤100kVA | AB38: Rural_Non-Local Authority_≤100kVA | AC38: Rural_Non-Local Authority_≤100kVA | AE38: 0 | AF38: Rural_Non-Local Authority_≤100kVA | AG38: Rural_Non-Local Authority_≤100kVA | AH38: Rural_Non-Local Authority_≤100kVA | AI38: Rural_Non-Local Authority_≤100kVA | AJ38: Rural_Non-Local Authority_≤100kVA | AK38: Rural_Non-Local Authority_≤100kVA | AL38: Rural_Non-Local Authority_≤100kVA | AM38: Rural_Non-Local Authority_≤100kVA | AN38: Rural_Non-Local Authority_≤100kVA | AO38: Rural_Non-Local Authority_≤100kVA | AP38: Rural_Non-Local Authority_≤100kVA | AQ38: Rural_Non-Local Authority_≤100kVA | AR38: Rural_Non-Local Authority_≤100kVA | AS38: Rural_Non-Local Authority_≤100kVA | AT38: Rural_Non-Local Authority_≤100kVA | AU38: Rural_Non-Local Authority_≤100kVA | AV38: Rural_Non-Local Authority_≤100kVA | AW38: Rural_Non-Local Authority_≤100kVA | AX38: Rural_Non-Local Authority_≤100kVA | AY38: Rural_Non-Local Authority_≤100kVA | AZ38: Rural_Non-Local Authority_≤100kVA | BA38: Rural_Non-Local Authority_≤100kVA | BB38: Rural_Non-Local Authority_≤100kVA | BC38: Rural_Non-Local Authority_≤100kVA
E39: 0 | AE39: 0
B40: Check tables | E40: 0 | AE40: 0
C41: Table 1: 1 = LPU, 0 = SPU | E41: 0 | F41: 0 | G41: 0 | H41: 0 | I41: 0 | J41: 0 | K41: 0 | L41: 0 | M41: 0 | N41: 0 | O41: 0 | P41: 0 | Q41: 0 | R41: 0 | S41: 0 | T41: 0 | U41: 0 | V41: 0 | W41: 0 | X41: 0 | Y41: 0 | Z41: 0 | AA41: 0 | AB41: 0 | AC41: 0 | AE41: 0 | AF41: =F41 -> 0 | AG41: 0 | AH41: 0 | AI41: 0 | AJ41: 0 | AK41: 0 | AL41: 0 | AM41: 0 | AN41: 0 | AO41: 0 | AP41: 0 | AQ41: 0 | AR41: 0 | AS41: 0 | AT41: 0 | AU41: =U41 -> 0 | AV41: 0 | AW41: 0 | AX41: 0 | AY41: 0 | AZ41: =Z41 -> 0 | BA41: =AA41 -> 0 | BB41: =AB41 -> 0 | BC41: =AC41 -> 0
B43: Assumptions
C44: Tariff: | D44: =Selected_Base_Tariff -> Landrate 4
C45: Type | D45: =INDEX(Full_Tariff_Type,MATCH(D44,Full_Tariff_List,0)) -> Rural
C46: Supply voltage | D46: =Selected_Supply_Voltage -> < 500V
C47: Transmission zone | D47: =Selected_Transmission -> Not Applicable
C48: Tariff Category | D48: =Selected_Tariff_Category -> Non-Local Authority
C49: No of PODS | D49: =PODs -> 1
C50: Size of supply | D50: =IF(Selected_Customer_Category_ID=1,Lists!N21,Selected_Supply_Size) -> ≤100kVA

Sheet Workings High (hidden)
B4: Calculations by Tariff
B6: Tariffs | E6: =Selected_Base_Tariff -> Landrate 4 | F6: =INDEX(Full_Tariff_List,F$7,) -> Businessrate 1 | G6: Businessrate 2 | H6: Businessrate 3 | I6: Businessrate 4 | J6: Homelight 20A | K6: Homelight 60A | L6: Homepower 1 | M6: Homepower 2 | N6: Homepower 3 | O6: Homepower 4 | P6: Homepower Bulk | Q6: Landrate 1 | R6: Landrate 2 | S6: Landrate 3 | T6: Landrate 4 | U6: Landrate Dx | V6: Landlight 20A | W6: Landlight 60A | X6: Public Lighting All Night | Y6: Public Lighting 24 Hours | Z6: Homeflex 1 | AA6: Homeflex 2 | AB6: Homeflex 3 | AC6: Homeflex 4 | AE6: =E6 -> Landrate 4 | AF6: Businessrate 1 | AG6: Businessrate 2 | AH6: Businessrate 3 | AI6: Businessrate 4 | AJ6: Homelight 20A | AK6: Homelight 60A | AL6: Homepower 1 | AM6: Homepower 2 | AN6: Homepower 3 | AO6: Homepower 4 | AP6: Homepower Bulk | AQ6: Landrate 1 | AR6: Landrate 2 | AS6: Landrate 3 | AT6: Landrate 4 | AU6: Landrate Dx | AV6: Landlight 20A | AW6: Landlight 60A | AX6: Public Lighting All Night | AY6: Public Lighting 24 Hours | AZ6: Homeflex 1 | BA6: Homeflex 2 | BB6: Homeflex 3 | BC6: Homeflex 4
F7: 1 | G7: =F7+1 -> 2 | H7: =G7+1 -> 3 | I7: 4 | J7: 5 | K7: 6 | L7: 7 | M7: 8 | N7: 9 | O7: 10 | P7: 11 | Q7: 12 | R7: 13 | S7: 14 | T7: 15 | U7: =T7+1 -> 16 | V7: =U7+1 -> 17 | W7: =V7+1 -> 18 | X7: =W7+1 -> 19 | Y7: =X7+1 -> 20 | Z7: =Y7+8 -> 28 | AA7: =Z7+1 -> 29 | AB7: =AA7+1 -> 30 | AC7: =AB7+1 -> 31 | AE7: =E7 -> 0 | AF7: 1 | AG7: 2 | AH7: 3 | AI7: 4 | AJ7: 5 | AK7: 6 | AL7: 7 | AM7: 8 | AN7: 9 | AO7: 10 | AP7: 11 | AQ7: 12 | AR7: 13 | AS7: 14 | AT7: 15 | AU7: 16 | AV7: 17 | AW7: 18 | AX7: 19 | AY7: 20 | AZ7: 28 | BA7: 29 | BB7: 30 | BC7: 31
B8: Network charges | D8: Units | E8: =Current_Period&" Rates" -> 2022/2023 Rates | F8: =E8 -> 2022/2023 Rates | G8: =F8 -> 2022/2023 Rates | H8: 2022/2023 Rates | I8: 2022/2023 Rates | J8: 2022/2023 Rates | K8: 2022/2023 Rates | L8: 2022/2023 Rates | M8: 2022/2023 Rates | N8: 2022/2023 Rates | O8: 2022/2023 Rates | P8: 2022/2023 Rates | Q8: 2022/2023 Rates | R8: 2022/2023 Rates | S8: 2022/2023 Rates | T8: 2022/2023 Rates | U8: =T8 -> 2022/2023 Rates | V8: =U8 -> 2022/2023 Rates | W8: =V8 -> 2022/2023 Rates | X8: =W8 -> 2022/2023 Rates | Y8: =X8 -> 2022/2023 Rates | Z8: =Y8 -> 2022/2023 Rates | AA8: =Z8 -> 2022/2023 Rates | AB8: =AA8 -> 2022/2023 Rates | AC8: =AB8 -> 2022/2023 Rates | AE8: =New_Period&" Rates" -> 2023/2024 Rates | AF8: =AE8 -> 2023/2024 Rates | AG8: =AF8 -> 2023/2024 Rates | AH8: 2023/2024 Rates | AI8: 2023/2024 Rates | AJ8: 2023/2024 Rates | AK8: 2023/2024 Rates | AL8: 2023/2024 Rates | AM8: 2023/2024 Rates | AN8: 2023/2024 Rates | AO8: 2023/2024 Rates | AP8: 2023/2024 Rates | AQ8: 2023/2024 Rates | AR8: 2023/2024 Rates | AS8: 2023/2024 Rates | AT8: 2023/2024 Rates | AU8: =AT8 -> 2023/2024 Rates | AV8: =AU8 -> 2023/2024 Rates | AW8: =AV8 -> 2023/2024 Rates | AX8: =AW8 -> 2023/2024 Rates | AY8: =AX8 -> 2023/2024 Rates | AZ8: =AY8 -> 2023/2024 Rates | BA8: =AZ8 -> 2023/2024 Rates | BB8: =BA8 -> 2023/2024 Rates | BC8: =BB8 -> 2023/2024 Rates
C10: Distribution network demand charge | D10: c/kWh | E10: =SUMIFS(F10:AC10,$F$7:$AC$7,Selected_Tariff_ID) -> 0 | F10: =IFERROR('Rates Table'!F10*SPU_Annual_Total_Energy,0)/100 -> 0 | G10: =IFERROR('Rates Table'!G10*SPU_Annual_Total_Energy,0)/100 -> 0 | H10: =IFERROR('Rates Table'!H10*SPU_Annual_Total_Energy,0)/100 -> 0 | I10: =IFERROR('Rates Table'!I10*SPU_Annual_Total_Energy,0)/100 -> 0 | J10: =IFERROR('Rates Table'!J10*SPU_Annual_Total_Energy,0)/100 -> 0 | K10: =IFERROR('Rates Table'!K10*SPU_Annual_Total_Energy,0)/100 -> 0 | L10: =IFERROR('Rates Table'!L10*SPU_Annual_Total_Energy,0)/100 -> 0 | M10: =IFERROR('Rates Table'!M10*SPU_Annual_Total_Energy,0)/100 -> 0 | N10: =IFERROR('Rates Table'!N10*SPU_Annual_Total_Energy,0)/100 -> 0 | O10: =IFERROR('Rates Table'!O10*SPU_Annual_Total_Energy,0)/100 -> 0 | P10: =IFERROR('Rates Table'!P10*SPU_Annual_Total_Energy,0)/100 -> 0 | Q10: =IFERROR('Rates Table'!Q10*SPU_Annual_Total_Energy,0)/100 -> 0 | R10: =IFERROR('Rates Table'!R10*SPU_Annual_Total_Energy,0)/100 -> 0 | S10: =IFERROR('Rates Table'!S10*SPU_Annual_Total_Energy,0)/100 -> 0 | T10: =IFERROR('Rates Table'!T10*SPU_Annual_Total_Energy,0)/100 -> 0 | U10: =IFERROR('Rates Table'!U10*SPU_Annual_Total_Energy,0)/100 -> 0 | V10: =IFERROR('Rates Table'!V10*SPU_Annual_Total_Energy,0)/100 -> 0 | W10: =IFERROR('Rates Table'!W10*SPU_Annual_Total_Energy,0)/100 -> 0 | X10: =IFERROR('Rates Table'!X10*SPU_Annual_Total_Energy,0)/100 -> 0 | Y10: =IFERROR('Rates Table'!Y10*SPU_Annual_Total_Energy,0)/100 -> 0 | Z10: =IFERROR('Rates Table'!Z10*SPU_Annual_Total_Energy,0)/100 -> 0 | AA10: =IFERROR('Rates Table'!AA10*SPU_Annual_Total_Energy,0)/100 -> 0 | AB10: =IFERROR('Rates Table'!AB10*SPU_Annual_Total_Energy,0)/100 -> 0 | AC10: =IFERROR('Rates Table'!AC10*SPU_Annual_Total_Energy,0)/100 -> 0 | AE10: =SUMIFS(AF10:BC10,$F$7:$AC$7,Selected_Tariff_ID) -> 0 | AF10: =IFERROR('Rates Table'!AF10*SPU_Annual_Total_Energy,0)/100 -> 0 | AG10: =IFERROR('Rates Table'!AG10*SPU_Annual_Total_Energy,0)/100 -> 0 | AH10: =IFERROR('Rates Table'!AH10*SPU_Annual_Total_Energy,0)/100 -> 0 | AI10: =IFERROR('Rates Table'!AI10*SPU_Annual_Total_Energy,0)/100 -> 0 | AJ10: =IFERROR('Rates Table'!AJ10*SPU_Annual_Total_Energy,0)/100 -> 0 | AK10: =IFERROR('Rates Table'!AK10*SPU_Annual_Total_Energy,0)/100 -> 0 | AL10: =IFERROR('Rates Table'!AL10*SPU_Annual_Total_Energy,0)/100 -> 0 | AM10: =IFERROR('Rates Table'!AM10*SPU_Annual_Total_Energy,0)/100 -> 0 | AN10: =IFERROR('Rates Table'!AN10*SPU_Annual_Total_Energy,0)/100 -> 0 | AO10: =IFERROR('Rates Table'!AO10*SPU_Annual_Total_Energy,0)/100 -> 0 | AP10: =IFERROR('Rates Table'!AP10*SPU_Annual_Total_Energy,0)/100 -> 0 | AQ10: =IFERROR('Rates Table'!AQ10*SPU_Annual_Total_Energy,0)/100 -> 0 | AR10: =IFERROR('Rates Table'!AR10*SPU_Annual_Total_Energy,0)/100 -> 0 | AS10: =IFERROR('Rates Table'!AS10*SPU_Annual_Total_Energy,0)/100 -> 0 | AT10: =IFERROR('Rates Table'!AT10*SPU_Annual_Total_Energy,0)/100 -> 0 | AU10: =IFERROR('Rates Table'!AU10*SPU_Annual_Total_Energy,0)/100 -> 0 | AV10: =IFERROR('Rates Table'!AV10*SPU_Annual_Total_Energy,0)/100 -> 0 | AW10: =IFERROR('Rates Table'!AW10*SPU_Annual_Total_Energy,0)/100 -> 0 | AX10: =IFERROR('Rates Table'!AX10*SPU_Annual_Total_Energy,0)/100 -> 0 | AY10: =IFERROR('Rates Table'!AY10*SPU_Annual_Total_Energy,0)/100 -> 0 | AZ10: =IFERROR('Rates Table'!AZ10*SPU_Annual_Total_Energy,0)/100 -> 0 | BA10: =IFERROR('Rates Table'!BA10*SPU_Annual_Total_Energy,0)/100 -> 0 | BB10: =IFERROR('Rates Table'!BB10*SPU_Annual_Total_Energy,0)/100 -> 0 | BC10: =IFERROR('Rates Table'!BC10*SPU_Annual_Total_Energy,0)/100 -> 0
C11: Network demand charge, Ancillary service charge and retail | D11: c/kWh | E11: =SUMIFS(F11:AC11,$F$7:$AC$7,Selected_Tariff_ID) -> 0 | Z11: =IFERROR('Rates Table'!Z11*SPU_Annual_Total_Energy,0)/100 -> 0 | AA11: =IFERROR('Rates Table'!AA11*SPU_Annual_Total_Energy,0)/100 -> 0 | AB11: =IFERROR('Rates Table'!AB11*SPU_Annual_Total_Energy,0)/100 -> 0 | AC11: =IFERROR('Rates Table'!AC11*SPU_Annual_Total_Energy,0)/100 -> 0 | AE11: =SUMIFS(AF11:BC11,$F$7:$AC$7,Selected_Tariff_ID) -> 0 | AZ11: =IFERROR('Rates Table'!AZ11*SPU_Annual_Total_Energy,0)/100 -> 0 | BA11: =IFERROR('Rates Table'!BA11*SPU_Annual_Total_Energy,0)/100 -> 0 | BB11: =IFERROR('Rates Table'!BB11*SPU_Annual_Total_Energy,0)/100 -> 0 | BC11: =IFERROR('Rates Table'!BC11*SPU_Annual_Total_Energy,0)/100 -> 0
C12: Network capacity charge | D12: =IF(Table_1=1,"R/kVA","R/day") -> R/day | E12: =SUMIFS(F12:AC12,$F$7:$AC$7,Selected_Tariff_ID) -> 1008.3125 | F12: =IFERROR('Rates Table'!F12*PODs*ESKOM_Total_days,0) -> 965.7291667 | G12: =IFERROR('Rates Table'!G12*PODs*ESKOM_Total_days,0) -> 1627.291667 | H12: =IFERROR('Rates Table'!H12*PODs*ESKOM_Total_days,0) -> 2811.4125 | I12: =IFERROR('Rates Table'!I12*PODs*ESKOM_Total_days,0) -> 0 | J12: =IFERROR('Rates Table'!J12*PODs*ESKOM_Total_days,0) -> 0 | K12: =IFERROR('Rates Table'!K12*PODs*ESKOM_Total_days,0) -> 0 | L12: =IFERROR('Rates Table'!L12*PODs*ESKOM_Total_days,0) -> 239.075 | M12: =IFERROR('Rates Table'!M12*PODs*ESKOM_Total_days,0) -> 448.0375 | N12: =IFERROR('Rates Table'!N12*PODs*ESKOM_Total_days,0) -> 925.275 | O12: =IFERROR('Rates Table'!O12*PODs*ESKOM_Total_days,0) -> 146 | P12: =IFERROR('Rates Table'!P12*PODs*ESKOM_Total_days,0) -> 1517.183333 | Q12: =IFERROR('Rates Table'!Q12*PODs*ESKOM_Total_days,0) -> 1266.245833 | R12: =IFERROR('Rates Table'!R12*PODs*ESKOM_Total_days,0) -> 1946.3625 | S12: =IFERROR('Rates Table'!S12*PODs*ESKOM_Total_days,0) -> 3111.625 | T12: =IFERROR('Rates Table'!T12*PODs*ESKOM_Total_days,0) -> 1008.3125 | U12: =IFERROR('Rates Table'!U12*PODs*ESKOM_Total_days,0) -> 0 | V12: =IFERROR('Rates Table'!V12*PODs*ESKOM_Total_days,0) -> 0 | W12: =IFERROR('Rates Table'!W12*PODs*ESKOM_Total_days,0) -> 0 | X12: =IFERROR('Rates Table'!X12*PODs*ESKOM_Total_days,0) -> 0 | Y12: =IFERROR('Rates Table'!Y12*PODs*ESKOM_Total_days,0) -> 0 | Z12: =IFERROR('Rates Table'!Z12*PODs*ESKOM_Total_days,0) -> 0 | AA12: =IFERROR('Rates Table'!AA12*PODs*ESKOM_Total_days,0) -> 0 | AB12: =IFERROR('Rates Table'!AB12*PODs*ESKOM_Total_days,0) -> 0 | AC12: =IFERROR('Rates Table'!AC12*PODs*ESKOM_Total_days,0) -> 0 | AE12: =SUMIFS(AF12:BC12,$F$7:$AC$7,Selected_Tariff_ID) -> 1196.2875 | AF12: =IFERROR('Rates Table'!AF12*PODs*ESKOM_Total_days,0) -> 1145.795833 | AG12: =IFERROR('Rates Table'!AG12*PODs*ESKOM_Total_days,0) -> 1930.85 | AH12: =IFERROR('Rates Table'!AH12*PODs*ESKOM_Total_days,0) -> 3335.795833 | AI12: =IFERROR('Rates Table'!AI12*PODs*ESKOM_Total_days,0) -> 0 | AJ12: =IFERROR('Rates Table'!AJ12*PODs*ESKOM_Total_days,0) -> 0 | AK12: =IFERROR('Rates Table'!AK12*PODs*ESKOM_Total_days,0) -> 0 | AL12: =IFERROR('Rates Table'!AL12*PODs*ESKOM_Total_days,0) -> 283.7875 | AM12: =IFERROR('Rates Table'!AM12*PODs*ESKOM_Total_days,0) -> 531.6833333 | AN12: =IFERROR('Rates Table'!AN12*PODs*ESKOM_Total_days,0) -> 1097.7375 | AO12: =IFERROR('Rates Table'!AO12*PODs*ESKOM_Total_days,0) -> 173.375 | AP12: =IFERROR('Rates Table'!AP12*PODs*ESKOM_Total_days,0) -> 1800.058333 | AQ12: =IFERROR('Rates Table'!AQ12*PODs*ESKOM_Total_days,0) -> 1502.279167 | AR12: =IFERROR('Rates Table'!AR12*PODs*ESKOM_Total_days,0) -> 2309.233333 | AS12: =IFERROR('Rates Table'!AS12*PODs*ESKOM_Total_days,0) -> 3691.975 | AT12: =IFERROR('Rates Table'!AT12*PODs*ESKOM_Total_days,0) -> 1196.2875 | AU12: =IFERROR('Rates Table'!AU12*PODs*ESKOM_Total_days,0) -> 0 | AV12: =IFERROR('Rates Table'!AV12*PODs*ESKOM_Total_days,0) -> 0 | AW12: =IFERROR('Rates Table'!AW12*PODs*ESKOM_Total_days,0) -> 0 | AX12: =IFERROR('Rates Table'!AX12*PODs*ESKOM_Total_days,0) -> 0 | AY12: =IFERROR('Rates Table'!AY12*PODs*ESKOM_Total_days,0) -> 0 | AZ12: =IFERROR('Rates Table'!AZ12*PODs*ESKOM_Total_days,0) -> 283.7875 | BA12: =IFERROR('Rates Table'!BA12*PODs*ESKOM_Total_days,0) -> 531.6833333 | BB12: =IFERROR('Rates Table'!BB12*PODs*ESKOM_Total_days,0) -> 1097.7375 | BC12: =IFERROR('Rates Table'!BC12*PODs*ESKOM_Total_days,0) -> 173.375
B14: Total network charges | E14: =SUM(E10:E12) -> 1008.3125 | F14: 965.7291667 | G14: 1627.291667 | H14: 2811.4125 | I14: 0 | J14: 0 | K14: 0 | L14: 239.075 | M14: 448.0375 | N14: 925.275 | O14: 146 | P14: 1517.183333 | Q14: 1266.245833 | R14: 1946.3625 | S14: 3111.625 | T14: 1008.3125 | U14: =SUM(U10:U12) -> 0 | V14: 0 | W14: 0 | X14: 0 | Y14: 0 | Z14: 0 | AA14: =SUM(AA10:AA12) -> 0 | AB14: 0 | AC14: 0 | AE14: =SUM(AE10:AE12) -> 1196.2875 | AF14: =SUM(AF10:AF12) -> 1145.795833 | AG14: 1930.85 | AH14: 3335.795833 | AI14: 0 | AJ14: 0 | AK14: 0 | AL14: 283.7875 | AM14: 531.6833333 | AN14: 1097.7375 | AO14: 173.375 | AP14: 1800.058333 | AQ14: 1502.279167 | AR14: 2309.233333 | AS14: 3691.975 | AT14: 1196.2875 | AU14: =SUM(AU10:AU12) -> 0 | AV14: 0 | AW14: 0 | AX14: 0 | AY14: 0 | AZ14: 283.7875 | BA14: =SUM(BA10:BA12) -> 531.6833333 | BB14: 1097.7375 | BC14: 173.375
B16: Energy charges | D16: Units | E16: =E$8 -> 2022/2023 Rates | F16: =F$8 -> 2022/2023 Rates | G16: 2022/2023 Rates | H16: 2022/2023 Rates | I16: 2022/2023 Rates | J16: 2022/2023 Rates | K16: 2022/2023 Rates | L16: 2022/2023 Rates | M16: 2022/2023 Rates | N16: 2022/2023 Rates | O16: 2022/2023 Rates | P16: 2022/2023 Rates | Q16: 2022/2023 Rates | R16: 2022/2023 Rates | S16: 2022/2023 Rates | T16: 2022/2023 Rates | U16: 2022/2023 Rates | V16: 2022/2023 Rates | W16: 2022/2023 Rates | X16: 2022/2023 Rates | Y16: 2022/2023 Rates | Z16: 2022/2023 Rates | AA16: 2022/2023 Rates | AB16: 2022/2023 Rates | AC16: 2022/2023 Rates | AE16: =AE$8 -> 2023/2024 Rates | AF16: =AF$8 -> 2023/2024 Rates | AG16: 2023/2024 Rates | AH16: 2023/2024 Rates | AI16: 2023/2024 Rates | AJ16: 2023/2024 Rates | AK16: 2023/2024 Rates | AL16: 2023/2024 Rates | AM16: 2023/2024 Rates | AN16: 2023/2024 Rates | AO16: 2023/2024 Rates | AP16: 2023/2024 Rates | AQ16: 2023/2024 Rates | AR16: 2023/2024 Rates | AS16: 2023/2024 Rates | AT16: 2023/2024 Rates | AU16: 2023/2024 Rates | AV16: 2023/2024 Rates | AW16: 2023/2024 Rates | AX16: 2023/2024 Rates | AY16: 2023/2024 Rates | AZ16: 2023/2024 Rates | BA16: 2023/2024 Rates | BB16: 2023/2024 Rates | BC16: 2023/2024 Rates
C18: Energy | D18: c/kWh | E18: =SUMIFS(F18:AC18,$F$7:$AC$7,Selected_Tariff_ID) -> 0 | F18: =IFERROR('Rates Table'!F18*(SPU_Annual_Total_Energy),0)/100 -> 0 | G18: =IFERROR('Rates Table'!G18*(SPU_Annual_Total_Energy),0)/100 -> 0 | H18: =IFERROR('Rates Table'!H18*(SPU_Annual_Total_Energy),0)/100 -> 0 | I18: =IFERROR('Rates Table'!I18*(SPU_Annual_Total_Energy),0)/100 -> 0 | J18: =IFERROR('Rates Table'!J18*(SPU_Annual_Total_Energy),0)/100 -> 0 | K18: =IFERROR('Rates Table'!K18*(SPU_Annual_Total_Energy),0)/100 -> 0 | L18: =IFERROR('Rates Table'!L18*(SPU_Annual_Total_Energy),0)/100 -> 0 | M18: =IFERROR('Rates Table'!M18*(SPU_Annual_Total_Energy),0)/100 -> 0 | N18: =IFERROR('Rates Table'!N18*(SPU_Annual_Total_Energy),0)/100 -> 0 | O18: =IFERROR('Rates Table'!O18*(SPU_Annual_Total_Energy),0)/100 -> 0 | P18: =IFERROR('Rates Table'!P18*(SPU_Annual_Total_Energy),0)/100 -> 0 | Q18: =IFERROR('Rates Table'!Q18*(SPU_Annual_Total_Energy),0)/100 -> 0 | R18: =IFERROR('Rates Table'!R18*(SPU_Annual_Total_Energy),0)/100 -> 0 | S18: =IFERROR('Rates Table'!S18*(SPU_Annual_Total_Energy),0)/100 -> 0 | T18: =IFERROR('Rates Table'!T18*(SPU_Annual_Total_Energy),0)/100 -> 0 | U18: =IFERROR('Rates Table'!U18*(SPU_Annual_Total_Energy),0)/100 -> 0 | V18: =IFERROR('Rates Table'!V18*(SPU_Annual_Total_Energy),0)/100 -> 0 | W18: =IFERROR('Rates Table'!W18*(SPU_Annual_Total_Energy),0)/100 -> 0 | X18: =IFERROR('Rates Table'!X18*(SPU_Annual_Total_Energy),0)/100 -> 0 | Y18: =IFERROR('Rates Table'!Y18*(SPU_Annual_Total_Energy),0)/100 -> 0 | Z18: =IFERROR('Rates Table'!Z18*(SPU_Annual_Total_Energy),0)/100 -> 0 | AA18: =IFERROR('Rates Table'!AA18*(SPU_Annual_Total_Energy),0)/100 -> 0 | AB18: =IFERROR('Rates Table'!AB18*(SPU_Annual_Total_Energy),0)/100 -> 0 | AC18: =IFERROR('Rates Table'!AC18*(SPU_Annual_Total_Energy),0)/100 -> 0 | AE18: =SUMIFS(AF18:BC18,$F$7:$AC$7,Selected_Tariff_ID) -> 0 | AF18: =IFERROR('Rates Table'!AF18*(SPU_Annual_Total_Energy),0)/100 -> 0 | AG18: =IFERROR('Rates Table'!AG18*(SPU_Annual_Total_Energy),0)/100 -> 0 | AH18: =IFERROR('Rates Table'!AH18*(SPU_Annual_Total_Energy),0)/100 -> 0 | AI18: =IFERROR('Rates Table'!AI18*(SPU_Annual_Total_Energy),0)/100 -> 0 | AJ18: =IFERROR('Rates Table'!AJ18*(SPU_Annual_Total_Energy),0)/100 -> 0 | AK18: =IFERROR('Rates Table'!AK18*(SPU_Annual_Total_Energy),0)/100 -> 0 | AL18: =IFERROR('Rates Table'!AL18*(SPU_Annual_Total_Energy),0)/100 -> 0 | AM18: =IFERROR('Rates Table'!AM18*(SPU_Annual_Total_Energy),0)/100 -> 0 | AN18: =IFERROR('Rates Table'!AN18*(SPU_Annual_Total_Energy),0)/100 -> 0 | AO18: =IFERROR('Rates Table'!AO18*(SPU_Annual_Total_Energy),0)/100 -> 0 | AP18: =IFERROR('Rates Table'!AP18*(SPU_Annual_Total_Energy),0)/100 -> 0 | AQ18: =IFERROR('Rates Table'!AQ18*(SPU_Annual_Total_Energy),0)/100 -> 0 | AR18: =IFERROR('Rates Table'!AR18*(SPU_Annual_Total_Energy),0)/100 -> 0 | AS18: =IFERROR('Rates Table'!AS18*(SPU_Annual_Total_Energy),0)/100 -> 0 | AT18: =IFERROR('Rates Table'!AT18*(SPU_Annual_Total_Energy),0)/100 -> 0 | AU18: =IFERROR('Rates Table'!AU18*(SPU_Annual_Total_Energy),0)/100 -> 0 | AV18: =IFERROR('Rates Table'!AV18*(SPU_Annual_Total_Energy),0)/100 -> 0 | AW18: =IFERROR('Rates Table'!AW18*(SPU_Annual_Total_Energy),0)/100 -> 0 | AX18: =IFERROR('Rates Table'!AX18*(SPU_Annual_Total_Energy),0)/100 -> 0 | AY18: =IFERROR('Rates Table'!AY18*(SPU_Annual_Total_Energy),0)/100 -> 0 | AZ18: =IFERROR('Rates Table'!AZ18*(SPU_Annual_Total_Energy),0)/100 -> 0 | BA18: =IFERROR('Rates Table'!BA18*(SPU_Annual_Total_Energy),0)/100 -> 0 | BB18: =IFERROR('Rates Table'!BB18*(SPU_Annual_Total_Energy),0)/100 -> 0 | BC18: =IFERROR('Rates Table'!BC18*(SPU_Annual_Total_Energy),0)/100 -> 0
C19: Peak consumption | D19: c/kWh | E19: 0 | Z19: =IFERROR('Rates Table'!Z19*(Homeflex_Peak_Energy),0)/100 -> 0 | AA19: =IFERROR('Rates Table'!AA19*(Homeflex_Peak_Energy),0)/100 -> 0 | AB19: =IFERROR('Rates Table'!AB19*(Homeflex_Peak_Energy),0)/100 -> 0 | AC19: =IFERROR('Rates Table'!AC19*(Homeflex_Peak_Energy),0)/100 -> 0 | AE19: 0 | AZ19: =IFERROR('Rates Table'!AZ19*(Homeflex_Peak_Energy),0)/100 -> 0 | BA19: =IFERROR('Rates Table'!BA19*(Homeflex_Peak_Energy),0)/100 -> 0 | BB19: =IFERROR('Rates Table'!BB19*(Homeflex_Peak_Energy),0)/100 -> 0 | BC19: =IFERROR('Rates Table'!BC19*(Homeflex_Peak_Energy),0)/100 -> 0
C20: Standard consumption | D20: c/kWh | E20: 0 | Z20: =IFERROR('Rates Table'!Z20*(Homeflex_Standard_Energy),0)/100 -> 0 | AA20: =IFERROR('Rates Table'!AA20*(Homeflex_Standard_Energy),0)/100 -> 0 | AB20: =IFERROR('Rates Table'!AB20*(Homeflex_Standard_Energy),0)/100 -> 0 | AC20: =IFERROR('Rates Table'!AC20*(Homeflex_Standard_Energy),0)/100 -> 0 | AE20: 0 | AZ20: =IFERROR('Rates Table'!AZ20*(Homeflex_Standard_Energy),0)/100 -> 0 | BA20: =IFERROR('Rates Table'!BA20*(Homeflex_Standard_Energy),0)/100 -> 0 | BB20: =IFERROR('Rates Table'!BB20*(Homeflex_Standard_Energy),0)/100 -> 0 | BC20: =IFERROR('Rates Table'!BC20*(Homeflex_Standard_Energy),0)/100 -> 0
C21: Off-Peak consumption | D21: c/kWh | E21: 0 | Z21: =IFERROR('Rates Table'!Z21*(Homeflex_OffPeak_Energy),0)/100 -> 0 | AA21: =IFERROR('Rates Table'!AA21*(Homeflex_OffPeak_Energy),0)/100 -> 0 | AB21: =IFERROR('Rates Table'!AB21*(Homeflex_OffPeak_Energy),0)/100 -> 0 | AC21: =IFERROR('Rates Table'!AC21*(Homeflex_OffPeak_Energy),0)/100 -> 0 | AE21: 0 | AZ21: =IFERROR('Rates Table'!AZ21*(Homeflex_OffPeak_Energy),0)/100 -> 0 | BA21: =IFERROR('Rates Table'!BA21*(Homeflex_OffPeak_Energy),0)/100 -> 0 | BB21: =IFERROR('Rates Table'!BB21*(Homeflex_OffPeak_Energy),0)/100 -> 0 | BC21: =IFERROR('Rates Table'!BC21*(Homeflex_OffPeak_Energy),0)/100 -> 0
C22: Energy - Block 1 | D22: c/kWh | E22: 0 | F22: =IFERROR('Rates Table'!F22*(SPU_Block_1),0)/100 -> 0 | G22: =IFERROR('Rates Table'!G22*(SPU_Block_1),0)/100 -> 0 | H22: =IFERROR('Rates Table'!H22*(SPU_Block_1),0)/100 -> 0 | I22: =IFERROR('Rates Table'!I22*(SPU_Block_1),0)/100 -> 0 | J22: =IFERROR('Rates Table'!J22*(SPU_Block_1),0)/100 -> 0 | K22: =IFERROR('Rates Table'!K22*(SPU_Block_1),0)/100 -> 0 | L22: =IFERROR('Rates Table'!L22*(SPU_Block_1),0)/100 -> 0 | M22: =IFERROR('Rates Table'!M22*(SPU_Block_1),0)/100 -> 0 | N22: =IFERROR('Rates Table'!N22*(SPU_Block_1),0)/100 -> 0 | O22: =IFERROR('Rates Table'!O22*(SPU_Block_1),0)/100 -> 0 | P22: =IFERROR('Rates Table'!P22*(SPU_Block_1),0)/100 -> 0 | Q22: =IFERROR('Rates Table'!Q22*(SPU_Block_1),0)/100 -> 0 | R22: =IFERROR('Rates Table'!R22*(SPU_Block_1),0)/100 -> 0 | S22: =IFERROR('Rates Table'!S22*(SPU_Block_1),0)/100 -> 0 | T22: =IFERROR('Rates Table'!T22*(SPU_Block_1),0)/100 -> 0 | U22: =IFERROR('Rates Table'!U22*(SPU_Block_1),0)/100 -> 0 | V22: =IFERROR('Rates Table'!V22*(SPU_Block_1),0)/100 -> 0 | W22: =IFERROR('Rates Table'!W22*(SPU_Block_1),0)/100 -> 0 | X22: =IFERROR('Rates Table'!X22*(SPU_Block_1),0)/100 -> 0 | Y22: =IFERROR('Rates Table'!Y22*(SPU_Block_1),0)/100 -> 0 | Z22: =IFERROR('Rates Table'!Z22*(SPU_Block_1),0)/100 -> 0 | AA22: =IFERROR('Rates Table'!AA22*(SPU_Block_1),0)/100 -> 0 | AB22: =IFERROR('Rates Table'!AB22*(SPU_Block_1),0)/100 -> 0 | AC22: =IFERROR('Rates Table'!AC22*(SPU_Block_1),0)/100 -> 0 | AE22: 0 | AF22: =IFERROR('Rates Table'!AF22*(SPU_Block_1),0)/100 -> 0 | AG22: =IFERROR('Rates Table'!AG22*(SPU_Block_1),0)/100 -> 0 | AH22: =IFERROR('Rates Table'!AH22*(SPU_Block_1),0)/100 -> 0 | AI22: =IFERROR('Rates Table'!AI22*(SPU_Block_1),0)/100 -> 0 | AJ22: =IFERROR('Rates Table'!AJ22*(SPU_Block_1),0)/100 -> 0 | AK22: =IFERROR('Rates Table'!AK22*(SPU_Block_1),0)/100 -> 0 | AL22: =IFERROR('Rates Table'!AL22*(SPU_Block_1),0)/100 -> 0 | AM22: =IFERROR('Rates Table'!AM22*(SPU_Block_1),0)/100 -> 0 | AN22: =IFERROR('Rates Table'!AN22*(SPU_Block_1),0)/100 -> 0 | AO22: =IFERROR('Rates Table'!AO22*(SPU_Block_1),0)/100 -> 0 | AP22: =IFERROR('Rates Table'!AP22*(SPU_Block_1),0)/100 -> 0 | AQ22: =IFERROR('Rates Table'!AQ22*(SPU_Block_1),0)/100 -> 0 | AR22: =IFERROR('Rates Table'!AR22*(SPU_Block_1),0)/100 -> 0 | AS22: =IFERROR('Rates Table'!AS22*(SPU_Block_1),0)/100 -> 0 | AT22: =IFERROR('Rates Table'!AT22*(SPU_Block_1),0)/100 -> 0 | AU22: =IFERROR('Rates Table'!AU22*(SPU_Block_1),0)/100 -> 0 | AV22: =IFERROR('Rates Table'!AV22*(SPU_Block_1),0)/100 -> 0 | AW22: =IFERROR('Rates Table'!AW22*(SPU_Block_1),0)/100 -> 0 | AX22: =IFERROR('Rates Table'!AX22*(SPU_Block_1),0)/100 -> 0 | AY22: =IFERROR('Rates Table'!AY22*(SPU_Block_1),0)/100 -> 0 | AZ22: =IFERROR('Rates Table'!AZ22*(SPU_Block_1),0)/100 -> 0 | BA22: =IFERROR('Rates Table'!BA22*(SPU_Block_1),0)/100 -> 0 | BB22: =IFERROR('Rates Table'!BB22*(SPU_Block_1),0)/100 -> 0 | BC22: =IFERROR('Rates Table'!BC22*(SPU_Block_1),0)/100 -> 0
C23: Energy - Block 2 | D23: c/kWh | E23: 0 | F23: =IFERROR('Rates Table'!F23*(SPU_Block_2),0)/100 -> 0 | G23: =IFERROR('Rates Table'!G23*(SPU_Block_2),0)/100 -> 0 | H23: =IFERROR('Rates Table'!H23*(SPU_Block_2),0)/100 -> 0 | I23: =IFERROR('Rates Table'!I23*(SPU_Block_2),0)/100 -> 0 | J23: =IFERROR('Rates Table'!J23*(SPU_Block_2),0)/100 -> 0 | K23: =IFERROR('Rates Table'!K23*(SPU_Block_2),0)/100 -> 0 | L23: =IFERROR('Rates Table'!L23*(SPU_Block_2),0)/100 -> 0 | M23: =IFERROR('Rates Table'!M23*(SPU_Block_2),0)/100 -> 0 | N23: =IFERROR('Rates Table'!N23*(SPU_Block_2),0)/100 -> 0 | O23: =IFERROR('Rates Table'!O23*(SPU_Block_2),0)/100 -> 0 | P23: =IFERROR('Rates Table'!P23*(SPU_Block_2),0)/100 -> 0 | Q23: =IFERROR('Rates Table'!Q23*(SPU_Block_2),0)/100 -> 0 | R23: =IFERROR('Rates Table'!R23*(SPU_Block_2),0)/100 -> 0 | S23: =IFERROR('Rates Table'!S23*(SPU_Block_2),0)/100 -> 0 | T23: =IFERROR('Rates Table'!T23*(SPU_Block_2),0)/100 -> 0 | U23: =IFERROR('Rates Table'!U23*(SPU_Block_2),0)/100 -> 0 | V23: =IFERROR('Rates Table'!V23*(SPU_Block_2),0)/100 -> 0 | W23: =IFERROR('Rates Table'!W23*(SPU_Block_2),0)/100 -> 0 | X23: =IFERROR('Rates Table'!X23*(SPU_Block_2),0)/100 -> 0 | Y23: =IFERROR('Rates Table'!Y23*(SPU_Block_2),0)/100 -> 0 | Z23: =IFERROR('Rates Table'!Z23*(SPU_Block_2),0)/100 -> 0 | AA23: =IFERROR('Rates Table'!AA23*(SPU_Block_2),0)/100 -> 0 | AB23: =IFERROR('Rates Table'!AB23*(SPU_Block_2),0)/100 -> 0 | AC23: =IFERROR('Rates Table'!AC23*(SPU_Block_2),0)/100 -> 0 | AE23: 0 | AF23: =IFERROR('Rates Table'!AF23*(SPU_Block_2),0)/100 -> 0 | AG23: =IFERROR('Rates Table'!AG23*(SPU_Block_2),0)/100 -> 0 | AH23: =IFERROR('Rates Table'!AH23*(SPU_Block_2),0)/100 -> 0 | AI23: =IFERROR('Rates Table'!AI23*(SPU_Block_2),0)/100 -> 0 | AJ23: =IFERROR('Rates Table'!AJ23*(SPU_Block_2),0)/100 -> 0 | AK23: =IFERROR('Rates Table'!AK23*(SPU_Block_2),0)/100 -> 0 | AL23: =IFERROR('Rates Table'!AL23*(SPU_Block_2),0)/100 -> 0 | AM23: =IFERROR('Rates Table'!AM23*(SPU_Block_2),0)/100 -> 0 | AN23: =IFERROR('Rates Table'!AN23*(SPU_Block_2),0)/100 -> 0 | AO23: =IFERROR('Rates Table'!AO23*(SPU_Block_2),0)/100 -> 0 | AP23: =IFERROR('Rates Table'!AP23*(SPU_Block_2),0)/100 -> 0 | AQ23: =IFERROR('Rates Table'!AQ23*(SPU_Block_2),0)/100 -> 0 | AR23: =IFERROR('Rates Table'!AR23*(SPU_Block_2),0)/100 -> 0 | AS23: =IFERROR('Rates Table'!AS23*(SPU_Block_2),0)/100 -> 0 | AT23: =IFERROR('Rates Table'!AT23*(SPU_Block_2),0)/100 -> 0 | AU23: =IFERROR('Rates Table'!AU23*(SPU_Block_2),0)/100 -> 0 | AV23: =IFERROR('Rates Table'!AV23*(SPU_Block_2),0)/100 -> 0 | AW23: =IFERROR('Rates Table'!AW23*(SPU_Block_2),0)/100 -> 0 | AX23: =IFERROR('Rates Table'!AX23*(SPU_Block_2),0)/100 -> 0 | AY23: =IFERROR('Rates Table'!AY23*(SPU_Block_2),0)/100 -> 0 | AZ23: =IFERROR('Rates Table'!AZ23*(SPU_Block_2),0)/100 -> 0 | BA23: =IFERROR('Rates Table'!BA23*(SPU_Block_2),0)/100 -> 0 | BB23: =IFERROR('Rates Table'!BB23*(SPU_Block_2),0)/100 -> 0 | BC23: =IFERROR('Rates Table'!BC23*(SPU_Block_2),0)/100 -> 0
B25: Total energy charges | E25: =SUM(E18:E23) -> 0 | F25: 0 | G25: 0 | H25: 0 | I25: 0 | J25: 0 | K25: 0 | L25: 0 | M25: 0 | N25: 0 | O25: 0 | P25: 0 | Q25: 0 | R25: 0 | S25: 0 | T25: 0 | U25: =SUM(U18:U23) -> 0 | V25: 0 | W25: 0 | X25: 0 | Y25: 0 | Z25: 0 | AA25: =SUM(AA18:AA23) -> 0 | AB25: 0 | AC25: 0 | AE25: =SUM(AE18:AE23) -> 0 | AF25: =SUM(AF18:AF23) -> 0 | AG25: 0 | AH25: 0 | AI25: 0 | AJ25: 0 | AK25: 0 | AL25: 0 | AM25: 0 | AN25: 0 | AO25: 0 | AP25: 0 | AQ25: 0 | AR25: 0 | AS25: 0 | AT25: 0 | AU25: =SUM(AU18:AU23) -> 0 | AV25: 0 | AW25: 0 | AX25: 0 | AY25: 0 | AZ25: 0 | BA25: =SUM(BA18:BA23) -> 0 | BB25: 0 | BC25: 0
B27: Other charges | D27: Units | E27: =E$8 -> 2022/2023 Rates | F27: =F$8 -> 2022/2023 Rates | G27: 2022/2023 Rates | H27: 2022/2023 Rates | I27: 2022/2023 Rates | J27: 2022/2023 Rates | K27: 2022/2023 Rates | L27: 2022/2023 Rates | M27: 2022/2023 Rates | N27: 2022/2023 Rates | O27: 2022/2023 Rates | P27: 2022/2023 Rates | Q27: 2022/2023 Rates | R27: 2022/2023 Rates | S27: 2022/2023 Rates | T27: 2022/2023 Rates | U27: 2022/2023 Rates | V27: 2022/2023 Rates | W27: 2022/2023 Rates | X27: 2022/2023 Rates | Y27: 2022/2023 Rates | Z27: 2022/2023 Rates | AA27: 2022/2023 Rates | AB27: 2022/2023 Rates | AC27: 2022/2023 Rates | AE27: =AE$8 -> 2023/2024 Rates | AF27: =AF$8 -> 2023/2024 Rates | AG27: 2023/2024 Rates | AH27: 2023/2024 Rates | AI27: 2023/2024 Rates | AJ27: 2023/2024 Rates | AK27: 2023/2024 Rates | AL27: 2023/2024 Rates | AM27: 2023/2024 Rates | AN27: 2023/2024 Rates | AO27: 2023/2024 Rates | AP27: 2023/2024 Rates | AQ27: 2023/2024 Rates | AR27: 2023/2024 Rates | AS27: 2023/2024 Rates | AT27: 2023/2024 Rates | AU27: 2023/2024 Rates | AV27: 2023/2024 Rates | AW27: 2023/2024 Rates | AX27: 2023/2024 Rates | AY27: 2023/2024 Rates | AZ27: 2023/2024 Rates | BA27: 2023/2024 Rates | BB27: 2023/2024 Rates | BC27: 2023/2024 Rates
C29: Ancillary service charge | D29: c/kWh | E29: =SUMIFS(F29:AC29,$F$7:$AC$7,Selected_Tariff_ID) -> 0 | F29: =IFERROR(SPU_Annual_Total_Energy*'Rates Table'!F29,0)/100 -> 0 | G29: =IFERROR(SPU_Annual_Total_Energy*'Rates Table'!G29,0)/100 -> 0 | H29: =IFERROR(SPU_Annual_Total_Energy*'Rates Table'!H29,0)/100 -> 0 | I29: =IFERROR(SPU_Annual_Total_Energy*'Rates Table'!I29,0)/100 -> 0 | J29: =IFERROR(SPU_Annual_Total_Energy*'Rates Table'!J29,0)/100 -> 0 | K29: =IFERROR(SPU_Annual_Total_Energy*'Rates Table'!K29,0)/100 -> 0 | L29: =IFERROR(SPU_Annual_Total_Energy*'Rates Table'!L29,0)/100 -> 0 | M29: =IFERROR(SPU_Annual_Total_Energy*'Rates Table'!M29,0)/100 -> 0 | N29: =IFERROR(SPU_Annual_Total_Energy*'Rates Table'!N29,0)/100 -> 0 | O29: =IFERROR(SPU_Annual_Total_Energy*'Rates Table'!O29,0)/100 -> 0 | P29: =IFERROR(SPU_Annual_Total_Energy*'Rates Table'!P29,0)/100 -> 0 | Q29: =IFERROR(SPU_Annual_Total_Energy*'Rates Table'!Q29,0)/100 -> 0 | R29: =IFERROR(SPU_Annual_Total_Energy*'Rates Table'!R29,0)/100 -> 0 | S29: =IFERROR(SPU_Annual_Total_Energy*'Rates Table'!S29,0)/100 -> 0 | T29: =IFERROR(SPU_Annual_Total_Energy*'Rates Table'!T29,0)/100 -> 0 | U29: =IFERROR(SPU_Annual_Total_Energy*'Rates Table'!U29,0)/100 -> 0 | V29: =IFERROR(SPU_Annual_Total_Energy*'Rates Table'!V29,0)/100 -> 0 | W29: =IFERROR(SPU_Annual_Total_Energy*'Rates Table'!W29,0)/100 -> 0 | X29: =IFERROR(SPU_Annual_Total_Energy*'Rates Table'!X29,0)/100 -> 0 | Y29: =IFERROR(SPU_Annual_Total_Energy*'Rates Table'!Y29,0)/100 -> 0 | Z29: =IFERROR(SPU_Annual_Total_Energy*'Rates Table'!Z29,0)/100 -> 0 | AA29: =IFERROR(SPU_Annual_Total_Energy*'Rates Table'!AA29,0)/100 -> 0 | AB29: =IFERROR(SPU_Annual_Total_Energy*'Rates Table'!AB29,0)/100 -> 0 | AC29: =IFERROR(SPU_Annual_Total_Energy*'Rates Table'!AC29,0)/100 -> 0 | AE29: =SUMIFS(AF29:BC29,$F$7:$AC$7,Selected_Tariff_ID) -> 0 | AF29: =IFERROR(SPU_Annual_Total_Energy*'Rates Table'!AF29,0)/100 -> 0 | AG29: =IFERROR(SPU_Annual_Total_Energy*'Rates Table'!AG29,0)/100 -> 0 | AH29: =IFERROR(SPU_Annual_Total_Energy*'Rates Table'!AH29,0)/100 -> 0 | AI29: =IFERROR(SPU_Annual_Total_Energy*'Rates Table'!AI29,0)/100 -> 0 | AJ29: =IFERROR(SPU_Annual_Total_Energy*'Rates Table'!AJ29,0)/100 -> 0 | AK29: =IFERROR(SPU_Annual_Total_Energy*'Rates Table'!AK29,0)/100 -> 0 | AL29: =IFERROR(SPU_Annual_Total_Energy*'Rates Table'!AL29,0)/100 -> 0 | AM29: =IFERROR(SPU_Annual_Total_Energy*'Rates Table'!AM29,0)/100 -> 0 | AN29: =IFERROR(SPU_Annual_Total_Energy*'Rates Table'!AN29,0)/100 -> 0 | AO29: =IFERROR(SPU_Annual_Total_Energy*'Rates Table'!AO29,0)/100 -> 0 | AP29: =IFERROR(SPU_Annual_Total_Energy*'Rates Table'!AP29,0)/100 -> 0 | AQ29: =IFERROR(SPU_Annual_Total_Energy*'Rates Table'!AQ29,0)/100 -> 0 | AR29: =IFERROR(SPU_Annual_Total_Energy*'Rates Table'!AR29,0)/100 -> 0 | AS29: =IFERROR(SPU_Annual_Total_Energy*'Rates Table'!AS29,0)/100 -> 0 | AT29: =IFERROR(SPU_Annual_Total_Energy*'Rates Table'!AT29,0)/100 -> 0 | AU29: =IFERROR(SPU_Annual_Total_Energy*'Rates Table'!AU29,0)/100 -> 0 | AV29: =IFERROR(SPU_Annual_Total_Energy*'Rates Table'!AV29,0)/100 -> 0 | AW29: =IFERROR(SPU_Annual_Total_Energy*'Rates Table'!AW29,0)/100 -> 0 | AX29: =IFERROR(SPU_Annual_Total_Energy*'Rates Table'!AX29,0)/100 -> 0 | AY29: =IFERROR(SPU_Annual_Total_Energy*'Rates Table'!AY29,0)/100 -> 0 | AZ29: =IFERROR(SPU_Annual_Total_Energy*'Rates Table'!AZ29,0)/100 -> 0 | BA29: =IFERROR(SPU_Annual_Total_Energy*'Rates Table'!BA29,0)/100 -> 0 | BB29: =IFERROR(SPU_Annual_Total_Energy*'Rates Table'!BB29,0)/100 -> 0 | BC29: =IFERROR(SPU_Annual_Total_Energy*'Rates Table'!BC29,0)/100 -> 0
C30: Service charge | D30: =IF(Table_1=1,"R/day","R/day") -> R/day | E30: =SUMIFS(F30:AC30,$F$7:$AC$7,Selected_Tariff_ID) -> 0 | F30: =IFERROR('Rates Table'!F30*PODs*ESKOM_Total_days,0) -> 834.6333333 | G30: =IFERROR('Rates Table'!G30*PODs*ESKOM_Total_days,0) -> 834.6333333 | H30: =IFERROR('Rates Table'!H30*PODs*ESKOM_Total_days,0) -> 834.6333333 | I30: =IFERROR('Rates Table'!I30*PODs*ESKOM_Total_days,0) -> 0 | J30: =IFERROR('Rates Table'!J30*PODs*ESKOM_Total_days,0) -> 0 | K30: =IFERROR('Rates Table'!K30*PODs*ESKOM_Total_days,0) -> 0 | L30: =IFERROR('Rates Table'!L30*PODs*ESKOM_Total_days,0) -> 0 | M30: =IFERROR('Rates Table'!M30*PODs*ESKOM_Total_days,0) -> 0 | N30: =IFERROR('Rates Table'!N30*PODs*ESKOM_Total_days,0) -> 0 | O30: =IFERROR('Rates Table'!O30*PODs*ESKOM_Total_days,0) -> 0 | P30: =IFERROR('Rates Table'!P30*PODs*ESKOM_Total_days,0) -> 0 | Q30: =IFERROR('Rates Table'!Q30*PODs*ESKOM_Total_days,0) -> 1051.504167 | R30: =IFERROR('Rates Table'!R30*PODs*ESKOM_Total_days,0) -> 1051.504167 | S30: =IFERROR('Rates Table'!S30*PODs*ESKOM_Total_days,0) -> 1051.504167 | T30: =IFERROR('Rates Table'!T30*PODs*ESKOM_Total_days,0) -> 0 | U30: =IFERROR('Rates Table'!U30*PODs*ESKOM_Total_days,0) -> 2255.091667 | V30: =IFERROR('Rates Table'!V30*PODs*ESKOM_Total_days,0) -> 0 | W30: =IFERROR('Rates Table'!W30*PODs*ESKOM_Total_days,0) -> 0 | X30: =IFERROR('Rates Table'!X30*PODs*ESKOM_Total_days,0) -> 0 | Y30: =IFERROR('Rates Table'!Y30*PODs*ESKOM_Total_days,0) -> 0 | Z30: =IFERROR('Rates Table'!Z30*PODs*ESKOM_Total_days,0) -> 0 | AA30: =IFERROR('Rates Table'!AA30*PODs*ESKOM_Total_days,0) -> 0 | AB30: =IFERROR('Rates Table'!AB30*PODs*ESKOM_Total_days,0) -> 0 | AC30: =IFERROR('Rates Table'!AC30*PODs*ESKOM_Total_days,0) -> 0 | AE30: =SUMIFS(AF30:BC30,$F$7:$AC$7,Selected_Tariff_ID) -> 0 | AF30: =IFERROR('Rates Table'!AF30*PODs*ESKOM_Total_days,0) -> 990.3666667 | AG30: =IFERROR('Rates Table'!AG30*PODs*ESKOM_Total_days,0) -> 990.3666667 | AH30: =IFERROR('Rates Table'!AH30*PODs*ESKOM_Total_days,0) -> 990.3666667 | AI30: =IFERROR('Rates Table'!AI30*PODs*ESKOM_Total_days,0) -> 0 | AJ30: =IFERROR('Rates Table'!AJ30*PODs*ESKOM_Total_days,0) -> 0 | AK30: =IFERROR('Rates Table'!AK30*PODs*ESKOM_Total_days,0) -> 0 | AL30: =IFERROR('Rates Table'!AL30*PODs*ESKOM_Total_days,0) -> 0 | AM30: =IFERROR('Rates Table'!AM30*PODs*ESKOM_Total_days,0) -> 0 | AN30: =IFERROR('Rates Table'!AN30*PODs*ESKOM_Total_days,0) -> 0 | AO30: =IFERROR('Rates Table'!AO30*PODs*ESKOM_Total_days,0) -> 0 | AP30: =IFERROR('Rates Table'!AP30*PODs*ESKOM_Total_days,0) -> 0 | AQ30: =IFERROR('Rates Table'!AQ30*PODs*ESKOM_Total_days,0) -> 1247.691667 | AR30: =IFERROR('Rates Table'!AR30*PODs*ESKOM_Total_days,0) -> 1247.691667 | AS30: =IFERROR('Rates Table'!AS30*PODs*ESKOM_Total_days,0) -> 1247.691667 | AT30: =IFERROR('Rates Table'!AT30*PODs*ESKOM_Total_days,0) -> 0 | AU30: =IFERROR('Rates Table'!AU30*PODs*ESKOM_Total_days,0) -> 2675.754167 | AV30: =IFERROR('Rates Table'!AV30*PODs*ESKOM_Total_days,0) -> 0 | AW30: =IFERROR('Rates Table'!AW30*PODs*ESKOM_Total_days,0) -> 0 | AX30: =IFERROR('Rates Table'!AX30*PODs*ESKOM_Total_days,0) -> 0 | AY30: =IFERROR('Rates Table'!AY30*PODs*ESKOM_Total_days,0) -> 0 | AZ30: =IFERROR('Rates Table'!AZ30*PODs*ESKOM_Total_days,0) -> 0 | BA30: =IFERROR('Rates Table'!BA30*PODs*ESKOM_Total_days,0) -> 0 | BB30: =IFERROR('Rates Table'!BB30*PODs*ESKOM_Total_days,0) -> 0 | BC30: =IFERROR('Rates Table'!BC30*PODs*ESKOM_Total_days,0) -> 0
B32: Total other charges | E32: =SUM(E28:E30) -> 0 | F32: 834.6333333 | G32: 834.6333333 | H32: 834.6333333 | I32: 0 | J32: 0 | K32: 0 | L32: 0 | M32: 0 | N32: 0 | O32: 0 | P32: 0 | Q32: 1051.504167 | R32: 1051.504167 | S32: 1051.504167 | T32: 0 | U32: =SUM(U28:U30) -> 2255.091667 | V32: 0 | W32: 0 | X32: 0 | Y32: 0 | Z32: 0 | AA32: =SUM(AA28:AA30) -> 0 | AB32: 0 | AC32: 0 | AE32: =SUM(AE28:AE30) -> 0 | AF32: =SUM(AF28:AF30) -> 990.3666667 | AG32: 990.3666667 | AH32: 990.3666667 | AI32: 0 | AJ32: 0 | AK32: 0 | AL32: 0 | AM32: 0 | AN32: 0 | AO32: 0 | AP32: 0 | AQ32: 1247.691667 | AR32: 1247.691667 | AS32: 1247.691667 | AT32: 0 | AU32: =SUM(AU28:AU30) -> 2675.754167 | AV32: 0 | AW32: 0 | AX32: 0 | AY32: 0 | AZ32: 0 | BA32: =SUM(BA28:BA30) -> 0 | BB32: 0 | BC32: 0
B34: Total excl VAT | E34: =E32+E25+E14 -> 1008.3125 | F34: 1800.3625 | G34: 2461.925 | H34: 3646.045833 | I34: 0 | J34: 0 | K34: 0 | L34: 239.075 | M34: 448.0375 | N34: 925.275 | O34: 146 | P34: 1517.183333 | Q34: 2317.75 | R34: 2997.866667 | S34: 4163.129167 | T34: 1008.3125 | U34: =U32+U25+U14 -> 2255.091667 | V34: 0 | W34: 0 | X34: 0 | Y34: 0 | Z34: 0 | AA34: =AA32+AA25+AA14 -> 0 | AB34: 0 | AC34: 0 | AE34: =AE32+AE25+AE14 -> 1196.2875 | AF34: =AF32+AF25+AF14 -> 2136.1625 | AG34: 2921.216667 | AH34: 4326.1625 | AI34: 0 | AJ34: 0 | AK34: 0 | AL34: 283.7875 | AM34: 531.6833333 | AN34: 1097.7375 | AO34: 173.375 | AP34: 1800.058333 | AQ34: 2749.970833 | AR34: 3556.925 | AS34: 4939.666667 | AT34: 1196.2875 | AU34: =AU32+AU25+AU14 -> 2675.754167 | AV34: 0 | AW34: 0 | AX34: 0 | AY34: 0 | AZ34: 283.7875 | BA34: =BA32+BA25+BA14 -> 531.6833333 | BB34: 1097.7375 | BC34: 173.375
B35: VAT | D35: ='Monthly Average Bill'!D49 -> 0.15 | E35: =E34*$D35 -> 151.246875 | F35: =F34*$D35 -> 270.054375 | G35: 369.28875 | H35: 546.906875 | I35: 0 | J35: 0 | K35: 0 | L35: 35.86125 | M35: 67.205625 | N35: 138.79125 | O35: 21.9 | P35: 227.5775 | Q35: 347.6625 | R35: 449.68 | S35: 624.469375 | T35: 151.246875 | U35: =U34*$D35 -> 338.26375 | V35: 0 | W35: 0 | X35: 0 | Y35: 0 | Z35: 0 | AA35: =AA34*$D35 -> 0 | AB35: 0 | AC35: 0 | AE35: =AE34*$D35 -> 179.443125 | AF35: =AF34*$D35 -> 320.424375 | AG35: =AG34*$D35 -> 438.1825 | AH35: =AH34*$D35 -> 648.924375 | AI35: =AI34*$D35 -> 0 | AJ35: =AJ34*$D35 -> 0 | AK35: =AK34*$D35 -> 0 | AL35: =AL34*$D35 -> 42.568125 | AM35: =AM34*$D35 -> 79.7525 | AN35: =AN34*$D35 -> 164.660625 | AO35: =AO34*$D35 -> 26.00625 | AP35: =AP34*$D35 -> 270.00875 | AQ35: =AQ34*$D35 -> 412.495625 | AR35: =AR34*$D35 -> 533.53875 | AS35: =AS34*$D35 -> 740.95 | AT35: =AT34*$D35 -> 179.443125 | AU35: =AU34*$D35 -> 401.363125 | AV35: 0 | AW35: 0 | AX35: 0 | AY35: 0 | AZ35: 42.568125 | BA35: =BA34*$D35 -> 79.7525 | BB35: 164.660625 | BC35: 26.00625
B37: Total account | E37: =SUM(E34:E35) -> 1159.559375 | F37: =SUM(F34:F35) -> 2070.416875 | G37: 2831.21375 | H37: 4192.952708 | I37: 0 | J37: 0 | K37: 0 | L37: 274.93625 | M37: 515.243125 | N37: 1064.06625 | O37: 167.9 | P37: 1744.760833 | Q37: 2665.4125 | R37: 3447.546667 | S37: 4787.598542 | T37: 1159.559375 | U37: =SUM(U34:U35) -> 2593.355417 | V37: 0 | W37: 0 | X37: 0 | Y37: 0 | Z37: 0 | AA37: =SUM(AA34:AA35) -> 0 | AB37: 0 | AC37: 0 | AE37: =SUM(AE34:AE35) -> 1375.730625 | AF37: =SUM(AF34:AF35) -> 2456.586875 | AG37: 3359.399167 | AH37: 4975.086875 | AI37: 0 | AJ37: 0 | AK37: 0 | AL37: 326.355625 | AM37: 611.4358333 | AN37: 1262.398125 | AO37: 199.38125 | AP37: 2070.067083 | AQ37: 3162.466458 | AR37: 4090.46375 | AS37: 5680.616667 | AT37: 1375.730625 | AU37: =SUM(AU34:AU35) -> 3077.117292 | AV37: 0 | AW37: 0 | AX37: 0 | AY37: 0 | AZ37: 326.355625 | BA37: =SUM(BA34:BA35) -> 611.4358333 | BB37: 1262.398125 | BC37: 199.38125
B39: Average price c/kWh | E39: =SUMIFS(F39:AC39,$F$7:$AC$7,Selected_Tariff_ID) ->  | F39: =F34/SPU_Annual_Total_Energy*100 ->  | H39: =H34/SPU_Annual_Total_Energy*100 ->  | U39: =U34/SPU_Annual_Total_Energy*100 ->  | AA39: =AA34/SPU_Annual_Total_Energy*100 ->  | AE39: =SUMIFS(AF39:BC39,$F$7:$AC$7,Selected_Tariff_ID) ->  | AF39: =AF34/SPU_Annual_Total_Energy*100 ->  | AU39: =AU34/SPU_Annual_Total_Energy*100 ->  | BA39: =BA34/SPU_Annual_Total_Energy*100 -> 
B41: Check tables
C42: Table 1: 1 = LPU, 0 = SPU | E42: =SUMIFS(F42:AC42,$F$7:$AC$7,Selected_Tariff_ID) -> 0 | F42: ='Rates Table'!F41 -> 0 | G42: ='Rates Table'!G41 -> 0 | H42: ='Rates Table'!H41 -> 0 | I42: ='Rates Table'!I41 -> 0 | J42: ='Rates Table'!J41 -> 0 | K42: ='Rates Table'!K41 -> 0 | L42: ='Rates Table'!L41 -> 0 | M42: ='Rates Table'!M41 -> 0 | N42: ='Rates Table'!N41 -> 0 | O42: ='Rates Table'!O41 -> 0 | P42: ='Rates Table'!P41 -> 0 | Q42: ='Rates Table'!Q41 -> 0 | R42: ='Rates Table'!R41 -> 0 | S42: ='Rates Table'!S41 -> 0 | T42: ='Rates Table'!T41 -> 0 | U42: ='Rates Table'!U41 -> 0 | V42: ='Rates Table'!V41 -> 0 | W42: ='Rates Table'!W41 -> 0 | X42: ='Rates Table'!X41 -> 0 | Y42: ='Rates Table'!Y41 -> 0 | Z42: ='Rates Table'!Z41 -> 0 | AA42: ='Rates Table'!AA41 -> 0 | AB42: ='Rates Table'!AB41 -> 0 | AC42: ='Rates Table'!AC41 -> 0 | AE42: =SUMIFS(AF42:BC42,$F$7:$AC$7,Selected_Tariff_ID) -> 0 | AF42: =F42 -> 0 | AG42: 0 | AH42: 0 | AI42: 0 | AJ42: 0 | AK42: 0 | AL42: 0 | AM42: 0 | AN42: 0 | AO42: 0 | AP42: 0 | AQ42: 0 | AR42: 0 | AS42: 0 | AT42: 0 | AU42: =U42 -> 0 | AV42: 0 | AW42: 0 | AX42: 0 | AY42: 0 | AZ42: =Z42 -> 0 | BA42: =AA42 -> 0 | BB42: =AB42 -> 0 | BC42: =AC42 -> 0
C43: Tariff Type | E43: =Selected_Tariff_Type -> Rural | F43: =INDEX(Full_Tariff_Type,F$7,) -> Urban | G43: Urban | H43: Urban | I43: Urban | J43: Urban | K43: Urban | L43: Urban | M43: Urban | N43: Urban | O43: Urban | P43: Urban | Q43: Rural | R43: Rural | S43: Rural | T43: Rural | U43: Rural | V43: Rural | W43: Rural | X43: Urban | Y43: Urban | Z43: Urban | AA43: Urban | AB43: Urban | AC43: Urban | AE43: =Selected_Tariff_Type -> Rural | AF43: Urban | AG43: Urban | AH43: Urban | AI43: Urban | AJ43: Urban | AK43: Urban | AL43: Urban | AM43: Urban | AN43: Urban | AO43: Urban | AP43: Urban | AQ43: Rural | AR43: Rural | AS43: Rural | AT43: Rural | AU43: Rural | AV43: Rural | AW43: Rural | AX43: Urban | AY43: Urban | AZ43: Urban | BA43: Urban | BB43: Urban | BC43: Urban

Sheet Workings Low (hidden)
B4: Calculations by Tariff
B6: Tariffs | E6: =Selected_Base_Tariff -> Landrate 4 | F6: =INDEX(Full_Tariff_List,F$7,) -> Businessrate 1 | G6: Businessrate 2 | H6: Businessrate 3 | I6: Businessrate 4 | J6: Homelight 20A | K6: Homelight 60A | L6: Homepower 1 | M6: Homepower 2 | N6: Homepower 3 | O6: Homepower 4 | P6: Homepower Bulk | Q6: Landrate 1 | R6: Landrate 2 | S6: Landrate 3 | T6: Landrate 4 | U6: Landrate Dx | V6: Landlight 20A | W6: Landlight 60A | X6: Public Lighting All Night | Y6: Public Lighting 24 Hours | Z6: Homeflex 1 | AA6: Homeflex 2 | AB6: Homeflex 3 | AC6: Homeflex 4 | AE6: =E6 -> Landrate 4 | AF6: Businessrate 1 | AG6: Businessrate 2 | AH6: Businessrate 3 | AI6: Businessrate 4 | AJ6: Homelight 20A | AK6: Homelight 60A | AL6: Homepower 1 | AM6: Homepower 2 | AN6: Homepower 3 | AO6: Homepower 4 | AP6: Homepower Bulk | AQ6: Landrate 1 | AR6: Landrate 2 | AS6: Landrate 3 | AT6: Landrate 4 | AU6: =U6 -> Landrate Dx | AV6: Landlight 20A | AW6: Landlight 60A | AX6: Public Lighting All Night | AY6: Public Lighting 24 Hours | AZ6: Homeflex 1 | BA6: Homeflex 2 | BB6: Homeflex 3 | BC6: Homeflex 4
F7: 1 | G7: =F7+1 -> 2 | H7: =G7+1 -> 3 | I7: 4 | J7: 5 | K7: 6 | L7: 7 | M7: 8 | N7: 9 | O7: 10 | P7: 11 | Q7: 12 | R7: 13 | S7: 14 | T7: 15 | U7: 16 | V7: 17 | W7: 18 | X7: 19 | Y7: 20 | Z7: =Y7+8 -> 28 | AA7: =Z7+1 -> 29 | AB7: 30 | AC7: 31 | AE7: =E7 -> 0 | AF7: 1 | AG7: 2 | AH7: 3 | AI7: 4 | AJ7: 5 | AK7: 6 | AL7: 7 | AM7: 8 | AN7: 9 | AO7: 10 | AP7: 11 | AQ7: 12 | AR7: 13 | AS7: 14 | AT7: 15 | AU7: 16 | AV7: 17 | AW7: 18 | AX7: 19 | AY7: 20 | AZ7: 28 | BA7: 29 | BB7: 30 | BC7: 31
B8: Network charges | D8: Units | E8: =Current_Period&" Rates" -> 2022/2023 Rates | F8: =E8 -> 2022/2023 Rates | G8: =F8 -> 2022/2023 Rates | H8: 2022/2023 Rates | I8: 2022/2023 Rates | J8: 2022/2023 Rates | K8: 2022/2023 Rates | L8: 2022/2023 Rates | M8: 2022/2023 Rates | N8: 2022/2023 Rates | O8: 2022/2023 Rates | P8: 2022/2023 Rates | Q8: 2022/2023 Rates | R8: 2022/2023 Rates | S8: 2022/2023 Rates | T8: 2022/2023 Rates | U8: 2022/2023 Rates | V8: 2022/2023 Rates | W8: 2022/2023 Rates | X8: 2022/2023 Rates | Y8: 2022/2023 Rates | Z8: 2022/2023 Rates | AA8: 2022/2023 Rates | AB8: 2022/2023 Rates | AC8: 2022/2023 Rates | AE8: =New_Period&" Rates" -> 2023/2024 Rates | AF8: =AE8 -> 2023/2024 Rates | AG8: =AF8 -> 2023/2024 Rates | AH8: 2023/2024 Rates | AI8: 2023/2024 Rates | AJ8: 2023/2024 Rates | AK8: 2023/2024 Rates | AL8: 2023/2024 Rates | AM8: 2023/2024 Rates | AN8: 2023/2024 Rates | AO8: 2023/2024 Rates | AP8: 2023/2024 Rates | AQ8: 2023/2024 Rates | AR8: 2023/2024 Rates | AS8: 2023/2024 Rates | AT8: 2023/2024 Rates | AU8: 2023/2024 Rates | AV8: 2023/2024 Rates | AW8: 2023/2024 Rates | AX8: 2023/2024 Rates | AY8: 2023/2024 Rates | AZ8: 2023/2024 Rates | BA8: 2023/2024 Rates | BB8: 2023/2024 Rates | BC8: 2023/2024 Rates
C10: Distribution network demand charge | D10: c/kWh | E10: =SUMIFS(F10:AC10,$F$7:$AC$7,Selected_Tariff_ID) -> 0 | F10: =IFERROR('Rates Table'!F10*SPU_Annual_Total_Energy,0)/100 -> 0 | G10: =IFERROR('Rates Table'!G10*SPU_Annual_Total_Energy,0)/100 -> 0 | H10: =IFERROR('Rates Table'!H10*SPU_Annual_Total_Energy,0)/100 -> 0 | I10: =IFERROR('Rates Table'!I10*SPU_Annual_Total_Energy,0)/100 -> 0 | J10: =IFERROR('Rates Table'!J10*SPU_Annual_Total_Energy,0)/100 -> 0 | K10: =IFERROR('Rates Table'!K10*SPU_Annual_Total_Energy,0)/100 -> 0 | L10: =IFERROR('Rates Table'!L10*SPU_Annual_Total_Energy,0)/100 -> 0 | M10: =IFERROR('Rates Table'!M10*SPU_Annual_Total_Energy,0)/100 -> 0 | N10: =IFERROR('Rates Table'!N10*SPU_Annual_Total_Energy,0)/100 -> 0 | O10: =IFERROR('Rates Table'!O10*SPU_Annual_Total_Energy,0)/100 -> 0 | P10: =IFERROR('Rates Table'!P10*SPU_Annual_Total_Energy,0)/100 -> 0 | Q10: =IFERROR('Rates Table'!Q10*SPU_Annual_Total_Energy,0)/100 -> 0 | R10: =IFERROR('Rates Table'!R10*SPU_Annual_Total_Energy,0)/100 -> 0 | S10: =IFERROR('Rates Table'!S10*SPU_Annual_Total_Energy,0)/100 -> 0 | T10: =IFERROR('Rates Table'!T10*SPU_Annual_Total_Energy,0)/100 -> 0 | U10: =IFERROR('Rates Table'!U10*SPU_Annual_Total_Energy,0)/100 -> 0 | V10: =IFERROR('Rates Table'!V10*SPU_Annual_Total_Energy,0)/100 -> 0 | W10: =IFERROR('Rates Table'!W10*SPU_Annual_Total_Energy,0)/100 -> 0 | X10: =IFERROR('Rates Table'!X10*SPU_Annual_Total_Energy,0)/100 -> 0 | Y10: =IFERROR('Rates Table'!Y10*SPU_Annual_Total_Energy,0)/100 -> 0 | Z10: =IFERROR('Rates Table'!Z10*SPU_Annual_Total_Energy,0)/100 -> 0 | AA10: =IFERROR('Rates Table'!AA10*SPU_Annual_Total_Energy,0)/100 -> 0 | AB10: =IFERROR('Rates Table'!AB10*SPU_Annual_Total_Energy,0)/100 -> 0 | AC10: =IFERROR('Rates Table'!AC10*SPU_Annual_Total_Energy,0)/100 -> 0 | AE10: =SUMIFS(AF10:BC10,$F$7:$AC$7,Selected_Tariff_ID) -> 0 | AF10: =IFERROR('Rates Table'!AF10*SPU_Annual_Total_Energy,0)/100 -> 0 | AG10: =IFERROR('Rates Table'!AG10*SPU_Annual_Total_Energy,0)/100 -> 0 | AH10: =IFERROR('Rates Table'!AH10*SPU_Annual_Total_Energy,0)/100 -> 0 | AI10: =IFERROR('Rates Table'!AI10*SPU_Annual_Total_Energy,0)/100 -> 0 | AJ10: =IFERROR('Rates Table'!AJ10*SPU_Annual_Total_Energy,0)/100 -> 0 | AK10: =IFERROR('Rates Table'!AK10*SPU_Annual_Total_Energy,0)/100 -> 0 | AL10: =IFERROR('Rates Table'!AL10*SPU_Annual_Total_Energy,0)/100 -> 0 | AM10: =IFERROR('Rates Table'!AM10*SPU_Annual_Total_Energy,0)/100 -> 0 | AN10: =IFERROR('Rates Table'!AN10*SPU_Annual_Total_Energy,0)/100 -> 0 | AO10: =IFERROR('Rates Table'!AO10*SPU_Annual_Total_Energy,0)/100 -> 0 | AP10: =IFERROR('Rates Table'!AP10*SPU_Annual_Total_Energy,0)/100 -> 0 | AQ10: =IFERROR('Rates Table'!AQ10*SPU_Annual_Total_Energy,0)/100 -> 0 | AR10: =IFERROR('Rates Table'!AR10*SPU_Annual_Total_Energy,0)/100 -> 0 | AS10: =IFERROR('Rates Table'!AS10*SPU_Annual_Total_Energy,0)/100 -> 0 | AT10: =IFERROR('Rates Table'!AT10*SPU_Annual_Total_Energy,0)/100 -> 0 | AU10: =IFERROR('Rates Table'!AU10*SPU_Annual_Total_Energy,0)/100 -> 0 | AV10: =IFERROR('Rates Table'!AV10*SPU_Annual_Total_Energy,0)/100 -> 0 | AW10: =IFERROR('Rates Table'!AW10*SPU_Annual_Total_Energy,0)/100 -> 0 | AX10: =IFERROR('Rates Table'!AX10*SPU_Annual_Total_Energy,0)/100 -> 0 | AY10: =IFERROR('Rates Table'!AY10*SPU_Annual_Total_Energy,0)/100 -> 0 | AZ10: =IFERROR('Rates Table'!AZ10*SPU_Annual_Total_Energy,0)/100 -> 0 | BA10: =IFERROR('Rates Table'!BA10*SPU_Annual_Total_Energy,0)/100 -> 0 | BB10: =IFERROR('Rates Table'!BB10*SPU_Annual_Total_Energy,0)/100 -> 0 | BC10: =IFERROR('Rates Table'!BC10*SPU_Annual_Total_Energy,0)/100 -> 0
C11: Network demand charge, Ancillary service charge and retail | D11: c/kWh | E11: =SUMIFS(F11:AC11,$F$7:$AC$7,Selected_Tariff_ID) -> 0 | Z11: =IFERROR('Rates Table'!Z11*SPU_Annual_Total_Energy,0)/100 -> 0 | AA11: =IFERROR('Rates Table'!AA11*SPU_Annual_Total_Energy,0)/100 -> 0 | AB11: =IFERROR('Rates Table'!AB11*SPU_Annual_Total_Energy,0)/100 -> 0 | AC11: =IFERROR('Rates Table'!AC11*SPU_Annual_Total_Energy,0)/100 -> 0 | AE11: =SUMIFS(AF11:BC11,$F$7:$AC$7,Selected_Tariff_ID) -> 0 | AZ11: =IFERROR('Rates Table'!AZ11*SPU_Annual_Total_Energy,0)/100 -> 0 | BA11: =IFERROR('Rates Table'!BA11*SPU_Annual_Total_Energy,0)/100 -> 0 | BB11: =IFERROR('Rates Table'!BB11*SPU_Annual_Total_Energy,0)/100 -> 0 | BC11: =IFERROR('Rates Table'!BC11*SPU_Annual_Total_Energy,0)/100 -> 0
C12: Network capacity charge | D12: =IF(Table_1=1,"R/kVA","R/day") -> R/day | E12: =SUMIFS(F12:AC12,$F$7:$AC$7,Selected_Tariff_ID) -> 1008.3125 | F12: =IFERROR('Rates Table'!F12*PODs*ESKOM_Total_days,0) -> 965.7291667 | G12: =IFERROR('Rates Table'!G12*PODs*ESKOM_Total_days,0) -> 1627.291667 | H12: =IFERROR('Rates Table'!H12*PODs*ESKOM_Total_days,0) -> 2811.4125 | I12: =IFERROR('Rates Table'!I12*PODs*ESKOM_Total_days,0) -> 0 | J12: =IFERROR('Rates Table'!J12*PODs*ESKOM_Total_days,0) -> 0 | K12: =IFERROR('Rates Table'!K12*PODs*ESKOM_Total_days,0) -> 0 | L12: =IFERROR('Rates Table'!L12*PODs*ESKOM_Total_days,0) -> 239.075 | M12: =IFERROR('Rates Table'!M12*PODs*ESKOM_Total_days,0) -> 448.0375 | N12: =IFERROR('Rates Table'!N12*PODs*ESKOM_Total_days,0) -> 925.275 | O12: =IFERROR('Rates Table'!O12*PODs*ESKOM_Total_days,0) -> 146 | P12: =IFERROR('Rates Table'!P12*PODs*ESKOM_Total_days,0) -> 1517.183333 | Q12: =IFERROR('Rates Table'!Q12*PODs*ESKOM_Total_days,0) -> 1266.245833 | R12: =IFERROR('Rates Table'!R12*PODs*ESKOM_Total_days,0) -> 1946.3625 | S12: =IFERROR('Rates Table'!S12*PODs*ESKOM_Total_days,0) -> 3111.625 | T12: =IFERROR('Rates Table'!T12*PODs*ESKOM_Total_days,0) -> 1008.3125 | U12: =IFERROR('Rates Table'!U12*PODs*ESKOM_Total_days,0) -> 0 | V12: =IFERROR('Rates Table'!V12*PODs*ESKOM_Total_days,0) -> 0 | W12: =IFERROR('Rates Table'!W12*PODs*ESKOM_Total_days,0) -> 0 | X12: =IFERROR('Rates Table'!X12*PODs*ESKOM_Total_days,0) -> 0 | Y12: =IFERROR('Rates Table'!Y12*PODs*ESKOM_Total_days,0) -> 0 | Z12: =IFERROR('Rates Table'!Z12*PODs*ESKOM_Total_days,0) -> 0 | AA12: =IFERROR('Rates Table'!AA12*PODs*ESKOM_Total_days,0) -> 0 | AB12: =IFERROR('Rates Table'!AB12*PODs*ESKOM_Total_days,0) -> 0 | AC12: =IFERROR('Rates Table'!AC12*PODs*ESKOM_Total_days,0) -> 0 | AE12: =SUMIFS(AF12:BC12,$F$7:$AC$7,Selected_Tariff_ID) -> 1196.2875 | AF12: =IFERROR('Rates Table'!AF12*PODs*ESKOM_Total_days,0) -> 1145.795833 | AG12: =IFERROR('Rates Table'!AG12*PODs*ESKOM_Total_days,0) -> 1930.85 | AH12: =IFERROR('Rates Table'!AH12*PODs*ESKOM_Total_days,0) -> 3335.795833 | AI12: =IFERROR('Rates Table'!AI12*PODs*ESKOM_Total_days,0) -> 0 | AJ12: =IFERROR('Rates Table'!AJ12*PODs*ESKOM_Total_days,0) -> 0 | AK12: =IFERROR('Rates Table'!AK12*PODs*ESKOM_Total_days,0) -> 0 | AL12: =IFERROR('Rates Table'!AL12*PODs*ESKOM_Total_days,0) -> 283.7875 | AM12: =IFERROR('Rates Table'!AM12*PODs*ESKOM_Total_days,0) -> 531.6833333 | AN12: =IFERROR('Rates Table'!AN12*PODs*ESKOM_Total_days,0) -> 1097.7375 | AO12: =IFERROR('Rates Table'!AO12*PODs*ESKOM_Total_days,0) -> 173.375 | AP12: =IFERROR('Rates Table'!AP12*PODs*ESKOM_Total_days,0) -> 1800.058333 | AQ12: =IFERROR('Rates Table'!AQ12*PODs*ESKOM_Total_days,0) -> 1502.279167 | AR12: =IFERROR('Rates Table'!AR12*PODs*ESKOM_Total_days,0) -> 2309.233333 | AS12: =IFERROR('Rates Table'!AS12*PODs*ESKOM_Total_days,0) -> 3691.975 | AT12: =IFERROR('Rates Table'!AT12*PODs*ESKOM_Total_days,0) -> 1196.2875 | AU12: =IFERROR('Rates Table'!AU12*PODs*ESKOM_Total_days,0) -> 0 | AV12: =IFERROR('Rates Table'!AV12*PODs*ESKOM_Total_days,0) -> 0 | AW12: =IFERROR('Rates Table'!AW12*PODs*ESKOM_Total_days,0) -> 0 | AX12: =IFERROR('Rates Table'!AX12*PODs*ESKOM_Total_days,0) -> 0 | AY12: =IFERROR('Rates Table'!AY12*PODs*ESKOM_Total_days,0) -> 0 | AZ12: =IFERROR('Rates Table'!AZ12*PODs*ESKOM_Total_days,0) -> 283.7875 | BA12: =IFERROR('Rates Table'!BA12*PODs*ESKOM_Total_days,0) -> 531.6833333 | BB12: =IFERROR('Rates Table'!BB12*PODs*ESKOM_Total_days,0) -> 1097.7375 | BC12: =IFERROR('Rates Table'!BC12*PODs*ESKOM_Total_days,0) -> 173.375
B14: Total network charges | E14: =SUM(E10:E12) -> 1008.3125 | F14: 965.7291667 | G14: 1627.291667 | H14: 2811.4125 | I14: 0 | J14: 0 | K14: 0 | L14: 239.075 | M14: 448.0375 | N14: 925.275 | O14: 146 | P14: 1517.183333 | Q14: 1266.245833 | R14: 1946.3625 | S14: 3111.625 | T14: 1008.3125 | U14: 0 | V14: 0 | W14: 0 | X14: 0 | Y14: 0 | Z14: 0 | AA14: 0 | AB14: 0 | AC14: 0 | AE14: =SUM(AE10:AE12) -> 1196.2875 | AF14: 1145.795833 | AG14: 1930.85 | AH14: 3335.795833 | AI14: 0 | AJ14: 0 | AK14: 0 | AL14: 283.7875 | AM14: 531.6833333 | AN14: 1097.7375 | AO14: 173.375 | AP14: 1800.058333 | AQ14: 1502.279167 | AR14: 2309.233333 | AS14: 3691.975 | AT14: 1196.2875 | AU14: 0 | AV14: 0 | AW14: 0 | AX14: 0 | AY14: 0 | AZ14: 283.7875 | BA14: 531.6833333 | BB14: 1097.7375 | BC14: 173.375
B16: Energy charges | D16: Units | E16: =E$8 -> 2022/2023 Rates | F16: =F$8 -> 2022/2023 Rates | G16: 2022/2023 Rates | H16: 2022/2023 Rates | I16: 2022/2023 Rates | J16: 2022/2023 Rates | K16: 2022/2023 Rates | L16: 2022/2023 Rates | M16: 2022/2023 Rates | N16: 2022/2023 Rates | O16: 2022/2023 Rates | P16: 2022/2023 Rates | Q16: 2022/2023 Rates | R16: 2022/2023 Rates | S16: 2022/2023 Rates | T16: 2022/2023 Rates | U16: 2022/2023 Rates | V16: 2022/2023 Rates | W16: 2022/2023 Rates | X16: 2022/2023 Rates | Y16: 2022/2023 Rates | Z16: 2022/2023 Rates | AA16: 2022/2023 Rates | AB16: 2022/2023 Rates | AC16: 2022/2023 Rates | AE16: =AE$8 -> 2023/2024 Rates | AF16: =AF$8 -> 2023/2024 Rates | AG16: 2023/2024 Rates | AH16: 2023/2024 Rates | AI16: 2023/2024 Rates | AJ16: 2023/2024 Rates | AK16: 2023/2024 Rates | AL16: 2023/2024 Rates | AM16: 2023/2024 Rates | AN16: 2023/2024 Rates | AO16: 2023/2024 Rates | AP16: 2023/2024 Rates | AQ16: 2023/2024 Rates | AR16: 2023/2024 Rates | AS16: 2023/2024 Rates | AT16: 2023/2024 Rates | AU16: 2023/2024 Rates | AV16: 2023/2024 Rates | AW16: 2023/2024 Rates | AX16: 2023/2024 Rates | AY16: 2023/2024 Rates | AZ16: 2023/2024 Rates | BA16: 2023/2024 Rates | BB16: 2023/2024 Rates | BC16: 2023/2024 Rates
C18: Energy | D18: c/kWh | E18: =SUMIFS(F18:AC18,$F$7:$AC$7,Selected_Tariff_ID) -> 0 | F18: =IFERROR('Rates Table'!F18*(SPU_Annual_Total_Energy),0)/100 -> 0 | G18: =IFERROR('Rates Table'!G18*(SPU_Annual_Total_Energy),0)/100 -> 0 | H18: =IFERROR('Rates Table'!H18*(SPU_Annual_Total_Energy),0)/100 -> 0 | I18: =IFERROR('Rates Table'!I18*(SPU_Annual_Total_Energy),0)/100 -> 0 | J18: =IFERROR('Rates Table'!J18*(SPU_Annual_Total_Energy),0)/100 -> 0 | K18: =IFERROR('Rates Table'!K18*(SPU_Annual_Total_Energy),0)/100 -> 0 | L18: =IFERROR('Rates Table'!L18*(SPU_Annual_Total_Energy),0)/100 -> 0 | M18: =IFERROR('Rates Table'!M18*(SPU_Annual_Total_Energy),0)/100 -> 0 | N18: =IFERROR('Rates Table'!N18*(SPU_Annual_Total_Energy),0)/100 -> 0 | O18: =IFERROR('Rates Table'!O18*(SPU_Annual_Total_Energy),0)/100 -> 0 | P18: =IFERROR('Rates Table'!P18*(SPU_Annual_Total_Energy),0)/100 -> 0 | Q18: =IFERROR('Rates Table'!Q18*(SPU_Annual_Total_Energy),0)/100 -> 0 | R18: =IFERROR('Rates Table'!R18*(SPU_Annual_Total_Energy),0)/100 -> 0 | S18: =IFERROR('Rates Table'!S18*(SPU_Annual_Total_Energy),0)/100 -> 0 | T18: =IFERROR('Rates Table'!T18*(SPU_Annual_Total_Energy),0)/100 -> 0 | U18: =IFERROR('Rates Table'!U18*(SPU_Annual_Total_Energy),0)/100 -> 0 | V18: =IFERROR('Rates Table'!V18*(SPU_Annual_Total_Energy),0)/100 -> 0 | W18: =IFERROR('Rates Table'!W18*(SPU_Annual_Total_Energy),0)/100 -> 0 | X18: =IFERROR('Rates Table'!X18*(SPU_Annual_Total_Energy),0)/100 -> 0 | Y18: =IFERROR('Rates Table'!Y18*(SPU_Annual_Total_Energy),0)/100 -> 0 | Z18: =IFERROR('Rates Table'!Z18*(SPU_Annual_Total_Energy),0)/100 -> 0 | AA18: =IFERROR('Rates Table'!AA18*(SPU_Annual_Total_Energy),0)/100 -> 0 | AB18: =IFERROR('Rates Table'!AB18*(SPU_Annual_Total_Energy),0)/100 -> 0 | AC18: =IFERROR('Rates Table'!AC18*(SPU_Annual_Total_Energy),0)/100 -> 0 | AE18: =SUMIFS(AF18:BC18,$F$7:$AC$7,Selected_Tariff_ID) -> 0 | AF18: =IFERROR('Rates Table'!AF18*(SPU_Annual_Total_Energy),0)/100 -> 0 | AG18: =IFERROR('Rates Table'!AG18*(SPU_Annual_Total_Energy),0)/100 -> 0 | AH18: =IFERROR('Rates Table'!AH18*(SPU_Annual_Total_Energy),0)/100 -> 0 | AI18: =IFERROR('Rates Table'!AI18*(SPU_Annual_Total_Energy),0)/100 -> 0 | AJ18: =IFERROR('Rates Table'!AJ18*(SPU_Annual_Total_Energy),0)/100 -> 0 | AK18: =IFERROR('Rates Table'!AK18*(SPU_Annual_Total_Energy),0)/100 -> 0 | AL18: =IFERROR('Rates Table'!AL18*(SPU_Annual_Total_Energy),0)/100 -> 0 | AM18: =IFERROR('Rates Table'!AM18*(SPU_Annual_Total_Energy),0)/100 -> 0 | AN18: =IFERROR('Rates Table'!AN18*(SPU_Annual_Total_Energy),0)/100 -> 0 | AO18: =IFERROR('Rates Table'!AO18*(SPU_Annual_Total_Energy),0)/100 -> 0 | AP18: =IFERROR('Rates Table'!AP18*(SPU_Annual_Total_Energy),0)/100 -> 0 | AQ18: =IFERROR('Rates Table'!AQ18*(SPU_Annual_Total_Energy),0)/100 -> 0 | AR18: =IFERROR('Rates Table'!AR18*(SPU_Annual_Total_Energy),0)/100 -> 0 | AS18: =IFERROR('Rates Table'!AS18*(SPU_Annual_Total_Energy),0)/100 -> 0 | AT18: =IFERROR('Rates Table'!AT18*(SPU_Annual_Total_Energy),0)/100 -> 0 | AU18: =IFERROR('Rates Table'!AU18*(SPU_Annual_Total_Energy),0)/100 -> 0 | AV18: =IFERROR('Rates Table'!AV18*(SPU_Annual_Total_Energy),0)/100 -> 0 | AW18: =IFERROR('Rates Table'!AW18*(SPU_Annual_Total_Energy),0)/100 -> 0 | AX18: =IFERROR('Rates Table'!AX18*(SPU_Annual_Total_Energy),0)/100 -> 0 | AY18: =IFERROR('Rates Table'!AY18*(SPU_Annual_Total_Energy),0)/100 -> 0 | AZ18: =IFERROR('Rates Table'!AZ18*(SPU_Annual_Total_Energy),0)/100 -> 0 | BA18: =IFERROR('Rates Table'!BA18*(SPU_Annual_Total_Energy),0)/100 -> 0 | BB18: =IFERROR('Rates Table'!BB18*(SPU_Annual_Total_Energy),0)/100 -> 0 | BC18: =IFERROR('Rates Table'!BC18*(SPU_Annual_Total_Energy),0)/100 -> 0
C19: Peak consumption | D19: c/kWh | E19: 0 | Z19: =IFERROR('Rates Table'!Z19*(Homeflex_Peak_Energy),0)/100 -> 0 | AA19: =IFERROR('Rates Table'!AA19*(Homeflex_Peak_Energy),0)/100 -> 0 | AB19: =IFERROR('Rates Table'!AB19*(Homeflex_Peak_Energy),0)/100 -> 0 | AC19: =IFERROR('Rates Table'!AC19*(Homeflex_Peak_Energy),0)/100 -> 0 | AE19: 0 | AZ19: =IFERROR('Rates SPU - New'!$L$29*(Homeflex_Peak_Energy),0)/100 -> 0 | BA19: =IFERROR('Rates SPU - New'!$L$29*(Homeflex_Peak_Energy),0)/100 -> 0 | BB19: =IFERROR('Rates SPU - New'!$L$29*(Homeflex_Peak_Energy),0)/100 -> 0 | BC19: =IFERROR('Rates SPU - New'!$L$29*(Homeflex_Peak_Energy),0)/100 -> 0
C20: Standard consumption | D20: c/kWh | E20: 0 | Z20: =IFERROR('Rates Table'!Z20*(Homeflex_Standard_Energy),0)/100 -> 0 | AA20: =IFERROR('Rates Table'!AA20*(Homeflex_Standard_Energy),0)/100 -> 0 | AB20: =IFERROR('Rates Table'!AB20*(Homeflex_Standard_Energy),0)/100 -> 0 | AC20: =IFERROR('Rates Table'!AC20*(Homeflex_Standard_Energy),0)/100 -> 0 | AE20: 0 | AZ20: =IFERROR('Rates SPU - New'!$M$30*(Homeflex_Peak_Energy),0)/100 -> 0 | BA20: =IFERROR('Rates SPU - New'!$M$30*(Homeflex_Peak_Energy),0)/100 -> 0 | BB20: =IFERROR('Rates SPU - New'!$M$30*(Homeflex_Peak_Energy),0)/100 -> 0 | BC20: =IFERROR('Rates SPU - New'!$M$30*(Homeflex_Peak_Energy),0)/100 -> 0
C21: Off-Peak consumption | D21: c/kWh | E21: 0 | Z21: =IFERROR('Rates Table'!Z21*(Homeflex_OffPeak_Energy),0)/100 -> 0 | AA21: =IFERROR('Rates Table'!AA21*(Homeflex_OffPeak_Energy),0)/100 -> 0 | AB21: =IFERROR('Rates Table'!AB21*(Homeflex_OffPeak_Energy),0)/100 -> 0 | AC21: =IFERROR('Rates Table'!AC21*(Homeflex_OffPeak_Energy),0)/100 -> 0 | AE21: 0 | AZ21: =IFERROR('Rates SPU - New'!$N$30*(Homeflex_Peak_Energy),0)/100 -> 0 | BA21: =IFERROR('Rates SPU - New'!$N$30*(Homeflex_Peak_Energy),0)/100 -> 0 | BB21: =IFERROR('Rates SPU - New'!$N$30*(Homeflex_Peak_Energy),0)/100 -> 0 | BC21: =IFERROR('Rates SPU - New'!$N$30*(Homeflex_Peak_Energy),0)/100 -> 0
C22: Energy - Block 1 | D22: c/kWh | E22: 0 | F22: =IFERROR('Rates Table'!F22*(SPU_Block_1),0)/100 -> 0 | G22: =IFERROR('Rates Table'!G22*(SPU_Block_1),0)/100 -> 0 | H22: =IFERROR('Rates Table'!H22*(SPU_Block_1),0)/100 -> 0 | I22: =IFERROR('Rates Table'!I22*(SPU_Block_1),0)/100 -> 0 | J22: =IFERROR('Rates Table'!J22*(SPU_Block_1),0)/100 -> 0 | K22: =IFERROR('Rates Table'!K22*(SPU_Block_1),0)/100 -> 0 | L22: =IFERROR('Rates Table'!L22*(SPU_Block_1),0)/100 -> 0 | M22: =IFERROR('Rates Table'!M22*(SPU_Block_1),0)/100 -> 0 | N22: =IFERROR('Rates Table'!N22*(SPU_Block_1),0)/100 -> 0 | O22: =IFERROR('Rates Table'!O22*(SPU_Block_1),0)/100 -> 0 | P22: =IFERROR('Rates Table'!P22*(SPU_Block_1),0)/100 -> 0 | Q22: =IFERROR('Rates Table'!Q22*(SPU_Block_1),0)/100 -> 0 | R22: =IFERROR('Rates Table'!R22*(SPU_Block_1),0)/100 -> 0 | S22: =IFERROR('Rates Table'!S22*(SPU_Block_1),0)/100 -> 0 | T22: =IFERROR('Rates Table'!T22*(SPU_Block_1),0)/100 -> 0 | U22: =IFERROR('Rates Table'!U22*(SPU_Block_1),0)/100 -> 0 | V22: =IFERROR('Rates Table'!V22*(SPU_Block_1),0)/100 -> 0 | W22: =IFERROR('Rates Table'!W22*(SPU_Block_1),0)/100 -> 0 | X22: =IFERROR('Rates Table'!X22*(SPU_Block_1),0)/100 -> 0 | Y22: =IFERROR('Rates Table'!Y22*(SPU_Block_1),0)/100 -> 0 | Z22: =IFERROR('Rates Table'!Z22*(SPU_Block_1),0)/100 -> 0 | AA22: =IFERROR('Rates Table'!AA22*(SPU_Block_1),0)/100 -> 0 | AB22: =IFERROR('Rates Table'!AB22*(SPU_Block_1),0)/100 -> 0 | AC22: =IFERROR('Rates Table'!AC22*(SPU_Block_1),0)/100 -> 0 | AE22: 0 | AF22: =IFERROR('Rates Table'!AF22*(SPU_Block_1),0)/100 -> 0 | AG22: =IFERROR('Rates Table'!AG22*(SPU_Block_1),0)/100 -> 0 | AH22: =IFERROR('Rates Table'!AH22*(SPU_Block_1),0)/100 -> 0 | AI22: =IFERROR('Rates Table'!AI22*(SPU_Block_1),0)/100 -> 0 | AJ22: =IFERROR('Rates Table'!AJ22*(SPU_Block_1),0)/100 -> 0 | AK22: =IFERROR('Rates Table'!AK22*(SPU_Block_1),0)/100 -> 0 | AL22: =IFERROR('Rates Table'!AL22*(SPU_Block_1),0)/100 -> 0 | AM22: =IFERROR('Rates Table'!AM22*(SPU_Block_1),0)/100 -> 0 | AN22: =IFERROR('Rates Table'!AN22*(SPU_Block_1),0)/100 -> 0 | AO22: =IFERROR('Rates Table'!AO22*(SPU_Block_1),0)/100 -> 0 | AP22: =IFERROR('Rates Table'!AP22*(SPU_Block_1),0)/100 -> 0 | AQ22: =IFERROR('Rates Table'!AQ22*(SPU_Block_1),0)/100 -> 0 | AR22: =IFERROR('Rates Table'!AR22*(SPU_Block_1),0)/100 -> 0 | AS22: =IFERROR('Rates Table'!AS22*(SPU_Block_1),0)/100 -> 0 | AT22: =IFERROR('Rates Table'!AT22*(SPU_Block_1),0)/100 -> 0 | AU22: =IFERROR('Rates Table'!AU22*(SPU_Block_1),0)/100 -> 0 | AV22: =IFERROR('Rates Table'!AV22*(SPU_Block_1),0)/100 -> 0 | AW22: =IFERROR('Rates Table'!AW22*(SPU_Block_1),0)/100 -> 0 | AX22: =IFERROR('Rates Table'!AX22*(SPU_Block_1),0)/100 -> 0 | AY22: =IFERROR('Rates Table'!AY22*(SPU_Block_1),0)/100 -> 0 | AZ22: =IFERROR('Rates Table'!AZ22*(SPU_Block_1),0)/100 -> 0 | BA22: =IFERROR('Rates Table'!BA22*(SPU_Block_1),0)/100 -> 0 | BB22: =IFERROR('Rates Table'!BB22*(SPU_Block_1),0)/100 -> 0 | BC22: =IFERROR('Rates Table'!BC22*(SPU_Block_1),0)/100 -> 0
C23: Energy - Block 2 | D23: c/kWh | E23: 0 | F23: =IFERROR('Rates Table'!F23*(SPU_Block_2),0)/100 -> 0 | G23: =IFERROR('Rates Table'!G23*(SPU_Block_2),0)/100 -> 0 | H23: =IFERROR('Rates Table'!H23*(SPU_Block_2),0)/100 -> 0 | I23: =IFERROR('Rates Table'!I23*(SPU_Block_2),0)/100 -> 0 | J23: =IFERROR('Rates Table'!J23*(SPU_Block_2),0)/100 -> 0 | K23: =IFERROR('Rates Table'!K23*(SPU_Block_2),0)/100 -> 0 | L23: =IFERROR('Rates Table'!L23*(SPU_Block_2),0)/100 -> 0 | M23: =IFERROR('Rates Table'!M23*(SPU_Block_2),0)/100 -> 0 | N23: =IFERROR('Rates Table'!N23*(SPU_Block_2),0)/100 -> 0 | O23: =IFERROR('Rates Table'!O23*(SPU_Block_2),0)/100 -> 0 | P23: =IFERROR('Rates Table'!P23*(SPU_Block_2),0)/100 -> 0 | Q23: =IFERROR('Rates Table'!Q23*(SPU_Block_2),0)/100 -> 0 | R23: =IFERROR('Rates Table'!R23*(SPU_Block_2),0)/100 -> 0 | S23: =IFERROR('Rates Table'!S23*(SPU_Block_2),0)/100 -> 0 | T23: =IFERROR('Rates Table'!T23*(SPU_Block_2),0)/100 -> 0 | U23: =IFERROR('Rates Table'!U23*(SPU_Block_2),0)/100 -> 0 | V23: =IFERROR('Rates Table'!V23*(SPU_Block_2),0)/100 -> 0 | W23: =IFERROR('Rates Table'!W23*(SPU_Block_2),0)/100 -> 0 | X23: =IFERROR('Rates Table'!X23*(SPU_Block_2),0)/100 -> 0 | Y23: =IFERROR('Rates Table'!Y23*(SPU_Block_2),0)/100 -> 0 | Z23: =IFERROR('Rates Table'!Z23*(SPU_Block_2),0)/100 -> 0 | AA23: =IFERROR('Rates Table'!AA23*(SPU_Block_2),0)/100 -> 0 | AB23: =IFERROR('Rates Table'!AB23*(SPU_Block_2),0)/100 -> 0 | AC23: =IFERROR('Rates Table'!AC23*(SPU_Block_2),0)/100 -> 0 | AE23: 0 | AF23: =IFERROR('Rates Table'!AF23*(SPU_Block_2),0)/100 -> 0 | AG23: =IFERROR('Rates Table'!AG23*(SPU_Block_2),0)/100 -> 0 | AH23: =IFERROR('Rates Table'!AH23*(SPU_Block_2),0)/100 -> 0 | AI23: =IFERROR('Rates Table'!AI23*(SPU_Block_2),0)/100 -> 0 | AJ23: =IFERROR('Rates Table'!AJ23*(SPU_Block_2),0)/100 -> 0 | AK23: =IFERROR('Rates Table'!AK23*(SPU_Block_2),0)/100 -> 0 | AL23: =IFERROR('Rates Table'!AL23*(SPU_Block_2),0)/100 -> 0 | AM23: =IFERROR('Rates Table'!AM23*(SPU_Block_2),0)/100 -> 0 | AN23: =IFERROR('Rates Table'!AN23*(SPU_Block_2),0)/100 -> 0 | AO23: =IFERROR('Rates Table'!AO23*(SPU_Block_2),0)/100 -> 0 | AP23: =IFERROR('Rates Table'!AP23*(SPU_Block_2),0)/100 -> 0 | AQ23: =IFERROR('Rates Table'!AQ23*(SPU_Block_2),0)/100 -> 0 | AR23: =IFERROR('Rates Table'!AR23*(SPU_Block_2),0)/100 -> 0 | AS23: =IFERROR('Rates Table'!AS23*(SPU_Block_2),0)/100 -> 0 | AT23: =IFERROR('Rates Table'!AT23*(SPU_Block_2),0)/100 -> 0 | AU23: =IFERROR('Rates Table'!AU23*(SPU_Block_2),0)/100 -> 0 | AV23: =IFERROR('Rates Table'!AV23*(SPU_Block_2),0)/100 -> 0 | AW23: =IFERROR('Rates Table'!AW23*(SPU_Block_2),0)/100 -> 0 | AX23: =IFERROR('Rates Table'!AX23*(SPU_Block_2),0)/100 -> 0 | AY23: =IFERROR('Rates Table'!AY23*(SPU_Block_2),0)/100 -> 0 | AZ23: =IFERROR('Rates Table'!AZ23*(SPU_Block_2),0)/100 -> 0 | BA23: =IFERROR('Rates Table'!BA23*(SPU_Block_2),0)/100 -> 0 | BB23: =IFERROR('Rates Table'!BB23*(SPU_Block_2),0)/100 -> 0 | BC23: =IFERROR('Rates Table'!BC23*(SPU_Block_2),0)/100 -> 0
B25: Total energy charges | E25: =SUM(E18:E23) -> 0 | F25: 0 | G25: 0 | H25: 0 | I25: 0 | J25: 0 | K25: 0 | L25: 0 | M25: 0 | N25: 0 | O25: 0 | P25: 0 | Q25: 0 | R25: 0 | S25: 0 | T25: 0 | U25: 0 | V25: 0 | W25: 0 | X25: 0 | Y25: 0 | Z25: 0 | AA25: 0 | AB25: 0 | AC25: 0 | AE25: =SUM(AE18:AE23) -> 0 | AF25: 0 | AG25: 0 | AH25: 0 | AI25: 0 | AJ25: 0 | AK25: 0 | AL25: 0 | AM25: 0 | AN25: 0 | AO25: 0 | AP25: 0 | AQ25: 0 | AR25: 0 | AS25: 0 | AT25: 0 | AU25: 0 | AV25: 0 | AW25: 0 | AX25: 0 | AY25: 0 | AZ25: 0 | BA25: 0 | BB25: 0 | BC25: 0
B27: Other charges | D27: Units | E27: =E$8 -> 2022/2023 Rates | F27: =F$8 -> 2022/2023 Rates | G27: 2022/2023 Rates | H27: 2022/2023 Rates | I27: 2022/2023 Rates | J27: 2022/2023 Rates | K27: 2022/2023 Rates | L27: 2022/2023 Rates | M27: 2022/2023 Rates | N27: 2022/2023 Rates | O27: 2022/2023 Rates | P27: 2022/2023 Rates | Q27: 2022/2023 Rates | R27: 2022/2023 Rates | S27: 2022/2023 Rates | T27: 2022/2023 Rates | U27: 2022/2023 Rates | V27: 2022/2023 Rates | W27: 2022/2023 Rates | X27: 2022/2023 Rates | Y27: 2022/2023 Rates | Z27: 2022/2023 Rates | AA27: 2022/2023 Rates | AB27: 2022/2023 Rates | AC27: 2022/2023 Rates | AE27: =AE$8 -> 2023/2024 Rates | AF27: =AF$8 -> 2023/2024 Rates | AG27: 2023/2024 Rates | AH27: 2023/2024 Rates | AI27: 2023/2024 Rates | AJ27: 2023/2024 Rates | AK27: 2023/2024 Rates | AL27: 2023/2024 Rates | AM27: 2023/2024 Rates | AN27: 2023/2024 Rates | AO27: 2023/2024 Rates | AP27: 2023/2024 Rates | AQ27: 2023/2024 Rates | AR27: 2023/2024 Rates | AS27: 2023/2024 Rates | AT27: 2023/2024 Rates | AU27: 2023/2024 Rates | AV27: 2023/2024 Rates | AW27: 2023/2024 Rates | AX27: 2023/2024 Rates | AY27: 2023/2024 Rates | AZ27: 2023/2024 Rates | BA27: 2023/2024 Rates | BB27: 2023/2024 Rates | BC27: 2023/2024 Rates
C29: Ancillary service charge | D29: c/kWh | E29: =SUMIFS(F29:AC29,$F$7:$AC$7,Selected_Tariff_ID) -> 0 | F29: =IFERROR(SPU_Annual_Total_Energy*'Rates Table'!F29,0)/100 -> 0 | G29: =IFERROR(SPU_Annual_Total_Energy*'Rates Table'!G29,0)/100 -> 0 | H29: =IFERROR(SPU_Annual_Total_Energy*'Rates Table'!H29,0)/100 -> 0 | I29: =IFERROR(SPU_Annual_Total_Energy*'Rates Table'!I29,0)/100 -> 0 | J29: =IFERROR(SPU_Annual_Total_Energy*'Rates Table'!J29,0)/100 -> 0 | K29: =IFERROR(SPU_Annual_Total_Energy*'Rates Table'!K29,0)/100 -> 0 | L29: =IFERROR(SPU_Annual_Total_Energy*'Rates Table'!L29,0)/100 -> 0 | M29: =IFERROR(SPU_Annual_Total_Energy*'Rates Table'!M29,0)/100 -> 0 | N29: =IFERROR(SPU_Annual_Total_Energy*'Rates Table'!N29,0)/100 -> 0 | O29: =IFERROR(SPU_Annual_Total_Energy*'Rates Table'!O29,0)/100 -> 0 | P29: =IFERROR(SPU_Annual_Total_Energy*'Rates Table'!P29,0)/100 -> 0 | Q29: =IFERROR(SPU_Annual_Total_Energy*'Rates Table'!Q29,0)/100 -> 0 | R29: =IFERROR(SPU_Annual_Total_Energy*'Rates Table'!R29,0)/100 -> 0 | S29: =IFERROR(SPU_Annual_Total_Energy*'Rates Table'!S29,0)/100 -> 0 | T29: =IFERROR(SPU_Annual_Total_Energy*'Rates Table'!T29,0)/100 -> 0 | U29: =IFERROR(SPU_Annual_Total_Energy*'Rates Table'!U29,0)/100 -> 0 | V29: =IFERROR(SPU_Annual_Total_Energy*'Rates Table'!V29,0)/100 -> 0 | W29: =IFERROR(SPU_Annual_Total_Energy*'Rates Table'!W29,0)/100 -> 0 | X29: =IFERROR(SPU_Annual_Total_Energy*'Rates Table'!X29,0)/100 -> 0 | Y29: =IFERROR(SPU_Annual_Total_Energy*'Rates Table'!Y29,0)/100 -> 0 | Z29: =IFERROR(SPU_Annual_Total_Energy*'Rates Table'!Z29,0)/100 -> 0 | AA29: =IFERROR(SPU_Annual_Total_Energy*'Rates Table'!AA29,0)/100 -> 0 | AB29: =IFERROR(SPU_Annual_Total_Energy*'Rates Table'!AB29,0)/100 -> 0 | AC29: =IFERROR(SPU_Annual_Total_Energy*'Rates Table'!AC29,0)/100 -> 0 | AE29: =SUMIFS(AF29:BC29,$F$7:$AC$7,Selected_Tariff_ID) -> 0 | AF29: =IFERROR(SPU_Annual_Total_Energy*'Rates Table'!AF29,0)/100 -> 0 | AG29: =IFERROR(SPU_Annual_Total_Energy*'Rates Table'!AG29,0)/100 -> 0 | AH29: =IFERROR(SPU_Annual_Total_Energy*'Rates Table'!AH29,0)/100 -> 0 | AI29: =IFERROR(SPU_Annual_Total_Energy*'Rates Table'!AI29,0)/100 -> 0 | AJ29: =IFERROR(SPU_Annual_Total_Energy*'Rates Table'!AJ29,0)/100 -> 0 | AK29: =IFERROR(SPU_Annual_Total_Energy*'Rates Table'!AK29,0)/100 -> 0 | AL29: =IFERROR(SPU_Annual_Total_Energy*'Rates Table'!AL29,0)/100 -> 0 | AM29: =IFERROR(SPU_Annual_Total_Energy*'Rates Table'!AM29,0)/100 -> 0 | AN29: =IFERROR(SPU_Annual_Total_Energy*'Rates Table'!AN29,0)/100 -> 0 | AO29: =IFERROR(SPU_Annual_Total_Energy*'Rates Table'!AO29,0)/100 -> 0 | AP29: =IFERROR(SPU_Annual_Total_Energy*'Rates Table'!AP29,0)/100 -> 0 | AQ29: =IFERROR(SPU_Annual_Total_Energy*'Rates Table'!AQ29,0)/100 -> 0 | AR29: =IFERROR(SPU_Annual_Total_Energy*'Rates Table'!AR29,0)/100 -> 0 | AS29: =IFERROR(SPU_Annual_Total_Energy*'Rates Table'!AS29,0)/100 -> 0 | AT29: =IFERROR(SPU_Annual_Total_Energy*'Rates Table'!AT29,0)/100 -> 0 | AU29: =IFERROR(SPU_Annual_Total_Energy*'Rates Table'!AU29,0)/100 -> 0 | AV29: =IFERROR(SPU_Annual_Total_Energy*'Rates Table'!AV29,0)/100 -> 0 | AW29: =IFERROR(SPU_Annual_Total_Energy*'Rates Table'!AW29,0)/100 -> 0 | AX29: =IFERROR(SPU_Annual_Total_Energy*'Rates Table'!AX29,0)/100 -> 0 | AY29: =IFERROR(SPU_Annual_Total_Energy*'Rates Table'!AY29,0)/100 -> 0 | AZ29: =IFERROR(SPU_Annual_Total_Energy*'Rates Table'!AZ29,0)/100 -> 0 | BA29: =IFERROR(SPU_Annual_Total_Energy*'Rates Table'!BA29,0)/100 -> 0 | BB29: =IFERROR(SPU_Annual_Total_Energy*'Rates Table'!BB29,0)/100 -> 0 | BC29: =IFERROR(SPU_Annual_Total_Energy*'Rates Table'!BC29,0)/100 -> 0
C30: Service charge | D30: =IF(Table_1=1,"R/day","R/day") -> R/day | E30: =SUMIFS(F30:AC30,$F$7:$AC$7,Selected_Tariff_ID) -> 0 | F30: =IFERROR('Rates Table'!F30*PODs*ESKOM_Total_days,0) -> 834.6333333 | G30: =IFERROR('Rates Table'!G30*PODs*ESKOM_Total_days,0) -> 834.6333333 | H30: =IFERROR('Rates Table'!H30*PODs*ESKOM_Total_days,0) -> 834.6333333 | I30: =IFERROR('Rates Table'!I30*PODs*ESKOM_Total_days,0) -> 0 | J30: =IFERROR('Rates Table'!J30*PODs*ESKOM_Total_days,0) -> 0 | K30: =IFERROR('Rates Table'!K30*PODs*ESKOM_Total_days,0) -> 0 | L30: =IFERROR('Rates Table'!L30*PODs*ESKOM_Total_days,0) -> 0 | M30: =IFERROR('Rates Table'!M30*PODs*ESKOM_Total_days,0) -> 0 | N30: =IFERROR('Rates Table'!N30*PODs*ESKOM_Total_days,0) -> 0 | O30: =IFERROR('Rates Table'!O30*PODs*ESKOM_Total_days,0) -> 0 | P30: =IFERROR('Rates Table'!P30*PODs*ESKOM_Total_days,0) -> 0 | Q30: =IFERROR('Rates Table'!Q30*PODs*ESKOM_Total_days,0) -> 1051.504167 | R30: =IFERROR('Rates Table'!R30*PODs*ESKOM_Total_days,0) -> 1051.504167 | S30: =IFERROR('Rates Table'!S30*PODs*ESKOM_Total_days,0) -> 1051.504167 | T30: =IFERROR('Rates Table'!T30*PODs*ESKOM_Total_days,0) -> 0 | U30: =IFERROR('Rates Table'!U30*PODs*ESKOM_Total_days,0) -> 2255.091667 | V30: =IFERROR('Rates Table'!V30*PODs*ESKOM_Total_days,0) -> 0 | W30: =IFERROR('Rates Table'!W30*PODs*ESKOM_Total_days,0) -> 0 | X30: =IFERROR('Rates Table'!X30*PODs*ESKOM_Total_days,0) -> 0 | Y30: =IFERROR('Rates Table'!Y30*PODs*ESKOM_Total_days,0) -> 0 | Z30: =IFERROR('Rates Table'!Z30*PODs*ESKOM_Total_days,0) -> 0 | AA30: =IFERROR('Rates Table'!AA30*PODs*ESKOM_Total_days,0) -> 0 | AB30: =IFERROR('Rates Table'!AB30*PODs*ESKOM_Total_days,0) -> 0 | AC30: =IFERROR('Rates Table'!AC30*PODs*ESKOM_Total_days,0) -> 0 | AE30: =SUMIFS(AF30:BC30,$F$7:$AC$7,Selected_Tariff_ID) -> 0 | AF30: =IFERROR('Rates Table'!AF30*PODs*ESKOM_Total_days,0) -> 990.3666667 | AG30: =IFERROR('Rates Table'!AG30*PODs*ESKOM_Total_days,0) -> 990.3666667 | AH30: =IFERROR('Rates Table'!AH30*PODs*ESKOM_Total_days,0) -> 990.3666667 | AI30: =IFERROR('Rates Table'!AI30*PODs*ESKOM_Total_days,0) -> 0 | AJ30: =IFERROR('Rates Table'!AJ30*PODs*ESKOM_Total_days,0) -> 0 | AK30: =IFERROR('Rates Table'!AK30*PODs*ESKOM_Total_days,0) -> 0 | AL30: =IFERROR('Rates Table'!AL30*PODs*ESKOM_Total_days,0) -> 0 | AM30: =IFERROR('Rates Table'!AM30*PODs*ESKOM_Total_days,0) -> 0 | AN30: =IFERROR('Rates Table'!AN30*PODs*ESKOM_Total_days,0) -> 0 | AO30: =IFERROR('Rates Table'!AO30*PODs*ESKOM_Total_days,0) -> 0 | AP30: =IFERROR('Rates Table'!AP30*PODs*ESKOM_Total_days,0) -> 0 | AQ30: =IFERROR('Rates Table'!AQ30*PODs*ESKOM_Total_days,0) -> 1247.691667 | AR30: =IFERROR('Rates Table'!AR30*PODs*ESKOM_Total_days,0) -> 1247.691667 | AS30: =IFERROR('Rates Table'!AS30*PODs*ESKOM_Total_days,0) -> 1247.691667 | AT30: =IFERROR('Rates Table'!AT30*PODs*ESKOM_Total_days,0) -> 0 | AU30: =IFERROR('Rates Table'!AU30*PODs*ESKOM_Total_days,0) -> 2675.754167 | AV30: =IFERROR('Rates Table'!AV30*PODs*ESKOM_Total_days,0) -> 0 | AW30: =IFERROR('Rates Table'!AW30*PODs*ESKOM_Total_days,0) -> 0 | AX30: =IFERROR('Rates Table'!AX30*PODs*ESKOM_Total_days,0) -> 0 | AY30: =IFERROR('Rates Table'!AY30*PODs*ESKOM_Total_days,0) -> 0 | AZ30: =IFERROR('Rates Table'!AZ30*PODs*ESKOM_Total_days,0) -> 0 | BA30: =IFERROR('Rates Table'!BA30*PODs*ESKOM_Total_days,0) -> 0 | BB30: =IFERROR('Rates Table'!BB30*PODs*ESKOM_Total_days,0) -> 0 | BC30: =IFERROR('Rates Table'!BC30*PODs*ESKOM_Total_days,0) -> 0
B32: Total other charges | E32: =SUM(E28:E30) -> 0 | F32: 834.6333333 | G32: 834.6333333 | H32: 834.6333333 | I32: 0 | J32: 0 | K32: 0 | L32: 0 | M32: 0 | N32: 0 | O32: 0 | P32: 0 | Q32: 1051.504167 | R32: 1051.504167 | S32: 1051.504167 | T32: 0 | U32: 2255.091667 | V32: 0 | W32: 0 | X32: 0 | Y32: 0 | Z32: 0 | AA32: 0 | AB32: 0 | AC32: 0 | AE32: =SUM(AE28:AE30) -> 0 | AF32: 990.3666667 | AG32: 990.3666667 | AH32: 990.3666667 | AI32: 0 | AJ32: 0 | AK32: 0 | AL32: 0 | AM32: 0 | AN32: 0 | AO32: 0 | AP32: 0 | AQ32: 1247.691667 | AR32: 1247.691667 | AS32: 1247.691667 | AT32: 0 | AU32: 2675.754167 | AV32: 0 | AW32: 0 | AX32: 0 | AY32: 0 | AZ32: 0 | BA32: 0 | BB32: 0 | BC32: 0
B34: Total excl VAT | E34: =E32+E25+E14 -> 1008.3125 | F34: 1800.3625 | G34: 2461.925 | H34: 3646.045833 | I34: 0 | J34: 0 | K34: 0 | L34: 239.075 | M34: 448.0375 | N34: 925.275 | O34: 146 | P34: 1517.183333 | Q34: 2317.75 | R34: 2997.866667 | S34: 4163.129167 | T34: 1008.3125 | U34: 2255.091667 | V34: 0 | W34: 0 | X34: 0 | Y34: 0 | Z34: 0 | AA34: 0 | AB34: 0 | AC34: 0 | AE34: =AE32+AE25+AE14 -> 1196.2875 | AF34: 2136.1625 | AG34: 2921.216667 | AH34: 4326.1625 | AI34: 0 | AJ34: 0 | AK34: 0 | AL34: 283.7875 | AM34: 531.6833333 | AN34: 1097.7375 | AO34: 173.375 | AP34: 1800.058333 | AQ34: 2749.970833 | AR34: 3556.925 | AS34: 4939.666667 | AT34: 1196.2875 | AU34: 2675.754167 | AV34: 0 | AW34: 0 | AX34: 0 | AY34: 0 | AZ34: 283.7875 | BA34: 531.6833333 | BB34: 1097.7375 | BC34: 173.375
B35: VAT | D35: ='Monthly Average Bill'!D49 -> 0.15 | E35: =E34*$D35 -> 151.246875 | F35: =F34*$D35 -> 270.054375 | G35: 369.28875 | H35: 546.906875 | I35: 0 | J35: 0 | K35: 0 | L35: 35.86125 | M35: 67.205625 | N35: 138.79125 | O35: 21.9 | P35: 227.5775 | Q35: 347.6625 | R35: 449.68 | S35: 624.469375 | T35: 151.246875 | U35: 338.26375 | V35: 0 | W35: 0 | X35: 0 | Y35: 0 | Z35: 0 | AA35: 0 | AB35: 0 | AC35: 0 | AE35: =AE34*$D35 -> 179.443125 | AF35: =AF34*$D35 -> 320.424375 | AG35: 438.1825 | AH35: 648.924375 | AI35: 0 | AJ35: 0 | AK35: 0 | AL35: 42.568125 | AM35: 79.7525 | AN35: 164.660625 | AO35: 26.00625 | AP35: 270.00875 | AQ35: 412.495625 | AR35: 533.53875 | AS35: 740.95 | AT35: 179.443125 | AU35: 401.363125 | AV35: 0 | AW35: 0 | AX35: 0 | AY35: 0 | AZ35: 42.568125 | BA35: 79.7525 | BB35: 164.660625 | BC35: 26.00625
B37: Total account | E37: =SUM(E34:E35) -> 1159.559375 | F37: =SUM(F34:F35) -> 2070.416875 | G37: 2831.21375 | H37: 4192.952708 | I37: 0 | J37: 0 | K37: 0 | L37: 274.93625 | M37: 515.243125 | N37: 1064.06625 | O37: 167.9 | P37: 1744.760833 | Q37: 2665.4125 | R37: 3447.546667 | S37: 4787.598542 | T37: 1159.559375 | U37: 2593.355417 | V37: 0 | W37: 0 | X37: 0 | Y37: 0 | Z37: 0 | AA37: 0 | AB37: 0 | AC37: 0 | AE37: =SUM(AE34:AE35) -> 1375.730625 | AF37: =SUM(AF34:AF35) -> 2456.586875 | AG37: 3359.399167 | AH37: 4975.086875 | AI37: 0 | AJ37: 0 | AK37: 0 | AL37: 326.355625 | AM37: 611.4358333 | AN37: 1262.398125 | AO37: 199.38125 | AP37: 2070.067083 | AQ37: 3162.466458 | AR37: 4090.46375 | AS37: 5680.616667 | AT37: 1375.730625 | AU37: 3077.117292 | AV37: 0 | AW37: 0 | AX37: 0 | AY37: 0 | AZ37: 326.355625 | BA37: 611.4358333 | BB37: 1262.398125 | BC37: 199.38125
B39: Average price c/kWh | E39: =SUMIFS(F39:AC39,$F$7:$AC$7,Selected_Tariff_ID) ->  | F39: =F34/SPU_Annual_Total_Energy*100 ->  | H39: =H34/SPU_Annual_Total_Energy*100 ->  | AE39: =SUMIFS(AF39:BC39,$F$7:$AC$7,Selected_Tariff_ID) ->  | AF39: =AF34/SPU_Annual_Total_Energy*100 -> 
B41: Check tables
C42: Table 1: 1 = LPU, 0 = SPU | E42: =SUMIFS(F42:AC42,$F$7:$AC$7,Selected_Tariff_ID) -> 0 | F42: ='Rates Table'!F41 -> 0 | G42: ='Rates Table'!G41 -> 0 | H42: ='Rates Table'!H41 -> 0 | I42: ='Rates Table'!I41 -> 0 | J42: ='Rates Table'!J41 -> 0 | K42: ='Rates Table'!K41 -> 0 | L42: ='Rates Table'!L41 -> 0 | M42: ='Rates Table'!M41 -> 0 | N42: ='Rates Table'!N41 -> 0 | O42: ='Rates Table'!O41 -> 0 | P42: ='Rates Table'!P41 -> 0 | Q42: ='Rates Table'!Q41 -> 0 | R42: ='Rates Table'!R41 -> 0 | S42: ='Rates Table'!S41 -> 0 | T42: ='Rates Table'!T41 -> 0 | U42: ='Rates Table'!U41 -> 0 | V42: ='Rates Table'!V41 -> 0 | W42: ='Rates Table'!W41 -> 0 | X42: ='Rates Table'!X41 -> 0 | Y42: ='Rates Table'!Y41 -> 0 | Z42: ='Rates Table'!Z41 -> 0 | AA42: ='Rates Table'!AA41 -> 0 | AB42: ='Rates Table'!AB41 -> 0 | AC42: ='Rates Table'!AC41 -> 0 | AE42: =SUMIFS(AF42:BC42,$F$7:$AC$7,Selected_Tariff_ID) -> 0 | AF42: =F42 -> 0 | AG42: 0 | AH42: 0 | AI42: 0 | AJ42: 0 | AK42: 0 | AL42: 0 | AM42: 0 | AN42: 0 | AO42: 0 | AP42: 0 | AQ42: 0 | AR42: 0 | AS42: 0 | AT42: 0 | AU42: 0 | AV42: =V42 -> 0 | AW42: 0 | AX42: 0 | AY42: 0 | AZ42: 0 | BA42: 0 | BB42: 0 | BC42: 0
C43: Tariff Type | E43: =Selected_Tariff_Type -> Rural | F43: =INDEX(Full_Tariff_Type,F$7,) -> Urban | G43: Urban | H43: Urban | I43: Urban | J43: Urban | K43: Urban | L43: Urban | M43: Urban | N43: Urban | O43: Urban | P43: Urban | Q43: Rural | R43: Rural | S43: Rural | T43: Rural | U43: Rural | V43: Rural | W43: Rural | X43: Urban | Y43: Urban | Z43: Urban | AA43: Urban | AB43: Urban | AC43: Urban | AE43: =Selected_Tariff_Type -> Rural | AF43: Urban | AG43: Urban | AH43: Urban | AI43: Urban | AJ43: Urban | AK43: Urban | AL43: Urban | AM43: Urban | AN43: Urban | AO43: Urban | AP43: Urban | AQ43: Rural | AR43: Rural | AS43: Rural | AT43: Rural | AU43: Rural | AV43: Rural | AW43: Rural | AX43: Urban | AY43: Urban | AZ43: Urban | BA43: Urban | BB43: Urban | BC43: Urban

Sheet Rates SPU - New (hidden)
C4: ="Small Power User | Tariff Inputs | "&New_Period -> Small Power User | Tariff Inputs | 2023/2024
U5: Dx NAC
C6: Rates - All Other | I6: kWhHP | J6: kWhHS | K6: kWhHO | L6: kWhLP | M6: kWhLS | N6: kWhLO | O6: kWhRBlock1 | P6: kWhRBlock4 | Q6: kWhHP | R6: Reliab | S6: DxNDC Energy | T6: DxNDC Energy | U6: NAC POD | V6: SerS
C7: Tariff | D7: Tariff Category | E7: Type | F7: Column1 | G7: Code | H7: Matrix Code | I7: High - Peak | J7: High - Standard | K7: High-Off Peak | L7: Low - Peak | M7: Low - Standard | N7: Low-Off Peak | O7: Energy charge Block 1 [c/kWh] | P7: Energy charge Block 2 [c/kWh] | Q7: Energy charge [c/kWh] | R7: Ancillary service charge [c/kWh] | S7: Network demand charge [c/kWh] | T7: Network demand charge, Ancillary service charge and retail [c/kWh] | U7: Network capacity charge [R/POD/day] | V7: Service and administration charge [R/POD/day] | W7: Environmental levy charge [c/kWh] | Z7: check
C8: Businessrate 1 | D8: Non-Local Authority | G8: =C8&"_"&D8 -> Businessrate 1_Non-Local Authority | H8: =INDEX(Matrix_Tariff_Map,MATCH(C8,Matrix_Model_Tariffs,0),2)&IFERROR(INDEX(Matrix_Transmission_Map,MATCH(E8,Matrix_Model_Transmission,0),2),0)&IFERROR(INDEX(Matrix_Voltage_Map,MATCH(F8,Matrix_Model_Voltage,0),2),1)&INDEX(Matrix_Category_Map,MATCH(D8,Matrix_Model_Category,0),2) -> B101N | I8: 0 | J8: 0 | K8: 0 | L8: 0 | M8: 0 | N8: 0 | O8: 0 | P8: 0 | Q8: 185.83 | R8: 0.71 | S8: 26.23 | U8: 37.67 | V8: 32.56 | W8: n/a
C9: Businessrate 2 | D9: Non-Local Authority | G9: =C9&"_"&D9 -> Businessrate 2_Non-Local Authority | H9: B201N | I9: 0 | J9: 0 | K9: 0 | L9: 0 | M9: 0 | N9: 0 | O9: 0 | P9: 0 | Q9: 185.83 | R9: 0.71 | S9: 26.23 | U9: 63.48 | V9: 32.56 | W9: n/a
C10: Businessrate 3 | D10: Non-Local Authority | G10: Businessrate 3_Non-Local Authority | H10: B301N | I10: 0 | J10: 0 | K10: 0 | L10: 0 | M10: 0 | N10: 0 | O10: 0 | P10: 0 | Q10: 185.83 | R10: 0.71 | S10: 26.23 | U10: 109.67 | V10: 32.56 | W10: n/a
C11: Businessrate 4 | D11: Non-Local Authority | G11: =C11&"_"&D11 -> Businessrate 4_Non-Local Authority | H11: B401N | I11: 0 | J11: 0 | K11: 0 | L11: 0 | M11: 0 | N11: 0 | O11: 0 | P11: 0 | Q11: 500.1 | R11: 0.71 | S11: 26.23 | U11: 0 | V11: 0 | W11: n/a
C12: Homepower Bulk | D12: Non-Local Authority | G12: =C12&"_"&D12 -> Homepower Bulk_Non-Local Authority | H12: HB01N | I12: 0 | J12: 0 | K12: 0 | L12: 0 | M12: 0 | N12: 0 | O12: 0 | P12: 0 | Q12: 285.96 | R12: 0 | S12: 0 | U12: 59.18 | V12: 0 | W12: n/a
C13: Homepower 1 | D13: Non-Local Authority | G13: =C13&"_"&D13 -> Homepower 1_Non-Local Authority | H13: H101N | I13: 0 | J13: 0 | K13: 0 | L13: 0 | M13: 0 | N13: 0 | O13: 217.79 | P13: 343.91 | Q13: 0 | R13: 0 | S13: 0 | U13: 9.33 | V13: 0 | W13: n/a
C14: Homepower 2 | D14: Non-Local Authority | G14: Homepower 2_Non-Local Authority | H14: H201N | I14: 0 | J14: 0 | K14: 0 | L14: 0 | M14: 0 | N14: 0 | O14: 217.79 | P14: 335.33 | Q14: 0 | R14: 0 | S14: 0 | U14: 17.48 | V14: 0 | W14: n/a
C15: Homepower 3 | D15: Non-Local Authority | G15: Homepower 3_Non-Local Authority | H15: H301N | I15: 0 | J15: 0 | K15: 0 | L15: 0 | M15: 0 | N15: 0 | O15: 217.79 | P15: 335.33 | Q15: 0 | R15: 0 | S15: 0 | U15: 36.09 | V15: 0 | W15: n/a
C16: Homepower 4 | D16: Non-Local Authority | G16: Homepower 4_Non-Local Authority | H16: H401N | I16: 0 | J16: 0 | K16: 0 | L16: 0 | M16: 0 | N16: 0 | O16: 217.79 | P16: 350.24 | Q16: 0 | R16: 0 | S16: 0 | U16: 5.7 | V16: 0 | W16: n/a
C17: Homelight 20A | D17: Non-Local Authority | G17: Homelight 20A_Non-Local Authority | H17: HL2001N | I17: 0 | J17: 0 | K17: 0 | L17: 0 | M17: 0 | N17: 0 | O17: 168.78 | P17: 191.25 | Q17: 0 | R17: 0 | S17: 0 | U17: 0 | V17: 0 | W17: n/a
C18: Homelight 60A | D18: Non-Local Authority | G18: Homelight 60A_Non-Local Authority | H18: HL6001N | I18: 0 | J18: 0 | K18: 0 | L18: 0 | M18: 0 | N18: 0 | O18: 206.06 | P18: 350.24 | Q18: 0 | R18: 0 | S18: 0 | U18: 0 | V18: 0 | W18: n/a
C19: Landrate 1 | D19: Non-Local Authority | G19: Landrate 1_Non-Local Authority | H19: L101N | I19: 0 | J19: 0 | K19: 0 | L19: 0 | M19: 0 | N19: 0 | O19: 0 | P19: 0 | Q19: 184.92 | R19: 0.71 | S19: 46.2 | U19: 49.39 | V19: 41.02 | W19: n/a
C20: Landrate 2 | D20: Non-Local Authority | G20: Landrate 2_Non-Local Authority | H20: L201N | I20: 0 | J20: 0 | K20: 0 | L20: 0 | M20: 0 | N20: 0 | O20: 0 | P20: 0 | Q20: 184.92 | R20: 0.71 | S20: 46.2 | U20: 75.92 | V20: 41.02 | W20: n/a
C21: Landrate 3 | D21: Non-Local Authority | G21: Landrate 3_Non-Local Authority | H21: L301N | I21: 0 | J21: 0 | K21: 0 | L21: 0 | M21: 0 | N21: 0 | O21: 0 | P21: 0 | Q21: 184.92 | R21: 0.71 | S21: 46.2 | U21: 121.38 | V21: 41.02 | W21: n/a
C22: Landrate 4 | D22: Non-Local Authority | G22: Landrate 4_Non-Local Authority | H22: L401N | I22: 0 | J22: 0 | K22: 0 | L22: 0 | M22: 0 | N22: 0 | O22: 0 | P22: 0 | Q22: 399.41 | R22: 0.71 | S22: 46.2 | U22: 39.33 | V22: 0 | W22: n/a
C23: Landrate Dx | D23: Non-Local Authority | G23: Landrate Dx_Non-Local Authority | H23: Ld01N | I23: 0 | J23: 0 | K23: 0 | L23: 0 | M23: 0 | N23: 0 | O23: 0 | P23: 0 | Q23: 0 | R23: 0 | S23: 0 | U23: 0 | V23: 87.97 | W23: n/a
C24: Landlight 20A | D24: Non-Local Authority | G24: =C24&"_"&D24 -> Landlight 20A_Non-Local Authority | H24: =INDEX(Matrix_Tariff_Map,MATCH(C24,Matrix_Model_Tariffs,0),2)&IFERROR(INDEX(Matrix_Transmission_Map,MATCH(E24,Matrix_Model_Transmission,0),2),0)&IFERROR(INDEX(Matrix_Voltage_Map,MATCH(F24,Matrix_Model_Voltage,0),2),1)&INDEX(Matrix_Category_Map,MATCH(D24,Matrix_Model_Category,0),2) -> Lt2001N | I24: 0 | J24: 0 | K24: 0 | L24: 0 | M24: 0 | N24: 0 | O24: 0 | P24: 0 | Q24: 531.74 | R24: 0 | S24: 0 | U24: 0 | V24: 0 | W24: n/a
C25: Landlight 60A | D25: Non-Local Authority | G25: =C25&"_"&D25 -> Landlight 60A_Non-Local Authority | H25: Lt6001N | I25: 0 | J25: 0 | K25: 0 | L25: 0 | M25: 0 | N25: 0 | O25: 0 | P25: 0 | Q25: 685.48 | R25: 0 | S25: 0 | U25: 0 | V25: 0 | W25: n/a
C26: Public Lighting All Night | D26: Non-Local Authority | G26: =C26&"_"&D26 -> Public Lighting All Night_Non-Local Authority | H26: Pa01N | I26: 0 | J26: 0 | K26: 0 | L26: 0 | M26: 0 | N26: 0 | O26: 0 | P26: 0 | Q26: 147.89 | R26: 0 | S26: 0 | U26: 0 | V26: 0 | W26: n/a
C27: Public Lighting 24 Hours | D27: Non-Local Authority | G27: Public Lighting 24 Hours_Non-Local Authority | H27: Pu01N | I27: 0 | J27: 0 | K27: 0 | L27: 0 | M27: 0 | N27: 0 | O27: 0 | P27: 0 | Q27: 198.01 | R27: 0 | S27: 0 | U27: 0 | V27: 0 | W27: n/a
C28: Public Lighting Urban Fixed | D28: Non-Local Authority | G28: Public Lighting Urban Fixed_Non-Local Authority | H28: Pt01N | I28: 0 | J28: 0 | K28: 0 | L28: 0 | M28: 0 | N28: 0 | O28: 0 | P28: 0 | Q28: 0 | R28: 0 | S28: 0 | U28: 0 | V28: 9.72 | W28: n/a
C29: Homeflex 1 | D29: Non-Local Authority | G29: =C29&"_"&D29 -> Homeflex 1_Non-Local Authority | H29: HF101N | I29: 542.79 | J29: 165.14 | K29: 90.17 | L29: 177.74 | M29: 122.64 | N29: 78.19 | O29: 0 | P29: 0 | Q29: 0 | R29: 0 | S29: 112.11 | T29: 112.11 | U29: 9.33 | V29: 0 | W29: n/a
C30: Homeflex 2 | D30: Non-Local Authority | G30: Homeflex 2_Non-Local Authority | H30: HF201N | I30: 542.79 | J30: 165.14 | K30: 90.17 | L30: 177.74 | M30: 122.64 | N30: 78.19 | O30: 0 | P30: 0 | Q30: 0 | R30: 0 | S30: 112.11 | T30: 112.11 | U30: 17.48 | V30: 0 | W30: n/a
C31: Homeflex 3 | D31: Non-Local Authority | G31: Homeflex 3_Non-Local Authority | H31: HF301N | I31: 542.79 | J31: 165.14 | K31: 90.17 | L31: 177.74 | M31: 122.64 | N31: 78.19 | O31: 0 | P31: 0 | Q31: 0 | R31: 0 | S31: 112.11 | T31: 112.11 | U31: 36.09 | V31: 0 | W31: n/a
C32: Homeflex 4 | D32: Non-Local Authority | G32: Homeflex 4_Non-Local Authority | H32: HF401N | I32: 542.79 | J32: 165.14 | K32: 90.17 | L32: 177.74 | M32: 122.64 | N32: 78.19 | O32: 0 | P32: 0 | Q32: 0 | R32: 0 | S32: 112.11 | T32: 112.11 | U32: 5.7 | V32: 0 | W32: n/a
C33: =C8 -> Businessrate 1 | D33: Local Authority | G33: Businessrate 1_Local Authority | H33: B101Y | I33: 0 | J33: 0 | K33: 0 | L33: 0 | M33: 0 | N33: 0 | O33: 0 | P33: 0 | Q33: 192.58 | R33: 0.73 | S33: 26.7 | U33: 38.27 | V33: 32.77 | W33: n/a
C34: =C9 -> Businessrate 2 | D34: Local Authority | G34: =C34&"_"&D34 -> Businessrate 2_Local Authority | H34: B201Y | I34: 0 | J34: 0 | K34: 0 | L34: 0 | M34: 0 | N34: 0 | O34: 0 | P34: 0 | Q34: 192.58 | R34: 0.73 | S34: 26.7 | U34: 64.55 | V34: 32.77 | W34: n/a
C35: =C10 -> Businessrate 3 | D35: Local Authority | G35: Businessrate 3_Local Authority | H35: B301Y | I35: 0 | J35: 0 | K35: 0 | L35: 0 | M35: 0 | N35: 0 | O35: 0 | P35: 0 | Q35: 192.58 | R35: 0.73 | S35: 26.7 | U35: 111.54 | V35: 32.77 | W35: n/a
C36: =C11 -> Businessrate 4 | D36: Local Authority | G36: =C36&"_"&D36 -> Businessrate 4_Local Authority | H36: B401Y | I36: 0 | J36: 0 | K36: 0 | L36: 0 | M36: 0 | N36: 0 | O36: 0 | P36: 0 | Q36: 518.25 | R36: 0.73 | S36: 26.7 | U36: 0 | V36: 0 | W36: n/a
C37: Homepower Bulk | D37: Local Authority | G37: =C37&"_"&D37 -> Homepower Bulk_Local Authority | H37: HB01Y | I37: 0 | J37: 0 | K37: 0 | L37: 0 | M37: 0 | N37: 0 | O37: 0 | P37: 0 | Q37: 0 | R37: 0 | S37: 0 | U37: 0 | V37: 0 | W37: n/a
C38: =C13 -> Homepower 1 | D38: Local Authority | G38: =C38&"_"&D38 -> Homepower 1_Local Authority | H38: H101Y | I38: 0 | J38: 0 | K38: 0 | L38: 0 | M38: 0 | N38: 0 | O38: 220.47 | P38: 348.11 | Q38: 0 | R38: 0 | S38: 0 | U38: 9.43 | V38: 0 | W38: n/a
C39: Homepower 2 | D39: Local Authority | G39: Homepower 2_Local Authority | H39: H201Y | I39: 0 | J39: 0 | K39: 0 | L39: 0 | M39: 0 | N39: 0 | O39: 220.47 | P39: 339.38 | Q39: 0 | R39: 0 | S39: 0 | U39: 17.69 | V39: 0 | W39: n/a
C40: Homepower 3 | D40: Local Authority | G40: Homepower 3_Local Authority | H40: H301Y | I40: 0 | J40: 0 | K40: 0 | L40: 0 | M40: 0 | N40: 0 | O40: 220.47 | P40: 339.38 | Q40: 0 | R40: 0 | S40: 0 | U40: 36.55 | V40: 0 | W40: n/a
C41: Homepower 4 | D41: Local Authority | G41: Homepower 4_Local Authority | H41: H401Y | I41: 0 | J41: 0 | K41: 0 | L41: 0 | M41: 0 | N41: 0 | O41: 220.47 | P41: 354.52 | Q41: 0 | R41: 0 | S41: 0 | U41: 5.78 | V41: 0 | W41: n/a
C42: Homelight 20A | D42: Local Authority | G42: Homelight 20A_Local Authority | H42: HL2001Y | I42: 0 | J42: 0 | K42: 0 | L42: 0 | M42: 0 | N42: 0 | O42: 0 | P42: 0 | Q42: 0 | R42: 0 | S42: 0 | U42: 0 | V42: 0 | W42: n/a
C43: Homelight 60A | D43: Local Authority | G43: Homelight 60A_Local Authority | H43: HL6001Y | I43: 0 | J43: 0 | K43: 0 | L43: 0 | M43: 0 | N43: 0 | O43: 0 | P43: 0 | Q43: 0 | R43: 0 | S43: 0 | U43: 0 | V43: 0 | W43: n/a
C44: Landrate 1 | D44: Local Authority | G44: Landrate 1_Local Authority | H44: L101Y | I44: 0 | J44: 0 | K44: 0 | L44: 0 | M44: 0 | N44: 0 | O44: 0 | P44: 0 | Q44: 191.63 | R44: 0.73 | S44: 47.24 | U44: 50.45 | V44: 41.29 | W44: n/a
C45: Landrate 2 | D45: Local Authority | G45: Landrate 2_Local Authority | H45: L201Y | I45: 0 | J45: 0 | K45: 0 | L45: 0 | M45: 0 | N45: 0 | O45: 0 | P45: 0 | Q45: 191.63 | R45: 0.73 | S45: 47.24 | U45: 77.54 | V45: 41.29 | W45: n/a
C46: Landrate 3 | D46: Local Authority | G46: Landrate 3_Local Authority | H46: L301Y | I46: 0 | J46: 0 | K46: 0 | L46: 0 | M46: 0 | N46: 0 | O46: 0 | P46: 0 | Q46: 191.63 | R46: 0.73 | S46: 47.24 | U46: 124 | V46: 41.29 | W46: n/a
C47: Landrate 4 | D47: Local Authority | G47: Landrate 4_Local Authority | H47: L401Y | I47: 0 | J47: 0 | K47: 0 | L47: 0 | M47: 0 | N47: 0 | O47: 0 | P47: 0 | Q47: 413.9 | R47: 0.73 | S47: 47.24 | U47: 40.18 | V47: 0 | W47: n/a
C48: Landrate Dx | D48: Local Authority | G48: =C48&"_"&D48 -> Landrate Dx_Local Authority | H48: Ld01Y | I48: 0 | J48: 0 | K48: 0 | L48: 0 | M48: 0 | N48: 0 | O48: 0 | P48: 0 | Q48: 0 | R48: 0 | S48: 0 | U48: 0 | V48: 89.35 | W48: n/a
C49: Public Lighting All Night | D49: Local Authority | G49: =C49&"_"&D49 -> Public Lighting All Night_Local Authority | H49: =INDEX(Matrix_Tariff_Map,MATCH(C49,Matrix_Model_Tariffs,0),2)&IFERROR(INDEX(Matrix_Transmission_Map,MATCH(E49,Matrix_Model_Transmission,0),2),0)&IFERROR(INDEX(Matrix_Voltage_Map,MATCH(F49,Matrix_Model_Voltage,0),2),1)&INDEX(Matrix_Category_Map,MATCH(D49,Matrix_Model_Category,0),2) -> Pa01Y | I49: 0 | J49: 0 | K49: 0 | L49: 0 | M49: 0 | N49: 0 | O49: 0 | P49: 0 | Q49: 155.46 | R49: 0 | S49: 0 | U49: 0 | V49: 0 | W49: n/a
C50: Public Lighting 24 Hours | D50: Local Authority | G50: =C50&"_"&D50 -> Public Lighting 24 Hours_Local Authority | H50: =INDEX(Matrix_Tariff_Map,MATCH(C50,Matrix_Model_Tariffs,0),2)&IFERROR(INDEX(Matrix_Transmission_Map,MATCH(E50,Matrix_Model_Transmission,0),2),0)&IFERROR(INDEX(Matrix_Voltage_Map,MATCH(F50,Matrix_Model_Voltage,0),2),1)&INDEX(Matrix_Category_Map,MATCH(D50,Matrix_Model_Category,0),2) -> Pu01Y | I50: 0 | J50: 0 | K50: 0 | L50: 0 | M50: 0 | N50: 0 | O50: 0 | P50: 0 | Q50: 208.16 | R50: 0 | S50: 0 | U50: 0 | V50: 0 | W50: n/a
C51: Public Lighting Urban Fixed | D51: Local Authority | G51: =C51&"_"&D51 -> Public Lighting Urban Fixed_Local Authority | H51: =INDEX(Matrix_Tariff_Map,MATCH(C51,Matrix_Model_Tariffs,0),2)&IFERROR(INDEX(Matrix_Transmission_Map,MATCH(E51,Matrix_Model_Transmission,0),2),0)&IFERROR(INDEX(Matrix_Voltage_Map,MATCH(F51,Matrix_Model_Voltage,0),2),1)&INDEX(Matrix_Category_Map,MATCH(D51,Matrix_Model_Category,0),2) -> Pt01Y | I51: 0 | J51: 0 | K51: 0 | L51: 0 | M51: 0 | N51: 0 | O51: 0 | P51: 0 | Q51: 0 | R51: 0 | S51: 0 | U51: 0 | V51: 10.22 | W51: n/a

Sheet Rates SPU - Current (hidden)
C4: ="Small Power User | Tariff Inputs | "&Current_Period -> Small Power User | Tariff Inputs | 2022/2023
U5: Dx NAC
C6: Rates - All Other | I6: kWhHP | J6: kWhHS | K6: kWhHO | L6: kWhLP | M6: kWhLS | N6: kWhLO | O6: kWhRBlock1 | P6: kWhRBlock4 | Q6: kWhHP | R6: Reliab | S6: DxNDC Energy | T6: DxNDC Energy | U6: NAC POD | V6: SerS
C7: Tariff | D7: Tariff Category | E7: Type | F7: Column1 | G7: Code | H7: Matrix Code | I7: High - Peak | J7: High - Standard | K7: High-Off Peak | L7: Low - Peak | M7: Low - Standard | N7: Low-Off Peak | O7: Energy charge Block 1 [c/kWh] | P7: Energy charge Block 2 [c/kWh] | Q7: Energy charge [c/kWh] | R7: Ancillary service charge [c/kWh] | S7: Network demand charge [c/kWh] | T7: Network demand charge, Ancillary service charge and retail [c/kWh] | U7: Network capacity charge [R/POD/day] | V7: Service and administration charge [R/POD/day] | W7: Environmental levy charge [c/kWh]
C8: Businessrate 1 | D8: Non-Local Authority | G8: =C8&"_"&D8 -> Businessrate 1_Non-Local Authority | H8: =INDEX(Matrix_Tariff_Map,MATCH(C8,Matrix_Model_Tariffs,0),2)&IFERROR(INDEX(Matrix_Transmission_Map,MATCH(E8,Matrix_Model_Transmission,0),2),0)&IFERROR(INDEX(Matrix_Voltage_Map,MATCH(F8,Matrix_Model_Voltage,0),2),1)&INDEX(Matrix_Category_Map,MATCH(D8,Matrix_Model_Category,0),2) -> B101N | I8: 0 | J8: 0 | K8: 0 | L8: 0 | M8: 0 | N8: 0 | O8: 0 | P8: 0 | Q8: 156.62 | R8: 0.6 | S8: 22.11 | U8: 31.75 | V8: 27.44 | W8: n/a
C9: Businessrate 2 | D9: Non-Local Authority | G9: =C9&"_"&D9 -> Businessrate 2_Non-Local Authority | H9: B201N | I9: 0 | J9: 0 | K9: 0 | L9: 0 | M9: 0 | N9: 0 | O9: 0 | P9: 0 | Q9: 156.62 | R9: 0.6 | S9: 22.11 | U9: 53.5 | V9: 27.44 | W9: n/a
C10: Businessrate 3 | D10: Non-Local Authority | G10: Businessrate 3_Non-Local Authority | H10: B301N | I10: 0 | J10: 0 | K10: 0 | L10: 0 | M10: 0 | N10: 0 | O10: 0 | P10: 0 | Q10: 156.62 | R10: 0.6 | S10: 22.11 | U10: 92.43 | V10: 27.44 | W10: n/a
C11: Businessrate 4 | D11: Non-Local Authority | G11: =C11&"_"&D11 -> Businessrate 4_Non-Local Authority | H11: B401N | I11: 0 | J11: 0 | K11: 0 | L11: 0 | M11: 0 | N11: 0 | O11: 0 | P11: 0 | Q11: 421.49 | R11: 0.6 | S11: 22.11 | U11: 0 | V11: 0 | W11: n/a
C12: Homepower Bulk | D12: Non-Local Authority | G12: =C12&"_"&D12 -> Homepower Bulk_Non-Local Authority | H12: HB01N | I12: 0 | J12: 0 | K12: 0 | L12: 0 | M12: 0 | N12: 0 | O12: 0 | P12: 0 | Q12: 241.01 | R12: 0 | S12: 0 | U12: 49.88 | V12: 0 | W12: n/a
C13: Homepower 1 | D13: Non-Local Authority | G13: =C13&"_"&D13 -> Homepower 1_Non-Local Authority | H13: H101N | I13: 0 | J13: 0 | K13: 0 | L13: 0 | M13: 0 | N13: 0 | O13: 183.56 | P13: 289.85 | Q13: 0 | R13: 0 | S13: 0 | U13: 7.86 | V13: 0 | W13: n/a
C14: Homepower 2 | D14: Non-Local Authority | G14: Homepower 2_Non-Local Authority | H14: H201N | I14: 0 | J14: 0 | K14: 0 | L14: 0 | M14: 0 | N14: 0 | O14: 183.56 | P14: 282.62 | Q14: 0 | R14: 0 | S14: 0 | U14: 14.73 | V14: 0 | W14: n/a
C15: Homepower 3 | D15: Non-Local Authority | G15: Homepower 3_Non-Local Authority | H15: H301N | I15: 0 | J15: 0 | K15: 0 | L15: 0 | M15: 0 | N15: 0 | O15: 183.56 | P15: 282.62 | Q15: 0 | R15: 0 | S15: 0 | U15: 30.42 | V15: 0 | W15: n/a
C16: Homepower 4 | D16: Non-Local Authority | G16: Homepower 4_Non-Local Authority | H16: H401N | I16: 0 | J16: 0 | K16: 0 | L16: 0 | M16: 0 | N16: 0 | O16: 183.56 | P16: 295.19 | Q16: 0 | R16: 0 | S16: 0 | U16: 4.8 | V16: 0 | W16: n/a
C17: Homelight 20A | D17: Non-Local Authority | G17: Homelight 20A_Non-Local Authority | H17: HL2001N | I17: 0 | J17: 0 | K17: 0 | L17: 0 | M17: 0 | N17: 0 | O17: 153.44 | P17: 173.86 | Q17: 0 | R17: 0 | S17: 0 | U17: 0 | V17: 0 | W17: n/a
C18: Homelight 60A | D18: Non-Local Authority | G18: Homelight 60A_Non-Local Authority | H18: HL6001N | I18: 0 | J18: 0 | K18: 0 | L18: 0 | M18: 0 | N18: 0 | O18: 173.67 | P18: 295.19 | Q18: 0 | R18: 0 | S18: 0 | U18: 0 | V18: 0 | W18: n/a
C19: Landrate 1 | D19: Non-Local Authority | G19: Landrate 1_Non-Local Authority | H19: L101N | I19: 0 | J19: 0 | K19: 0 | L19: 0 | M19: 0 | N19: 0 | O19: 0 | P19: 0 | Q19: 155.85 | R19: 0.6 | S19: 38.94 | U19: 41.63 | V19: 34.57 | W19: n/a
C20: Landrate 2 | D20: Non-Local Authority | G20: Landrate 2_Non-Local Authority | H20: L201N | I20: 0 | J20: 0 | K20: 0 | L20: 0 | M20: 0 | N20: 0 | O20: 0 | P20: 0 | Q20: 155.85 | R20: 0.6 | S20: 38.94 | U20: 63.99 | V20: 34.57 | W20: n/a
C21: Landrate 3 | D21: Non-Local Authority | G21: Landrate 3_Non-Local Authority | H21: L301N | I21: 0 | J21: 0 | K21: 0 | L21: 0 | M21: 0 | N21: 0 | O21: 0 | P21: 0 | Q21: 155.85 | R21: 0.6 | S21: 38.94 | U21: 102.3 | V21: 34.57 | W21: n/a
C22: Landrate 4 | D22: Non-Local Authority | G22: Landrate 4_Non-Local Authority | H22: L401N | I22: 0 | J22: 0 | K22: 0 | L22: 0 | M22: 0 | N22: 0 | O22: 0 | P22: 0 | Q22: 336.63 | R22: 0.6 | S22: 38.94 | U22: 33.15 | V22: 0 | W22: n/a
C23: Landrate Dx | D23: Non-Local Authority | G23: Landrate Dx_Non-Local Authority | H23: Ld01N | I23: 0 | J23: 0 | K23: 0 | L23: 0 | M23: 0 | N23: 0 | O23: 0 | P23: 0 | Q23: 0 | R23: 0 | S23: 0 | U23: 0 | V23: 74.14 | W23: n/a
C24: Landlight 20A | D24: Non-Local Authority | G24: =C24&"_"&D24 -> Landlight 20A_Non-Local Authority | H24: Lt2001N | I24: 0 | J24: 0 | K24: 0 | L24: 0 | M24: 0 | N24: 0 | O24: 0 | P24: 0 | Q24: 448.16 | R24: 0 | S24: 0 | U24: 0 | V24: 0 | W24: n/a
C25: Landlight 60A | D25: Non-Local Authority | G25: =C25&"_"&D25 -> Landlight 60A_Non-Local Authority | H25: =INDEX(Matrix_Tariff_Map,MATCH(C25,Matrix_Model_Tariffs,0),2)&IFERROR(INDEX(Matrix_Transmission_Map,MATCH(E25,Matrix_Model_Transmission,0),2),0)&IFERROR(INDEX(Matrix_Voltage_Map,MATCH(F25,Matrix_Model_Voltage,0),2),1)&INDEX(Matrix_Category_Map,MATCH(D25,Matrix_Model_Category,0),2) -> Lt6001N | I25: 0 | J25: 0 | K25: 0 | L25: 0 | M25: 0 | N25: 0 | O25: 0 | P25: 0 | Q25: 577.73 | R25: 0 | S25: 0 | U25: 0 | V25: 0 | W25: n/a
C26: Public Lighting All Night | D26: Non-Local Authority | G26: =C26&"_"&D26 -> Public Lighting All Night_Non-Local Authority | H26: Pa01N | I26: 0 | J26: 0 | K26: 0 | L26: 0 | M26: 0 | N26: 0 | O26: 0 | P26: 0 | Q26: 124.64 | R26: 0 | S26: 0 | U26: 0 | V26: 0 | W26: n/a
C27: Public Lighting 24 Hours | D27: Non-Local Authority | G27: Public Lighting 24 Hours_Non-Local Authority | H27: Pu01N | I27: 0 | J27: 0 | K27: 0 | L27: 0 | M27: 0 | N27: 0 | O27: 0 | P27: 0 | Q27: 166.89 | R27: 0 | S27: 0 | U27: 0 | V27: 0 | W27: n/a
C28: Public Lighting Urban Fixed | D28: Non-Local Authority | G28: Public Lighting Urban Fixed_Non-Local Authority | H28: Pt01N | I28: 0 | J28: 0 | K28: 0 | L28: 0 | M28: 0 | N28: 0 | O28: 0 | P28: 0 | Q28: 0 | R28: 0 | S28: 0 | U28: 0 | V28: 8.2 | W28: n/a
C29: Homeflex 1 | D29: Non-Local Authority | G29: =C29&"_"&D29 -> Homeflex 1_Non-Local Authority | H29: HF101N | I29: 0 | J29: 0 | K29: 0 | L29: 0 | M29: 0 | N29: 0 | O29: 0 | P29: 0 | Q29: 0 | R29: 0 | S29: 0 | T29: 0 | U29: 0 | V29: 0 | W29: 0
C30: Homeflex 2 | D30: Non-Local Authority | G30: Homeflex 2_Non-Local Authority | H30: HF201N | I30: 0 | J30: 0 | K30: 0 | L30: 0 | M30: 0 | N30: 0 | O30: 0 | P30: 0 | Q30: 0 | R30: 0 | S30: 0 | T30: 0 | U30: 0 | V30: 0 | W30: 0
C31: Homeflex 3 | D31: Non-Local Authority | G31: Homeflex 3_Non-Local Authority | H31: HF301N | I31: 0 | J31: 0 | K31: 0 | L31: 0 | M31: 0 | N31: 0 | O31: 0 | P31: 0 | Q31: 0 | R31: 0 | S31: 0 | T31: 0 | U31: 0 | V31: 0 | W31: 0
C32: Homeflex 4 | D32: Non-Local Authority | G32: Homeflex 4_Non-Local Authority | H32: HF401N | I32: 0 | J32: 0 | K32: 0 | L32: 0 | M32: 0 | N32: 0 | O32: 0 | P32: 0 | Q32: 0 | R32: 0 | S32: 0 | T32: 0 | U32: 0 | V32: 0 | W32: 0
C33: =C8 -> Businessrate 1 | D33: Local Authority | G33: Businessrate 1_Local Authority | H33: B101Y | I33: 0 | J33: 0 | K33: 0 | L33: 0 | M33: 0 | N33: 0 | O33: 0 | P33: 0 | Q33: 162.53 | R33: 0.62 | S33: 22.53 | U33: 32.3 | V33: 27.66 | W33: n/a
C34: Businessrate 2 | D34: Local Authority | G34: =C34&"_"&D34 -> Businessrate 2_Local Authority | H34: B201Y | I34: 0 | J34: 0 | K34: 0 | L34: 0 | M34: 0 | N34: 0 | O34: 0 | P34: 0 | Q34: 162.53 | R34: 0.62 | S34: 22.53 | U34: 54.48 | V34: 27.66 | W34: n/a
C35: Businessrate 3 | D35: Local Authority | G35: Businessrate 3_Local Authority | H35: B301Y | I35: 0 | J35: 0 | K35: 0 | L35: 0 | M35: 0 | N35: 0 | O35: 0 | P35: 0 | Q35: 162.53 | R35: 0.62 | S35: 22.53 | U35: 94.14 | V35: 27.66 | W35: n/a
C36: Businessrate 4 | D36: Local Authority | G36: =C36&"_"&D36 -> Businessrate 4_Local Authority | H36: B401Y | I36: 0 | J36: 0 | K36: 0 | L36: 0 | M36: 0 | N36: 0 | O36: 0 | P36: 0 | Q36: 437.39 | R36: 0.62 | S36: 22.53 | U36: 0 | V36: 0 | W36: n/a
C37: Homepower Bulk | D37: Local Authority | G37: =C37&"_"&D37 -> Homepower Bulk_Local Authority | H37: HB01Y | I37: 0 | J37: 0 | K37: 0 | L37: 0 | M37: 0 | N37: 0 | O37: 0 | P37: 0 | Q37: 0 | R37: 0 | S37: 0 | U37: 0 | V37: 0 | W37: n/a
C38: Homepower 1 | D38: Local Authority | G38: =C38&"_"&D38 -> Homepower 1_Local Authority | H38: H101Y | I38: 0 | J38: 0 | K38: 0 | L38: 0 | M38: 0 | N38: 0 | O38: 186.07 | P38: 293.79 | Q38: 0 | R38: 0 | S38: 0 | U38: 7.96 | V38: 0 | W38: n/a
C39: Homepower 2 | D39: Local Authority | G39: Homepower 2_Local Authority | H39: H201Y | I39: 0 | J39: 0 | K39: 0 | L39: 0 | M39: 0 | N39: 0 | O39: 186.07 | P39: 286.43 | Q39: 0 | R39: 0 | S39: 0 | U39: 14.93 | V39: 0 | W39: n/a
C40: Homepower 3 | D40: Local Authority | G40: Homepower 3_Local Authority | H40: H301Y | I40: 0 | J40: 0 | K40: 0 | L40: 0 | M40: 0 | N40: 0 | O40: 186.07 | P40: 286.43 | Q40: 0 | R40: 0 | S40: 0 | U40: 30.85 | V40: 0 | W40: n/a
C41: Homepower 4 | D41: Local Authority | G41: Homepower 4_Local Authority | H41: H401Y | I41: 0 | J41: 0 | K41: 0 | L41: 0 | M41: 0 | N41: 0 | O41: 186.07 | P41: 299.2 | Q41: 0 | R41: 0 | S41: 0 | U41: 4.88 | V41: 0 | W41: n/a
C42: Homelight 20A | D42: Local Authority | G42: Homelight 20A_Local Authority | H42: HL2001Y | I42: 0 | J42: 0 | K42: 0 | L42: 0 | M42: 0 | N42: 0 | O42: 0 | P42: 0 | Q42: 0 | R42: 0 | S42: 0 | U42: 0 | V42: 0 | W42: n/a
C43: Homelight 60A | D43: Local Authority | G43: Homelight 60A_Local Authority | H43: HL6001Y | I43: 0 | J43: 0 | K43: 0 | L43: 0 | M43: 0 | N43: 0 | O43: 0 | P43: 0 | Q43: 0 | R43: 0 | S43: 0 | U43: 0 | V43: 0 | W43: n/a
C44: Landrate 1 | D44: Local Authority | G44: Landrate 1_Local Authority | H44: L101Y | I44: 0 | J44: 0 | K44: 0 | L44: 0 | M44: 0 | N44: 0 | O44: 0 | P44: 0 | Q44: 161.73 | R44: 0.62 | S44: 39.87 | U44: 42.58 | V44: 34.85 | W44: n/a
C45: Landrate 2 | D45: Local Authority | G45: Landrate 2_Local Authority | H45: L201Y | I45: 0 | J45: 0 | K45: 0 | L45: 0 | M45: 0 | N45: 0 | O45: 0 | P45: 0 | Q45: 161.73 | R45: 0.62 | S45: 39.87 | U45: 65.44 | V45: 34.85 | W45: n/a
C46: Landrate 3 | D46: Local Authority | G46: Landrate 3_Local Authority | H46: L301Y | I46: 0 | J46: 0 | K46: 0 | L46: 0 | M46: 0 | N46: 0 | O46: 0 | P46: 0 | Q46: 161.73 | R46: 0.62 | S46: 39.87 | U46: 104.65 | V46: 34.85 | W46: n/a
C47: Landrate 4 | D47: Local Authority | G47: Landrate 4_Local Authority | H47: L401Y | I47: 0 | J47: 0 | K47: 0 | L47: 0 | M47: 0 | N47: 0 | O47: 0 | P47: 0 | Q47: 349.32 | R47: 0.62 | S47: 39.87 | U47: 33.91 | V47: 0 | W47: n/a
C48: Landrate Dx | D48: Local Authority | G48: =C48&"_"&D48 -> Landrate Dx_Local Authority | H48: Ld01Y | I48: 0 | J48: 0 | K48: 0 | L48: 0 | M48: 0 | N48: 0 | O48: 0 | P48: 0 | Q48: 0 | R48: 0 | S48: 0 | U48: 0 | V48: 75.41 | W48: n/a
C49: Public Lighting All Night | D49: Local Authority | G49: =C49&"_"&D49 -> Public Lighting All Night_Local Authority | H49: =INDEX(Matrix_Tariff_Map,MATCH(C49,Matrix_Model_Tariffs,0),2)&IFERROR(INDEX(Matrix_Transmission_Map,MATCH(E49,Matrix_Model_Transmission,0),2),0)&IFERROR(INDEX(Matrix_Voltage_Map,MATCH(F49,Matrix_Model_Voltage,0),2),1)&INDEX(Matrix_Category_Map,MATCH(D49,Matrix_Model_Category,0),2) -> Pa01Y | I49: 0 | J49: 0 | K49: 0 | L49: 0 | M49: 0 | N49: 0 | O49: 0 | P49: 0 | Q49: 131.2 | R49: 0 | S49: 0 | U49: 0 | V49: 0 | W49: n/a
C50: Public Lighting 24 Hours | D50: Local Authority | G50: =C50&"_"&D50 -> Public Lighting 24 Hours_Local Authority | H50: =INDEX(Matrix_Tariff_Map,MATCH(C50,Matrix_Model_Tariffs,0),2)&IFERROR(INDEX(Matrix_Transmission_Map,MATCH(E50,Matrix_Model_Transmission,0),2),0)&IFERROR(INDEX(Matrix_Voltage_Map,MATCH(F50,Matrix_Model_Voltage,0),2),1)&INDEX(Matrix_Category_Map,MATCH(D50,Matrix_Model_Category,0),2) -> Pu01Y | I50: 0 | J50: 0 | K50: 0 | L50: 0 | M50: 0 | N50: 0 | O50: 0 | P50: 0 | Q50: 175.68 | R50: 0 | S50: 0 | U50: 0 | V50: 0 | W50: n/a
C51: Public Lighting Urban Fixed | D51: Local Authority | G51: =C51&"_"&D51 -> Public Lighting Urban Fixed_Local Authority | H51: =INDEX(Matrix_Tariff_Map,MATCH(C51,Matrix_Model_Tariffs,0),2)&IFERROR(INDEX(Matrix_Transmission_Map,MATCH(E51,Matrix_Model_Transmission,0),2),0)&IFERROR(INDEX(Matrix_Voltage_Map,MATCH(F51,Matrix_Model_Voltage,0),2),1)&INDEX(Matrix_Category_Map,MATCH(D51,Matrix_Model_Category,0),2) -> Pt01Y | I51: 0 | J51: 0 | K51: 0 | L51: 0 | M51: 0 | N51: 0 | O51: 0 | P51: 0 | Q51: 0 | R51: 0 | S51: 0 | U51: 0 | V51: 8.63 | W51: n/a

Sheet Mapping (hidden)
B4: Mapping
B7: Model Tariffs | C7: Matrix Code | E7: Model Transmission Zone | F7: Matrix Code
B8: =Lists!B17 -> Businessrate 1 | C8: B1 | E8: Not Applicable | F8: 0
B9: =Lists!B18 -> Businessrate 2 | C9: B2 | E9: =Lists!C88 -> [0 - 300km] | F9: 0
B10: =Lists!B19 -> Businessrate 3 | C10: B3 | E10: =Lists!C89 -> [301 - 600km] | F10: 1
B11: =Lists!B20 -> Businessrate 4 | C11: B4 | E11: =Lists!C90 -> [601 - 900km] | F11: 2
B12: =Lists!B21 -> Homelight 20A | C12: HL20 | E12: =Lists!C91 -> [> 900km] | F12: 3
B13: =Lists!B22 -> Homelight 60A | C13: HL60
B14: =Lists!B23 -> Homepower 1 | C14: H1
B15: =Lists!B24 -> Homepower 2 | C15: H2 | E15: Model Voltage | F15: Matrix Code
B16: =Lists!B25 -> Homepower 3 | C16: H3 | E16: =Lists!C71 -> < 500V | F16: 1
B17: =Lists!B26 -> Homepower 4 | C17: H4 | E17: =Lists!C72 -> ≥ 500V & < 66kV | F17: 2
B18: =Lists!B27 -> Homepower Bulk | C18: HB | E18: =Lists!C73 -> ≥ 66kV & ≤ 132kV | F18: 3
B19: =Lists!B28 -> Landrate 1 | C19: L1 | E19: =Lists!C74 -> > 132kV | F19: 4
B20: =Lists!B29 -> Landrate 2 | C20: L2
B21: =Lists!B30 -> Landrate 3 | C21: L3 | E21: Model Category | F21: Matrix Code
B22: =Lists!B31 -> Landrate 4 | C22: L4 | E22: =Lists!K32 -> Non-Local Authority | F22: N
B23: =Lists!B32 -> Landrate Dx | C23: Ld | E23: =Lists!K33 -> Local Authority | F23: Y
B24: Landlight 20A | C24: Lt20
B25: Landlight 60A | C25: Lt60
B26: Public Lighting All Night | C26: Pa
B27: Public Lighting 24 Hours | C27: Pu
B28: Public Lighting Urban Fixed | C28: Pt
B29: =Lists!B38 -> Megaflex | C29: Me
B30: =Lists!B39 -> Miniflex | C30: Mi
B31: =Lists!B40 -> Nightsave Large | C31: NL
B32: =Lists!B41 -> Nightsave Rural | C32: NR
B33: =Lists!B42 -> Nightsave Small | C33: NS
B34: =Lists!B43 -> Ruraflex | C34: Ru
B35: Homeflex 1 | C35: HF1
B36: Homeflex 2 | C36: HF2
B37: Homeflex 3 | C37: HF3
B38: Homeflex 4 | C38: HF4

Sheet Lists (hidden)
B4: Model Lists
B6: Selections | C6: Dropbox ID | D6: Description | E6: ID | J6: Description | K6: Dates | L6: Units | N6: Customer Category | O6: Tariff Category ID
B7: Selected Tariff Category | C7: 1 | D7: =INDEX(Tariff_Category_List,Dropdown_Category) -> Non-Local Authority | E7: =MATCH(D7,Tariff_Category_List,0) -> 1 | F7: =Selected_Tariff_Category_ID -> 1 | J7: ESKOM Financial Year End | K7: 2024-03-31 | L7: dd-mmm-yy | N7: Small Power User | O7: 1
B8: Selected Customer Category | C8: 1 | D8: =INDEX(Customer_Category_List,Dropdown_Customer) -> Small Power User | E8: =MATCH(D8,Customer_Category_List,0) -> 1 | J8: Municipality Financial Year End | K8: =EOMONTH(ESKOM_Period,3) -> 2024-06-30 | L8: dd-mmm-yy | N8: Large Power User | O8: 2
B9: Selected Supply Size | C9: 1 | D9: =INDEX(Capacity_List,Dropdown_Supply) -> 5kVA, 16kVA, 20A or 60A | E9: =MATCH(D9,Capacity_List,0) -> 1 | J9: Current Period | K9: =YEAR(Period)-2&"/"&YEAR(Period)-1 -> 2022/2023
B10: Selected Base Tariff | C10: 8 | D10: =INDEX(Supply_Tariff_List,MIN(Dropdown_Tariff,Supply_Tariff_List_Count),0) -> Landrate 4 | E10: =MATCH(D10,Full_Tariff_List,0) -> 15 | J10: New Period | K10: =YEAR(Period)-1&"/"&YEAR(Period) -> 2023/2024 | N10: SPU Capacity | O10: Capacity ID
B11: Selected Tariff Type | D11: ='Monthly Average Bill'!D15 -> Rural | E11: =IF(Selected_Tariff_Type="Rural",2,1) -> 2 | J11: Total Days | K11: 30.41666667 | N11: 5kVA, 16kVA, 20A or 60A | O11: 1
B12: Selected Supply Voltage | C12: 1 | D12: =INDEX(Voltage_List,MIN(Dropdown_Voltage,Voltage_List_Count)) -> < 500V | E12: =MATCH(D12,Voltage_List,0) -> 1 | N12: 25kVA | O12: 2
B13: Selected transmission zone | C13: 1 | D13: =INDEX(Transmission_List,MIN(Dropdown_Zone,Transmission_List_Count)) -> Not Applicable | E13: =MATCH(D13,Transmission_List,0) -> 1 | J13: VAT | K13: 0.15 | N13: 32kVA | O13: 3
B14: Time of Use Toggle | E14: =IF(Selected_Customer_Category_ID=1,0,1) -> 0 | N14: 50kVA | O14: 4
N15: >50kVA | O15: 5
B16: Tariffs | C16: Base Tariff | D16: Tariff Variant | E16: Type | F16: Base Tariff ID | G16: Tariff ID | I16: Base Tariffs | J16: Type | K16: Long Type | L16: Base Tariff ID
B17: =IF(D17="",C17,C17&" "&D17) -> Businessrate 1 | C17: Businessrate | D17: 1 | E17: =INDEX(Base_Tariff_Type,F17) -> Urban | F17: =MATCH(C17,Base_Tariff_List,0) -> 1 | G17: 1 | I17: Businessrate | J17: Urban | K17: Commercial Urban | L17: 1
B18: =IF(D18="",C18,C18&" "&D18) -> Businessrate 2 | C18: Businessrate | D18: 2 | E18: Urban | F18: 1 | G18: 2 | I18: Homelight | J18: Urban | K18: Residential Urban | L18: 2
B19: Businessrate 3 | C19: Businessrate | D19: 3 | E19: Urban | F19: 1 | G19: 3 | I19: Homepower | J19: Urban | K19: Residential Urban | L19: 3
B20: Businessrate 4 | C20: Businessrate | D20: 4 | E20: Urban | F20: 1 | G20: 4 | I20: Landrate | J20: Rural | K20: Rural | L20: 4 | N20: LPU Capacity | O20: Capacity ID
B21: Homelight 20A | C21: Homelight | D21: 20A | E21: Urban | F21: 2 | G21: 5 | I21: Megaflex | J21: Urban | K21: Commercial Urban | L21: 5 | N21: ≤100kVA | O21: 1
B22: Homelight 60A | C22: Homelight | D22: 60A | E22: Urban | F22: 2 | G22: 6 | I22: Miniflex | J22: Urban | K22: Commercial Urban | L22: 6 | N22: >100kVA & ≤500kVA | O22: 2
B23: Homepower 1 | C23: Homepower | D23: 1 | E23: Urban | F23: 3 | G23: 7 | I23: Nightsave Large | J23: Urban | K23: Commercial Urban | L23: 7 | N23: >500kVA & ≤1MVA | O23: 3
B24: Homepower 2 | C24: Homepower | D24: 2 | E24: Urban | F24: 3 | G24: 8 | I24: Nightsave Rural | J24: Rural | K24: Rural | L24: 8 | N24: >1MVA & ≤5MVA | O24: 4
B25: Homepower 3 | C25: Homepower | D25: 3 | E25: Urban | F25: 3 | G25: 9 | I25: Nightsave Small | J25: Urban | K25: Commercial Urban | L25: 9 | N25: >5MVA | O25: 5
B26: Homepower 4 | C26: Homepower | D26: 4 | E26: Urban | F26: 3 | G26: 10 | I26: Ruraflex | J26: Rural | K26: Rural | L26: 10 | N26: Key customer | O26: 6
B27: Homepower Bulk | C27: Homepower | D27: Bulk | E27: Urban | F27: 3 | G27: 11 | I27: Public Lighting | J27: Urban | K27: Commercial Urban | L27: 11
B28: Landrate 1 | C28: Landrate | D28: 1 | E28: Rural | F28: 4 | G28: 12 | I28: Homeflex | J28: Urban | K28: Residential Urban | L28: 12 | N28: Capacity | O28: Capacity ID
B29: Landrate 2 | C29: Landrate | D29: 2 | E29: Rural | F29: 4 | G29: 13 | N29: =IFERROR(IF(Selected_Customer_Category_ID=1,INDEX(Capacity_SPU_List,O29,0),INDEX(Capacity_LPU_List,O29,0)),"") -> 5kVA, 16kVA, 20A or 60A | O29: 1
B30: Landrate 3 | C30: Landrate | D30: 3 | E30: Rural | F30: 4 | G30: 14 | N30: 25kVA | O30: 2
B31: Landrate 4 | C31: Landrate | D31: 4 | E31: Rural | F31: 4 | G31: 15 | K31: Tariff Category | L31: Tariff Category ID | N31: 32kVA | O31: 3
B32: Landrate Dx | C32: Landrate | D32: Dx | E32: Rural | F32: 4 | G32: 16 | K32: Non-Local Authority | L32: 1 | N32: 50kVA | O32: 4
B33: Landlight 20A | C33: Landrate | D33: Dx | E33: =INDEX(Base_Tariff_Type,F33) -> Rural | F33: =MATCH(C33,Base_Tariff_List,0) -> 4 | G33: 17 | K33: Local Authority | L33: 2 | N33: >50kVA | O33: 5
B34: Landlight 60A | C34: Landrate | D34: Dx | E34: Rural | F34: 4 | G34: 18 | O34: 6
B35: Public Lighting All Night | C35: Public Lighting | D35: All Night | E35: =INDEX(Base_Tariff_Type,F35) -> Urban | F35: 11 | G35: 19
B36: Public Lighting 24 Hours | C36: Public Lighting | D36: 24 Hours | E36: =INDEX(Base_Tariff_Type,F36) -> Urban | F36: 11 | G36: 20 | K36: Tariffs | L36: Block 1 kWh | N36: Capacity List Count | O36: =IF(Selected_Customer_Category_ID=1,COUNTA(Capacity_SPU_List),COUNTA(Capacity_LPU_List)) -> 5
B37: Public Lighting Urban Fixed | C37: Public Lighting | D37: Urban Fixed | E37: =INDEX(Base_Tariff_Type,F37) -> Urban | F37: 11 | G37: 21 | K37: Homelight 20A | L37: 350
B38: =IF(D38="",C38,C38&" "&D38) -> Megaflex | C38: Megaflex | E38: =INDEX(Base_Tariff_Type,F38) -> Urban | F38: =MATCH(C38,Base_Tariff_List,0) -> 5 | G38: 22 | K38: Homelight 60A | L38: 600
B39: Miniflex | C39: Miniflex | E39: Urban | F39: 6 | G39: 23 | K39: Homepower | L39: 600
B40: Nightsave Large | C40: Nightsave Large | E40: Urban | F40: 7 | G40: 24
B41: Nightsave Rural | C41: Nightsave Rural | E41: Rural | F41: 8 | G41: 25
B42: Nightsave Small | C42: Nightsave Small | E42: Urban | F42: 9 | G42: 26
B43: Ruraflex | C43: Ruraflex | E43: Rural | F43: 10 | G43: 27
B44: Homeflex 1 | C44: Homeflex | E44: Urban | F44: =MATCH(C44,Base_Tariff_List,0) -> 12 | G44: 28
B45: Homeflex 2 | C45: Homeflex | E45: Urban | F45: =MATCH(C45,Base_Tariff_List,0) -> 12 | G45: 29
B46: Homeflex 3 | C46: Homeflex | E46: Urban | F46: 12 | G46: 30
B47: Homeflex 4 | C47: Homeflex | E47: Urban | F47: 12 | G47: 31
B50: Selection Tables | C50: LPU Selections | J50: SPU Selections
B51: =IF(Selected_Customer_Category_ID=1,INDEX(J51:O51,0,Selected_Supply_Size_ID),INDEX(C51:H51,Selected_Supply_Size_ID)) -> 5kVA, 16kVA, 20A or 60A | C51: =$N21 -> ≤100kVA | D51: =$N22 -> >100kVA & ≤500kVA | E51: =$N23 -> >500kVA & ≤1MVA | F51: =$N24 -> >1MVA & ≤5MVA | G51: =$N25 -> >5MVA | H51: =$N26 -> Key customer | J51: =$N11 -> 5kVA, 16kVA, 20A or 60A | K51: =$N12 -> 25kVA | L51: =$N13 -> 32kVA | M51: =$N14 -> 50kVA | N51: =$N15 -> >50kVA
B52: =INDEX(J52:N52,0,Selected_Supply_Size_ID) -> Businessrate 1 | C52: Ruraflex | D52: Ruraflex | E52: Ruraflex | F52: Ruraflex | G52: Ruraflex | H52: =F52 -> Ruraflex | J52: Businessrate 1 | K52: Businessrate 1 | L52: Businessrate 1 | M52: Businessrate 2 | N52: Businessrate 2
B53: Businessrate 4 | C53: Miniflex | D53: Miniflex | E53: Miniflex | F53: Miniflex | G53: Nightsave Large | H53: Nightsave Large | J53: Businessrate 4 | K53: Businessrate 4 | L53: Businessrate 4 | M53: Homepower 2 | N53: Businessrate 3
B54: Homepower 4 | C54: Nightsave Small | D54: Nightsave Small | E54: Nightsave Small | F54: Nightsave Large | G54: Megaflex | H54: Megaflex | J54: Homepower 4 | K54: Homepower 1 | L54: Homepower 1 | M54: Landrate 2 | N54: Homepower 2
B55: Homelight 20A | C55: Nightsave Rural | D55: Nightsave Rural | E55: Nightsave Rural | F55: Megaflex | G55: Nightsave Rural | H55: Nightsave Rural | J55: Homelight 20A | K55: Landrate 1 | L55: Landrate 1 | M55: Homepower Bulk | N55: Homepower 3
B56: Homelight 60A | C56: Homepower Bulk | D56: Homepower Bulk | E56: Homepower Bulk | F56: Nightsave Rural | J56: Homelight 60A | K56: Homeflex 1 | L56: Homeflex 1 | M56: Homeflex 2 | N56: Landrate 2
B57: Homeflex 4 | J57: Homeflex 4 | N57: Landrate 3
B58: Landrate 1 | J58: Landrate 1 | N58: Homepower Bulk
B59: Landrate 4 | J59: Landrate 4 | N59: Homeflex 2
B60: Landrate Dx | J60: Landrate Dx | N60: Homeflex 3
B61: Landlight 20A | J61: Landlight 20A
B62: Landlight 60A | J62: Landlight 60A
B63: Public Lighting All Night | J63: Public Lighting All Night
B64: Public Lighting 24 Hours | J64: Public Lighting 24 Hours
B65: Public Lighting Urban Fixed | J65: Public Lighting Urban Fixed
B67: =INDEX(J67:N67,0,Selected_Supply_Size_ID) -> 13 | C67: =COUNTA(C52:C64) -> 5 | D67: 5 | E67: 5 | F67: 5 | G67: 4 | H67: 4 | J67: =COUNTA(J52:J64) -> 13 | K67: =COUNTA(K52:K64) -> 5 | L67: =COUNTA(L52:L64) -> 5 | M67: =COUNTA(M52:M64) -> 5 | N67: =COUNTA(N52:N64) -> 9
B70: LPU Voltage | C70: Urban | D70: Rural | J70: Compare Tables | K70: SPU | L70: ID | M70: Base Tariff ID | N70: Long Type
B71: =INDEX($C71:$D71,Selected_Tariff_Type_ID) -> < 500V | C71: < 500V | D71: < 500V | J71: =(IF(Selected_Customer_Category_ID=1,K71,B52)) -> Businessrate 1 | K71: =B52 -> Businessrate 1 | L71: 1 | M71: =IFERROR(INDEX($F$17:$F$47,MATCH(J71,Full_Tariff_List,0),0),0) -> 1 | N71: =IFERROR(INDEX($K$17:$K$28,MATCH(M71,$L$17:$L$28,0),0),0) -> Commercial Urban
B72: =INDEX($C72:$D72,Selected_Tariff_Type_ID) -> ≥ 500V & < 66kV | C72: ≥ 500V & < 66kV | D72: ≥ 500V & < 66kV | J72: =IF(Selected_Customer_Category_ID=1,K72,B53) -> Businessrate 4 | K72: =B53 -> Businessrate 4 | L72: 2 | M72: =IFERROR(INDEX($F$17:$F$47,MATCH(J72,Full_Tariff_List,0),0),0) -> 1 | N72: =IFERROR(INDEX($K$17:$K$28,MATCH(M72,$L$17:$L$28,0),0),0) -> Commercial Urban
B73: =INDEX($C73:$D73,Selected_Tariff_Type_ID) -> 0 | C73: ≥ 66kV & ≤ 132kV | J73: =IF(Selected_Customer_Category_ID=1,K73,B54) -> Homepower 4 | K73: =B54 -> Homepower 4 | L73: 3 | M73: 3 | N73: Residential Urban
B74: =INDEX($C74:$D74,Selected_Tariff_Type_ID) -> 0 | C74: > 132kV | J74: =IF(Selected_Customer_Category_ID=1,K74,B55) -> Homelight 20A | K74: =B55 -> Homelight 20A | L74: 4 | M74: 2 | N74: Residential Urban
J75: =IF(Selected_Customer_Category_ID=1,K75,B56) -> Homelight 60A | K75: =B56 -> Homelight 60A | L75: 5 | M75: 2 | N75: Residential Urban
B76: =INDEX($C76:$D76,Selected_Tariff_Type_ID) -> 2 | C76: =COUNTA(C71:C74) -> 4 | D76: =COUNTA(D71:D74) -> 2 | J76: =IFERROR((IF(Selected_Customer_Category_ID=1,K76,B58)),"") -> Landrate 1 | K76: =B58 -> Landrate 1 | L76: 6 | M76: 4 | N76: Rural
J77: =IF(Selected_Customer_Category_ID=1,K77,B59) -> Landrate 4 | K77: Landrate 4 | L77: 7 | M77: 4 | N77: Rural
B78: Voltage | C78: LPU | D78: SPU | E78: Voltage ID | J78: =IF(Selected_Customer_Category_ID=1,K78,B61) -> Landrate Dx | K78: Landrate Dx | L78: 8 | M78: 4 | N78: Rural
B79: =IF(Selected_Customer_Category_ID=1,D79,C79) -> < 500V | C79: =B71 -> < 500V | D79: < 500V | E79: 1 | J79: =IF(Selected_Customer_Category_ID=1,K79,B62) -> Landlight 20A | K79: Landlight 20A | L79: 9 | M79: 4 | N79: Rural
B80: =IF(Selected_Customer_Category_ID=1,D80,C80) -> ≥ 500V & < 66kV | C80: =B72 -> ≥ 500V & < 66kV | D80: ≥ 500V & < 66kV | E80: 2 | J80: =IF(Selected_Customer_Category_ID=1,K80,B63) -> Landlight 60A | K80: Landlight 60A | L80: 10 | M80: 4 | N80: Rural
B81: =IF(Selected_Customer_Category_ID=1,D81,C81) -> 0 | C81: 0 | E81: 3 | J81: =IF(Selected_Customer_Category_ID=1,K81,B64) -> Public Lighting All Night | K81: Public Lighting All Night | L81: 11 | M81: 11 | N81: Commercial Urban
B82: =IF(Selected_Customer_Category_ID=1,D82,C82) -> 0 | C82: 0 | E82: 4 | J82: =IF(Selected_Customer_Category_ID=1,K82,B65) -> Public Lighting 24 Hours | K82: Public Lighting 24 Hours | L82: 12 | M82: 11 | N82: Commercial Urban
J83: =IF(Selected_Customer_Category_ID=1,K83,B57) -> Homeflex 4 | K83: =B57 -> Homeflex 4 | L83: 13 | M83: 12 | N83: Residential Urban
B85: =IF(Selected_Customer_Category_ID=1,D85,C85) -> 2 | C85: =B76 -> 2 | D85: =COUNTA(D79:D82) -> 2 | J85: =IF(Selected_Customer_Category_ID=1,K85,B67) -> 13 | K85: =Supply_Tariff_List_Count -> 13
B87: Transmission zone | C87: LPU | D87: SPU | E87: Transmission Zone ID | J87: Selected Tariff in Compare | K87: =MATCH(Selected_Base_Tariff,Compare_Tariff_List,0) -> 7
B88: =IF(Selected_Customer_Category_ID=1,D88,C88) -> Not Applicable | C88: [0 - 300km] | D88: Not Applicable | E88: 0
B89: =IF(Selected_Customer_Category_ID=1,D89,C89) -> 0 | C89: [301 - 600km] | E89: 1
B90: =IF(Selected_Customer_Category_ID=1,D90,C90) -> 0 | C90: [601 - 900km] | E90: 2
B91: =IF(Selected_Customer_Category_ID=1,D91,C91) -> 0 | C91: [> 900km] | E91: 3
B93: =IF(Selected_Customer_Category_ID=1,D93,C93) -> 1 | C93: =COUNTA(C88:C91) -> 4 | D93: =COUNTA(D88:D91) -> 1 | J93: Compare_Tariff_List
B96: Months | C96: Month ID | D96: Season
B98: =DATE(YEAR(Period)-1,2,) -> 2023-01-31 | C98: 1 | D98: Low Demand
B99: =EOMONTH(B98,1) -> 2023-02-28 | C99: 2 | D99: Low Demand
B100: =EOMONTH(B99,1) -> 2023-03-31 | C100: 3 | D100: High Demand
B101: 2023-04-30 | C101: 4 | D101: Low Demand
B102: 2023-05-31 | C102: 5 | D102: Low Demand
B103: 2023-06-30 | C103: 6 | D103: High Demand
B104: 2023-07-31 | C104: 7 | D104: High Demand
B105: 2023-08-31 | C105: 8 | D105: High Demand
B106: 2023-09-30 | C106: 9 | D106: Low Demand
B107: 2023-10-31 | C107: 10 | D107: Low Demand
B108: 2023-11-30 | C108: 11 | D108: Low Demand
B109: 2023-12-31 | C109: 12 | D109: Low Demand

Sheet Notes on updates (hidden)
C2: Notes on updates | E2: Sheet | F2: Status
B3: 2015/16 | C3: ] | D3: Need to add SPU tariffs
D4: Public Lighting All Night | F4: Done
D5: Public Lighting 24 Hours
D6: Public Lighting Urban Fixed
D7: Landlight
C9: ] | D9: Rates
D10: Update the New with 2015/16 rates | F10: 2014-12-05
D11: Update the Current with 2014/15 rates | F11: 2014-12-05
C13: ] | D13: SPU
D14: Activate the Tx zone. This is needed for LPU tariff conversions | F14: 2014-12-05
C16: ] | D16: Tariff component name changes
D17: Change the Distribution network access charge NAC) to Distribution network capacity charge (NCC) | F17: 2015-10-14
B19: 2016/17 | C19: ] | D19: Need to add SPU tariffs
D20: Landlight 20A | E20: Mapping Lists | F20: 2016-02-22
D21: Landlight 60A | E21: Mapping Lists | F21: 2016-02-22
C23: ] | D23: Rates
D24: Update the New with 2016/17 rates | E24: Rates SPU - New | F24: 2016-03-02
D25: Update the Current with 2015/16 rates | E25: Rates SPU - Current | F25: 2016-03-02
D26: Tested & validated by RPM's & super-users | F26: 2016-02-15
D27: Tested & validated by PI team | F27: 2016-02-16
B29: 2017/18
C30: ] | D30: Rates
D31: Update the New with 2017/18 rates | E31: Rates SPU - New | F31: 2017-03-10
D32: Update the Current with 2016/17 rates | E32: Rates SPU - Current | F32: 2017-03-10
D33: Tested & validated by RPM's & super-users
D34: Tested & validated by PI team
B36: 2018/19
C37: ] | D37: Rates
D38: Update the New with 2018/19 rates | E38: Rates SPU - New | F38: 2018-02-22
D39: Update the Current with 2017/18 rates | E39: Rates SPU - Current | F39: 2018-02-22
D40: Update VAT rate to 15% | E40: Rates SPU - Current | F40: 2018-02-22
D41: Tested & validated by RPM's & super-users
D42: Tested & validated by PI team
B44: 2019/20
C45: ] | D45: Rates
D46: Update the New with 2019/20 rates | E46: Rates SPU - New | F46: 2019-03-11
D47: Update the Current with 2018/19 rates | E47: Rates SPU - Current | F47: 2019-03-11
D48: Update Eskom financial year [Range K7] | E48: Lists | F48: 2019-03-11
D49: Tested & validated by RPM's & super-users
D50: Tested & validated by PI team
B52: 2020/21
C53: ] | D53: Rates
D54: Update the New with 2020/21 rates | E54: Rates SPU - New | F54: 2020-03-10
D55: Update the Current with 2019/20 rates | E55: Rates SPU - Current | F55: 2020-03-10
D56: Update Eskom financial year [Range K7] | E56: Lists | F56: 2020-03-10
D57: Tested & validated by RPM's & super-users
D58: Tested & validated by PI team
B60: 2021/22
C61: ] | D61: Rates
D62: Update the New with 2021/22 rates | E62: Rates SPU - New | F62: 2021-03-09
D63: Update the Current with 2020/21 rates | E63: Rates SPU - Current | F63: 2021-03-09
D64: Update Eskom financial year [Range K7] | E64: Lists | F64: 2021-03-09
D65: Tested & validated by RPM's & super-users
D66: Tested & validated by PI team
B68: 2022/23 | C68: V6.11
C69: ] | D69: Rates
D70: Update the New with 2022/23 rates | E70: Rates SPU - New | F70: 2023-03-13
D71: Update the Current with 2021/22 rates | E71: Rates SPU - Current | F71: 2023-03-13
D72: Update Eskom financial year [Range K7] | E72: Lists | F72: 2023-03-13
D73: Tested & validated by RPM's & super-users
D74: Tested & validated by PI team
B75: 2023/24 | C75: V6.12
C76: ] | D76: Rates
D77: Update the New with 2022/23 rates | E77: Rates SPU - New | F77: 2023-03-13
D78: Update the Current with 2021/22 rates | E78: Rates SPU - Current | F78: 2023-03-13
D79: Update Eskom financial year [Range K7] | E79: Lists | F79: 2023-03-13
D80: Tested & validated by RPM's & super-users
D81: Tested & validated by PI team
D82: Add Homeflex tariff | E82: Rates SPU - New | F82: 2023-03-13
E83: Workings | F83: 2023-03-13
E84: Rates Table | F84: 2023-03-13
E85: Monthly Average Bill | F85: 2023-03-13
E86: Tariff Comparison | F86: 2023-03-13
